Workbook

Sheet School List (hidden)
CD1: ok
A4: DFE | C4: School
A5: Number | C5: Name
A6: 3318 | C6: ABBEY RC JI
A7: 2010 | C7: ADDERLEY JI
A8: 5949 | C8: AL-FURQAN JI
A9: 2153 | C9: ALLENS CROFT JI
A10: 2062 | C10: ANDERTON PARK JI NC
A11: 2479 | C11: ANGLESEY JI NC
A12: 2300 | C12: ARDEN JI NC
A13: 2026 | C13: BANNERS GATE PRIMARY SCHOOL JI NC
A14: 2014 | C14: BARFORD JI NC
A15: 2239 | C15: BELLFIELD I NC
A16: 2241 | C16: BELLFIELD J
A17: 2456 | C17: BELLS FARM JI
A18: 2435 | C18: BENSON JI NC
A19: 2025 | C19: BIRCHES GREEN I NC
A20: 2024 | C20: BIRCHES GREEN J
A21: 2254 | C21: BLAKESLEY HALL JI
A22: 2402 | C22: BOLDMERE I NC
A23: 2401 | C23: BOLDMERE J
A24: 2030 | C24: BORDESLEY GREEN JI NC
A25: 3353 | C25: Bournville Village Primary
A26: 2238 | C26: BROADMEADOW I NC
A27: 2236 | C27: BROADMEADOW J
A28: 2465 | C28: CALSHOT JI NC
A29: 2312 | C29: CHAD VALE JI
A30: 2040 | C30: CHERRY ORCHARD JI NC
A31: 2251 | C31: CHILCOTE JI NC
A32: 3319 | C32: CHRIST THE KING RC JI NC
A33: 3002 | C33: CHRISTCHURCH CE JI NC
A34: 3432 | C34: CLIFTON JI NC
A35: 2289 | C35: COFTON JI
A36: 2185 | C36: COLEBOURNE JI
A37: 2054 | C37: COLMORE I NC
A38: 2053 | C38: COLMORE J
A39: 2464 | C39: COPPICE JI
A40: 3320 | C40: CORPUS CHRISTI RC JI
A41: 2055 | C41: COTTERIDGE JI NC
A42: 2191 | C42: COURT FARM JI
A43: 2284 | C43: DEYKIN AVENUE JI
A44: 2454 | C44: ELMS FARM JI NC
A45: 3321 | C45: ENGLISH MARTYRS RC JI
A46: 2294 | C46: FEATHERSTONE JI
A47: 2486 | C47: FORESTDALE JI NC
A48: 3435 | C48: FOUR OAKS JI
A49: 2079 | C49: GEORGE DIXON JI
A50: 2081 | C50: GILBERTSTONE JI NC
A51: 2296 | C51: GLENMEAD JI
A52: 2087 | C52: GRENDON JI NC
A53: 2466 | C53: GROVE JI NC
A54: 3316 | C54: GUARDIAN ANGELS RC JI
A55: 2091 | C55: GUNTER JI NC
A56: 2093 | C56: HALL GREEN I NC
A57: 2092 | C57: HALL GREEN J
A58: 2477 | C58: HARBORNE JI
A59: 3436 | C59: HARPER BELL PRIMARY JI NC
A60: 2099 | C60: HAWTHORN JI
A61: 2313 | C61: HEATH MOUNT JI
A62: 2438 | C62: HIGHTERS HEATH JI
A63: 2429 | C63: HOLLAND HOUSE I NC
A64: 3411 | C64: HOLLY HILL I NC
A65: 2474 | C65: HOLLYFIELD JI
A66: 2288 | C66: HOLLYWOOD JI
A67: 3317 | C67: HOLY FAMILY RC JI NC
A68: 2015 | C68: JAMES WATT JI NC
A69: 3352 | C69: KING DAVID JI NC
A70: 2005 | C70: KINGS HEATH JI NC
A71: 2118 | C71: KINGS NORTON JI
A72: 2115 | C72: KINGSLAND JI NC
A73: 2441 | C73: KINGSTHORNE JI NC
A74: 2321 | C74: KITWELL JI NC
A75: 2189 | C75: LADYPOOL JI NC
A76: 2119 | C76: LAKEY LANE JI NC
A77: 2462 | C77: LITTLE SUTTON JI
A78: 2127 | C78: LOZELLS JI NC
A79: 2129 | C79: LYNDON GREEN I
A80: 2128 | C80: LYNDON GREEN J
A81: 2420 | C81: MANEY HILL JI
A82: 2004 | C82: MAPLEDENE JI NC
A83: 2133 | C83: MARSH HILL JI
A84: 3322 | C84: MARYVALE RC JI NC
A85: 2246 | C85: MEADOWS JI
A86: 2406 | C86: MINWORTH JI
A87: 2416 | C87: MOOR HALL JI
A88: 3003 | C88: MOSELEY CE JI
A89: 2142 | C89: NELSON JI NC
A90: 2457 | C90: NELSON MANDELA JI NC
A91: 2469 | C91: NEW HALL JI NC
A92: 3431 | C92: NEW OSCOTT JI NC
A93: 2018 | C93: OAKS, THE JI NC
A94: 3323 | C94: ORATORY RC JI NC
A95: 2436 | C95: OSBORNE JI
A96: 3351 | C96: OUR LADY AND ST ROSE RC JI NC
A97: 3328 | C97: OUR LADY OF LOURDES RC JI NC
A98: 3357 | C98: OUR LADY'S RC JI
A99: 2021 | C99: PAGANEL JI NC
A100: 2149 | C100: PAGET JI NC
A101: 2150 | C101: PARK HILL JI NC
A102: 2425 | C102: PENNS JI
A103: 2017 | C103: BEECHES I (formerly PERRY BEECHES I)
A104: 2016 | C104: PERRY BEECHES J
A105: 2157 | C105: RADDLEBARN JI NC
A106: 2159 | C106: REDHILL JI NC
A107: 2161 | C107: REDNAL HILL I NC
A108: 2160 | C108: REDNAL HILL J
A109: 2063 | C109: REGENTS PARK JI NC
A110: 3325 | C110: ROSARY RC JI NC
A111: 2169 | C111: SEVERNE JI NC
A112: 2008 | C112: SHAW HILL JI NC
A113: 2174 | C113: SLADEFIELD I
A114: 2176 | C114: SOMERVILLE JI NC
A115: 3381 | C115: ST ALBANS RC JI
A116: 3380 | C116: ST AMBROSE BARLOW RC JI
A117: 3335 | C117: ST ANNE'S RC JI
A118: 3329 | C118: ST AUGUSTINE'S RC JI NC
A119: 3302 | C119: ST BARNABAS CE JI NC
A120: 2183 | C120: ST BENEDICT'S I NC
A121: 3372 | C121: ST BERNADETTE'S RC JI NC
A122: 3375 | C122: ST BERNARD'S RC JI
A123: 3331 | C123: ST CATHERINE'S RC JI NC
A124: 3337 | C124: ST CHAD'S RC JI
A125: 3406 | C125: ST CLARE'S RC JI NC
A126: 3386 | C126: ST CUTHBERTS RC JI NC
A127: 3363 | C127: ST DUNSTAN'S RC JI NC
A128: 3347 | C128: ST EDMUND'S RC JI NC
A129: 3355 | C129: ST EDWARD'S RC JI
A130: 3342 | C130: ST FRANCIS RC JI
A131: 3367 | C131: ST GERARD'S RC JI NC
A132: 3010 | C132: ST JAMES CE JI
A133: 3410 | C133: ST JOHN & ST MONICA RC JI
A134: 3360 | C134: ST JOHN FISHER'S RC JI
A135: 3339 | C135: ST JOSEPH'S RC (B7) JI
A136: 3377 | C136: ST JUDE'S RC JI
A137: 3371 | C137: ST LAURENCE CE I
A138: 3307 | C138: ST LAURENCE CE J
A139: 3361 | C139: ST MARGARET MARY RC JI
A140: 3383 | C140: ST MARK'S RC JI
A141: 3382 | C141: ST MARTIN de PORRES RC JI
A142: 3025 | C142: ST MARY'S CE (B29) JI
A143: 3344 | C143: ST MARY'S RC (B17) JI
A144: 3016 | C144: ST MATTHEW'S CE JI
A145: 3346 | C145: ST PATRICK'S RC JI
A146: 3428 | C146: ST PETER'S CE JI NC
A147: 3385 | C147: ST PETER'S RC JI
A148: 3019 | C148: ST SAVIOUR'S CE JI
A149: 3365 | C149: ST TERESA'S RC JI
A150: 3310 | C150: ST VINCENT'S RC JI NC
A151: 3359 | C151: ST WILFRID'S RC JI NC
A152: 2178 | C152: STANVILLE JI NC
A153: 2179 | C153: STARBANK JI NC
A154: 2184 | C154: STECHFORD JI NC
A155: 2097 | C155: STORY WOOD SCHOOL AND CHILDREN'S CENTRE JI NC
A156: 2067 | C156: SUMMERFIELD JI NC
A157: 2190 | C157: SUNDRIDGE JI
A158: 2192 | C158: THORNTON JI
A159: 5203 | C159: WALMLEY I NC
A160: 5202 | C160: WALMLEY J
A161: 2108 | C161: WARD END JI NC
A162: 2306 | C162: WATERMILL JI
A163: 2482 | C163: WATTVILLE JI NC
A164: 2308 | C164: WELFORD JI NC
A165: 2245 | C165: WELSH HOUSE FARM JI NC
A166: 2019 | C166: WEST HEATH JI
A167: 2011 | C167: WHEELERS LANE JI NC
A168: 2478 | C168: WHITEHOUSE COMMON JI NC
A169: 2293 | C169: William Murdoch Primary School
A170: 2445 | C170: WOODCOCK HILL JI
A171: 2278 | C171: WOODGATE JI
A172: 2314 | C172: WOODTHORPE JI
A173: 2317 | C173: WORLDS END I NC
A174: 2225 | C174: WORLDS END J
A175: 2412 | C175: WYLDE GREEN JI
A176: 3421 | C176: YARDLEY JI
A177: 2227 | C177: YARDLEY WOOD JI NC
A178: 2231 | C178: YORKMEAD JI NC
A179: 7052 | C179: BEAUFORT Spec
A180: 7051 | C180: CHERRY OAK Spec
A181: 1100 | C181: CITY OF BIRMINGHAM SCHOOL
A182: 7035 | C182: DAME ELLEN PINSENT Spec
A183: 7006 | C183: HAMILTON Spec
A184: 7060 | C184: LANGLEY Spec
A185: 7062 | C185: LINDSWORTH Spec
A186: 7012 | C186: LONGWILL Spec
A187: 7040 | C187: MAYFIELD Spec
A188: 7045 | C188: PINES Spec
A189: 7034 | C189: PRIESTLEY SMITH Spec
A190: 7037 | C190: SKILTS Spec
A191: 7047 | C191: SPRINGFIELD HOUSE Spec
A192: 7014 | C192: UFFCULME Spec
A193: 7009 | C193: VICTORIA Spec

Sheet Start
A1: V2 Final 19-20 | D1: =IF(ISNA(VLOOKUP($E$1,$A$101:$B$306,2,0)),0,VLOOKUP($E$1,$A$101:$B$306,2,0)) -> 2293 | E1: =+DFES!E1 -> 2293
B10: 2019/20 Primary PE and Sports Premium Grant Allocations - Official Notification
B12: Please Left Click on the Macro Button below to continue.
B13: If the aforementioned does not function, please consult the Macro Guidance here….
B14: Should the Protected View message be visible on the Toolbar, click on Enable Editing.
A101: 1100 | B101: 1100 | I101: Nrsy | J101: N
A102: 2004 | B102: 2004 | I102: J | J102: P
A103: 2005 | B103: 2005 | I103: I | J103: P
A104: 2008 | B104: 2008 | I104: JI | J104: P
A105: 2010 | B105: 2010 | I105: Sec (16+) | J105: SEC
A106: 2011 | B106: 2011 | I106: Sec | J106: SEC
A107: 2014 | B107: 2014 | I107: Spcl | J107: SPEC
A108: 2015 | B108: 2015
A109: 2016 | B109: 2016
A110: 2017 | B110: 2017
A111: 2018 | B111: 2018
A112: 2019 | B112: 2019
A113: 2021 | B113: 2021
A114: 2024 | B114: 2024
A115: 2025 | B115: 2025
A116: 2026 | B116: 2026
A117: 2030 | B117: 2030
A118: 2040 | B118: 2040
A119: 2053 | B119: 2053
A120: 2054 | B120: 2054
A121: 2055 | B121: 2055
A122: 2062 | B122: 2062
A123: 2063 | B123: 2063
A124: 2067 | B124: 2067
A125: 2079 | B125: 2079
A126: 2081 | B126: 2081
A127: 2087 | B127: 2087
A128: 2091 | B128: 2091
A129: 2092 | B129: 2092
A130: 2093 | B130: 2093
A131: 2097 | B131: 2097
A132: 2099 | B132: 2099
A133: 2108 | B133: 2108
A134: 2115 | B134: 2115
A135: 2118 | B135: 2118
A136: 2119 | B136: 2119
A137: 2127 | B137: 2127
A138: 2128 | B138: 2128
A139: 2129 | B139: 2129
A140: 2133 | B140: 2133
A141: 2142 | B141: 2142
A142: 2149 | B142: 2149
A143: 2150 | B143: 2150
A144: 2153 | B144: 2153
A145: 2157 | B145: 2157
A146: 2159 | B146: 2159
A147: 2160 | B147: 2160
A148: 2161 | B148: 2161
A149: 2169 | B149: 2169
A150: 2174 | B150: 2174
A151: 2176 | B151: 2176
A152: 2178 | B152: 2178
A153: 2179 | B153: 2179
A154: 2183 | B154: 2183
A155: 2184 | B155: 2184
A156: 2185 | B156: 2185
A157: 2189 | B157: 2189
A158: 2190 | B158: 2190
A159: 2191 | B159: 2191
A160: 2192 | B160: 2192
A161: 2225 | B161: 2225
A162: 2227 | B162: 2227
A163: 2231 | B163: 2231
A164: 2236 | B164: 2236
A165: 2238 | B165: 2238
A166: 2239 | B166: 2239
A167: 2241 | B167: 2241
A168: 2245 | B168: 2245
A169: 2246 | B169: 2246
A170: 2251 | B170: 2251
A171: 2254 | B171: 2254
A172: 2278 | B172: 2278
A173: 2284 | B173: 2284
A174: 2288 | B174: 2288
A175: 2289 | B175: 2289
A176: 2293 | B176: 2293
A177: 2294 | B177: 2294
A178: 2296 | B178: 2296
A179: 2300 | B179: 2300
A180: 2306 | B180: 2306
A181: 2308 | B181: 2308
A182: 2312 | B182: 2312
A183: 2313 | B183: 2313
A184: 2314 | B184: 2314
A185: 2317 | B185: 2317
A186: 2321 | B186: 2321
A187: 2401 | B187: 2401
A188: 2402 | B188: 2402
A189: 2406 | B189: 2406
A190: 2412 | B190: 2412
A191: 2416 | B191: 2416
A192: 2420 | B192: 2420
A193: 2425 | B193: 2425
A194: 2429 | B194: 2429
A195: 2435 | B195: 2435
A196: 2436 | B196: 2436
A197: 2438 | B197: 2438
A198: 2441 | B198: 2441
A199: 2445 | B199: 2445
A200: 2454 | B200: 2454
A201: 2456 | B201: 2456
A202: 2457 | B202: 2457
A203: 2462 | B203: 2462
A204: 2464 | B204: 2464
A205: 2465 | B205: 2465
A206: 2466 | B206: 2466
A207: 2469 | B207: 2469
A208: 2474 | B208: 2474
A209: 2477 | B209: 2477
A210: 2478 | B210: 2478
A211: 2479 | B211: 2479
A212: 2482 | B212: 2482
A213: 2486 | B213: 2486
A214: 3002 | B214: 3002
A215: 3003 | B215: 3003
A216: 3010 | B216: 3010
A217: 3016 | B217: 3016
A218: 3019 | B218: 3019
A219: 3025 | B219: 3025
A220: 3302 | B220: 3302
A221: 3307 | B221: 3307
A222: 3310 | B222: 3310
A223: 3316 | B223: 3316
A224: 3317 | B224: 3317
A225: 3318 | B225: 3318
A226: 3319 | B226: 3319
A227: 3320 | B227: 3320
A228: 3321 | B228: 3321
A229: 3322 | B229: 3322
A230: 3323 | B230: 3323
A231: 3325 | B231: 3325
A232: 3328 | B232: 3328
A233: 3329 | B233: 3329
A234: 3331 | B234: 3331
A235: 3335 | B235: 3335
A236: 3337 | B236: 3337
A237: 3339 | B237: 3339
A238: 3342 | B238: 3342
A239: 3344 | B239: 3344
A240: 3346 | B240: 3346
A241: 3347 | B241: 3347
A242: 3351 | B242: 3351
A243: 3352 | B243: 3352
A244: 3353 | B244: 3353
A245: 3355 | B245: 3355
A246: 3357 | B246: 3357
A247: 3359 | B247: 3359
A248: 3360 | B248: 3360
A249: 3361 | B249: 3361
A250: 3363 | B250: 3363
A251: 3365 | B251: 3365
A252: 3367 | B252: 3367
A253: 3371 | B253: 3371
A254: 3372 | B254: 3372
A255: 3375 | B255: 3375
A256: 3377 | B256: 3377
A257: 3380 | B257: 3380
A258: 3381 | B258: 3381
A259: 3382 | B259: 3382
A260: 3383 | B260: 3383
A261: 3385 | B261: 3385
A262: 3386 | B262: 3386
A263: 3406 | B263: 3406
A264: 3410 | B264: 3410
A265: 3411 | B265: 3411
A266: 3421 | B266: 3421
A267: 3428 | B267: 3428
A268: 3431 | B268: 3431
A269: 3432 | B269: 3432
A270: 3435 | B270: 3435
A271: 3436 | B271: 3436
A272: 5202 | B272: 5202
A273: 5203 | B273: 5203
A274: 5949 | B274: 5949
A275: 7006 | B275: 7006
A276: 7009 | B276: 7009
A277: 7012 | B277: 7012
A278: 7014 | B278: 7014
A279: 7034 | B279: 7034
A280: 7035 | B280: 7035
A281: 7037 | B281: 7037
A282: 7040 | B282: 7040
A283: 7045 | B283: 7045
A284: 7047 | B284: 7047
A285: 7051 | B285: 7051
A286: 7052 | B286: 7052
A287: 7060 | B287: 7060
A288: 7062 | B288: 7062

Sheet DATA (hidden)
E8: School Budget Share Addition
E9: PE & SPORT PREMIUM ALLOCATIONS
E10: Financial Year 2019/20
E13: School Name: | G13: =+DFES!G1 -> William Murdoch Primary School
E14: DFE No: | G14: =+DFES!E1 -> 2293
E17: School Budget Share Addition Allocation Analysis
J20: No. of Eligible Pupils | K20: Allocation £ | M20: Proportion Allocated within 2019/20 Financial Year £
E21: 2018/19 Academic Year Allocation | J21: =VLOOKUP($G$14,'October figures 18 AY 18-19'!$B$3:$F$208,3,FALSE) -> 538 | K21: =VLOOKUP($G$14,'October figures 18 AY 18-19'!$B$3:$F$208,4,FALSE) -> 37380 | M21: =VLOOKUP($G$14,'October figures 18 AY 18-19'!$B$3:$G$208,6,FALSE) -> 15574
E22: (as notified previously October 2018)
E23: 2019/20 Academic Year Allocation | J23: =VLOOKUP($G$14+3300000,'AY 19-20 Sept to Marc'!$C$2:$G$189,3,FALSE) -> 534 | K23: =VLOOKUP($G$14+3300000,'AY 19-20 Sept to Marc'!$C$2:$G$189,4,FALSE) -> 21340 | M23: =VLOOKUP($G$14+3300000,'AY 19-20 Sept to Marc'!$C$2:$G$189,5,FALSE) -> 12448
E25: Total School Budget Share Addition 2019/20 | M25: =+M21+M23 -> 28022
E27: 2019/20 Academic Year Allocation allocations are calculated using the number of pupils in years 1 to 6,
E28: as recorded in the January 2019 census, as follows:
E29: schools with 17 or more pupils receive £16,000 plus £10 per pupil
E30: schools with 16 or fewer pupils receive £1,000 per pupil
E34: NOTES:
E35: * Cheque Book Schools will receive a Payment for the above amount shortly
E36: * Non Cheque Schools should ensure the allocation is entered onto their School Financial System with an
E37: appropriate journal entry, in the 2019/20 financial year.
E39: Further information conditions of grant and guidance on PE and Sport Premium grant my be found at
E40: https://www.gov.uk/guidance/pe-and-sport-premium-for-primary-schools
E42: If you have any queries about the Primary PE and Sports payment, please use the EFA Enquiry Form
E44: For all other enquires please e-mail: | H44: fairfunding@birmingham.gov.uk

Sheet DFES (hidden)
E1: 2293 | F1: =IF(ISERROR(VLOOKUP(E1,C10:L215,2,0)),0,VLOOKUP(E1,C10:L215,2,0)) -> William Murdoch Primary School | G1: =IF(ISERROR(VLOOKUP(E1,C10:L215,2,0)),0,VLOOKUP(E1,C10:L215,2,0)) -> William Murdoch Primary School
B2: 1 | C2: 1 | D2: 2 | E2: 3 | F2: 4 | G2: 5 | AD2: 29 | AE2: 30 | AF2: 31 | AG2: 32 | AH2: 33 | AI2: 34 | AJ2: 35 | AK2: 36 | AL2: 37 | AM2: 38 | AN2: 39 | AO2: 40 | AP2: 41 | AQ2: 42 | AR2: 43 | AS2: 44 | AT2: 45 | AU2: 46 | AV2: 47 | AW2: 48 | AX2: 49 | AY2: 50 | AZ2: 51 | BA2: 52 | BB2: 53 | BC2: 54 | BD2: 55 | BE2: 56 | BF2: 57 | BG2: 58 | BH2: 59 | BI2: 60
BA7: 49
A9: LA No. | B9: LA Name | C9: LAEstab (at September 2014) | D9: School Name latest list
A10: 330 | B10: Birmingham | C10: 1100 | D10: City of Birmingham School
A11: 330 | B11: Birmingham | C11: 2004 | D11: Mapledene Primary School
A12: 330 | B12: Birmingham | C12: 2005 | D12: Kings Heath Primary School
A13: 330 | B13: Birmingham | C13: 2008 | D13: Shaw Hill Primary School
A14: 330 | B14: Birmingham | C14: 2010 | D14: Adderley Primary School
A15: 330 | B15: Birmingham | C15: 2011 | D15: Wheelers Lane Primary School
A16: 330 | B16: Birmingham | C16: 2014 | D16: Barford Primary School
A17: 330 | B17: Birmingham | C17: 2015 | D17: James Watt Primary School
A18: 330 | B18: Birmingham | C18: 2016 | D18: Beeches Junior School
A19: 330 | B19: Birmingham | C19: 2017 | D19: Beeches Infant School
A20: 330 | B20: Birmingham | C20: 2018 | D20: The Oaks Primary School
A21: 330 | B21: Birmingham | C21: 2019 | D21: West Heath Primary School
A22: 330 | B22: Birmingham | C22: 2021 | D22: Paganel Primary School
A23: 330 | B23: Birmingham | C23: 2024 | D23: Birches Green Junior School
A24: 330 | B24: Birmingham | C24: 2025 | D24: Birches Green Infant School
A25: 330 | B25: Birmingham | C25: 2026 | D25: Banners Gate Primary School
A26: 330 | B26: Birmingham | C26: 2030 | D26: Bordesley Green Primary School
A27: 330 | B27: Birmingham | C27: 2034 | D27: Brookfields Primary School
A28: 330 | B28: Birmingham | C28: 2040 | D28: Cherry Orchard Primary School
A29: 330 | B29: Birmingham | C29: 2052 | D29: Colmers Farm Primary School
A30: 330 | B30: Birmingham | C30: 2053 | D30: Colmore Junior School
A31: 330 | B31: Birmingham | C31: 2054 | D31: Colmore Infant and Nursery School
A32: 330 | B32: Birmingham | C32: 2055 | D32: Cotteridge Primary School
A33: 330 | B33: Birmingham | C33: 2062 | D33: Anderton Park Primary School
A34: 330 | B34: Birmingham | C34: 2063 | D34: Regents Park Community Primary School
A35: 330 | B35: Birmingham | C35: 2067 | D35: Summerfield Junior and Infant School
A36: 330 | B36: Birmingham | C36: 2079 | D36: George Dixon Primary School
A37: 330 | B37: Birmingham | C37: 2081 | D37: Gilbertstone Primary School
A38: 330 | B38: Birmingham | C38: 2087 | D38: Grendon Junior and Infant School (NC)
A39: 330 | B39: Birmingham | C39: 2091 | D39: Gunter Primary School
A40: 330 | B40: Birmingham | C40: 2092 | D40: Hall Green Junior School
A41: 330 | B41: Birmingham | C41: 2093 | D41: Hall Green Infant School
A42: 330 | B42: Birmingham | C42: 2097 | D42: Story Wood School and Children's Centre
A43: 330 | B43: Birmingham | C43: 2099 | D43: Hawthorn Primary School
A44: 330 | B44: Birmingham | C44: 2108 | D44: Ward End Primary School
A45: 330 | B45: Birmingham | C45: 2115 | D45: Kingsland Primary School (NC)
A46: 330 | B46: Birmingham | C46: 2118 | D46: Kings Norton Junior and Infant School
A47: 330 | B47: Birmingham | C47: 2119 | D47: Lakey Lane Junior and Infant School
A48: 330 | B48: Birmingham | C48: 2127 | D48: Lozells Junior and Infant School and Nursery
A49: 330 | B49: Birmingham | C49: 2128 | D49: Lyndon Green Junior School
A50: 330 | B50: Birmingham | C50: 2129 | D50: Lyndon Green Infant School
A51: 330 | B51: Birmingham | C51: 2132 | D51: Marlborough Infant School
A52: 330 | B52: Birmingham | C52: 2133 | D52: Marsh Hill Primary School
A53: 330 | B53: Birmingham | C53: 2142 | D53: Nelson Junior and Infant School
A54: 330 | B54: Birmingham | C54: 2149 | D54: Paget Primary School
A55: 330 | B55: Birmingham | C55: 2150 | D55: Park Hill Primary School
A56: 330 | B56: Birmingham | C56: 2153 | D56: Allens Croft Primary School
A57: 330 | B57: Birmingham | C57: 2155 | D57: Princethorpe Junior School
A58: 330 | B58: Birmingham | C58: 2157 | D58: Raddlebarn Primary School
A59: 330 | B59: Birmingham | C59: 2159 | D59: Redhill Junior and Infant School
A60: 330 | B60: Birmingham | C60: 2160 | D60: Rednal Hill Junior School
A61: 330 | B61: Birmingham | C61: 2161 | D61: Rednal Hill Infant School
A62: 330 | B62: Birmingham | C62: 2169 | D62: Severne Junior Infant and Nursery School
A63: 330 | B63: Birmingham | C63: 2174 | D63: Sladefield Infant School
A64: 330 | B64: Birmingham | C64: 2176 | D64: Somerville Primary (NC) School
A65: 330 | B65: Birmingham | C65: 2178 | D65: Stanville Primary School
A66: 330 | B66: Birmingham | C66: 2179 | D66: Starbank School
A67: 330 | B67: Birmingham | C67: 2183 | D67: St Benedict's Infant School
A68: 330 | B68: Birmingham | C68: 2184 | D68: Stechford Primary School
A69: 330 | B69: Birmingham | C69: 2185 | D69: Colebourne Primary School
A70: 330 | B70: Birmingham | C70: 2189 | D70: Ladypool Primary School
A71: 330 | B71: Birmingham | C71: 2190 | D71: Sundridge Primary School
A72: 330 | B72: Birmingham | C72: 2191 | D72: Court Farm Primary School
A73: 330 | B73: Birmingham | C73: 2192 | D73: Thornton Primary School
A74: 330 | B74: Birmingham | C74: 2225 | D74: World's End Junior School
A75: 330 | B75: Birmingham | C75: 2227 | D75: Yardley Wood Community Primary School
A76: 330 | B76: Birmingham | C76: 2231 | D76: Yorkmead Junior and Infant School
A77: 330 | B77: Birmingham | C77: 2236 | D77: Broadmeadow Junior School
A78: 330 | B78: Birmingham | C78: 2238 | D78: Broadmeadow Infant School
A79: 330 | B79: Birmingham | C79: 2239 | D79: Bellfield Infant School (NC)
A80: 330 | B80: Birmingham | C80: 2241 | D80: Bellfield Junior School
A81: 330 | B81: Birmingham | C81: 2245 | D81: Welsh House Farm Community School and Special Needs Resources Base
A82: 330 | B82: Birmingham | C82: 2246 | D82: The Meadows Primary School
A83: 330 | B83: Birmingham | C83: 2251 | D83: Chilcote Primary School
A84: 330 | B84: Birmingham | C84: 2254 | D84: Blakesley Hall Primary School
A85: 330 | B85: Birmingham | C85: 2276 | D85: Wilkes Green Infant School (NC)
A86: 330 | B86: Birmingham | C86: 2278 | D86: Woodgate Primary School
A87: 330 | B87: Birmingham | C87: 2283 | D87: Marlborough Junior School
A88: 330 | B88: Birmingham | C88: 2284 | D88: Deykin Avenue Junior and Infant School
A89: 330 | B89: Birmingham | C89: 2288 | D89: Hollywood Primary School
A90: 330 | B90: Birmingham | C90: 2289 | D90: Cofton Primary School
A91: 330 | B91: Birmingham | C91: 2293 | D91: William Murdoch Primary School
A92: 330 | B92: Birmingham | C92: 2294 | D92: Featherstone Primary School
A93: 330 | B93: Birmingham | C93: 2296 | D93: Glenmead Primary School
A94: 330 | B94: Birmingham | C94: 2297 | D94: Birchfield Community School
A95: 330 | B95: Birmingham | C95: 2300 | D95: Arden Primary School
A96: 330 | B96: Birmingham | C96: 2306 | D96: Water Mill Primary School
A97: 330 | B97: Birmingham | C97: 2308 | D97: Welford Primary School
A98: 330 | B98: Birmingham | C98: 2312 | D98: Chad Vale Primary School
A99: 330 | B99: Birmingham | C99: 2313 | D99: Heath Mount Primary School
A100: 330 | B100: Birmingham | C100: 2314 | D100: Woodthorpe Junior and Infant School
A101: 330 | B101: Birmingham | C101: 2317 | D101: World's End Infant and Nursery School
A102: 330 | B102: Birmingham | C102: 2321 | D102: Kitwell Primary School and Nursery Class
A103: 330 | B103: Birmingham | C103: 2401 | D103: Boldmere Junior School
A104: 330 | B104: Birmingham | C104: 2402 | D104: Boldmere Infant School and Nursery
A105: 330 | B105: Birmingham | C105: 2406 | D105: Minworth Junior and Infant School
A106: 330 | B106: Birmingham | C106: 2412 | D106: Wylde Green Primary School
A107: 330 | B107: Birmingham | C107: 2416 | D107: Moor Hall Primary School
A108: 330 | B108: Birmingham | C108: 2420 | D108: Maney Hill Primary School
A109: 330 | B109: Birmingham | C109: 2425 | D109: Penns Primary School
A110: 330 | B110: Birmingham | C110: 2429 | D110: Holland House Infant School and Nursery
A111: 330 | B111: Birmingham | C111: 2435 | D111: Benson Community School
A112: 330 | B112: Birmingham | C112: 2436 | D112: Osborne Primary School
A113: 330 | B113: Birmingham | C113: 2438 | D113: Highters Heath Community School
A114: 330 | B114: Birmingham | C114: 2441 | D114: Kingsthorne Primary School
A115: 330 | B115: Birmingham | C115: 2445 | D115: Woodcock Hill Primary School
A116: 330 | B116: Birmingham | C116: 2454 | D116: Elms Farm Community Primary School
A117: 330 | B117: Birmingham | C117: 2456 | D117: Bells Farm Primary School
A118: 330 | B118: Birmingham | C118: 2457 | D118: Nelson Mandela School
A119: 330 | B119: Birmingham | C119: 2462 | D119: Little Sutton Primary School
A120: 330 | B120: Birmingham | C120: 2464 | D120: Coppice Primary School
A121: 330 | B121: Birmingham | C121: 2465 | D121: Calshot Primary School
A122: 330 | B122: Birmingham | C122: 2466 | D122: Grove School
A123: 330 | B123: Birmingham | C123: 2469 | D123: New Hall Primary and Children's Centre
A124: 330 | B124: Birmingham | C124: 2474 | D124: Hollyfield Primary School
A125: 330 | B125: Birmingham | C125: 2477 | D125: Harborne Primary School
A126: 330 | B126: Birmingham | C126: 2478 | D126: Whitehouse Common Primary School
A127: 330 | B127: Birmingham | C127: 2479 | D127: Anglesey Primary School
A128: 330 | B128: Birmingham | C128: 2482 | D128: Wattville Primary School
A129: 330 | B129: Birmingham | C129: 2485 | D129: Yenton Primary School
A130: 330 | B130: Birmingham | C130: 2486 | D130: Forestdale Primary School
A131: 330 | B131: Birmingham | C131: 3002 | D131: Christ Church CofE Controlled Primary School and Nursery
A132: 330 | B132: Birmingham | C132: 3003 | D132: Moseley Church of England Primary School
A133: 330 | B133: Birmingham | C133: 3010 | D133: St James Church of England Primary School, Handsworth
A134: 330 | B134: Birmingham | C134: 3016 | D134: St Matthew's CofE Primary School
A135: 330 | B135: Birmingham | C135: 3019 | D135: St Saviour's C of E Primary School
A136: 330 | B136: Birmingham | C136: 3025 | D136: St Mary's Church of England Primary School
A137: 330 | B137: Birmingham | C137: 3302 | D137: Saint Barnabas Church of England Primary School
A138: 330 | B138: Birmingham | C138: 3307 | D138: St Laurence Church Junior School
A139: 330 | B139: Birmingham | C139: 3310 | D139: St Vincent's Catholic Primary School
A140: 330 | B140: Birmingham | C140: 3316 | D140: Guardian Angels Catholic Primary School
A141: 330 | B141: Birmingham | C141: 3317 | D141: Holy Family Catholic Primary School
A142: 330 | B142: Birmingham | C142: 3318 | D142: Abbey Catholic Primary School
A143: 330 | B143: Birmingham | C143: 3319 | D143: Christ The King Catholic Primary School
A144: 330 | B144: Birmingham | C144: 3320 | D144: Corpus Christi Catholic Primary School
A145: 330 | B145: Birmingham | C145: 3321 | D145: English Martyrs' Catholic Primary School
A146: 330 | B146: Birmingham | C146: 3322 | D146: Maryvale Catholic Primary School
A147: 330 | B147: Birmingham | C147: 3323 | D147: The Oratory Roman Catholic Primary School
A148: 330 | B148: Birmingham | C148: 3325 | D148: The Rosary Catholic Primary School
A149: 330 | B149: Birmingham | C149: 3327 | D149: Holy Souls Catholic Primary School
A150: 330 | B150: Birmingham | C150: 3328 | D150: Our Lady of Lourdes Catholic Primary School (NC)
A151: 330 | B151: Birmingham | C151: 3329 | D151: St Augustine's Catholic Primary School
A152: 330 | B152: Birmingham | C152: 3331 | D152: St Catherine of Siena Catholic Primary School
A153: 330 | B153: Birmingham | C153: 3335 | D153: St Anne's Catholic Primary School
A154: 330 | B154: Birmingham | C154: 3337 | D154: St Chad's Catholic Primary School
A155: 330 | B155: Birmingham | C155: 3339 | D155: St Joseph's Catholic Primary School
A156: 330 | B156: Birmingham | C156: 3342 | D156: St Francis Catholic Primary School
A157: 330 | B157: Birmingham | C157: 3344 | D157: St Mary's Catholic Primary School
A158: 330 | B158: Birmingham | C158: 3346 | D158: St Patrick's Catholic Primary School
A159: 330 | B159: Birmingham | C159: 3347 | D159: St Edmund's Catholic Primary School
A160: 330 | B160: Birmingham | C160: 3349 | D160: St Thomas More Catholic Primary School
A161: 330 | B161: Birmingham | C161: 3350 | D161: St Mary and St John Junior and Infant School
A162: 330 | B162: Birmingham | C162: 3351 | D162: Our Lady and St Rose of Lima Catholic Primary School
A163: 330 | B163: Birmingham | C163: 3352 | D163: King David Junior and Infant School
A164: 330 | B164: Birmingham | C164: 3353 | D164: Bournville Village Primary
A165: 330 | B165: Birmingham | C165: 3354 | D165: Bournville Infant School
A166: 330 | B166: Birmingham | C166: 3355 | D166: St Edward's Catholic Primary School
A167: 330 | B167: Birmingham | C167: 3357 | D167: Our Lady's Catholic Primary School
A168: 330 | B168: Birmingham | C168: 3359 | D168: St Wilfrid's Catholic Junior and Infant School
A169: 330 | B169: Birmingham | C169: 3360 | D169: St John Fisher Catholic Primary School
A170: 330 | B170: Birmingham | C170: 3361 | D170: St Margaret Mary RC Junior and Infant School
A171: 330 | B171: Birmingham | C171: 3362 | D171: St Peter and St Paul RC Junior and Infant School
A172: 330 | B172: Birmingham | C172: 3363 | D172: St Dunstan's Catholic Primary School
A173: 330 | B173: Birmingham | C173: 3365 | D173: St Teresa's Catholic Primary School
A174: 330 | B174: Birmingham | C174: 3367 | D174: St Gerard's RC Junior and Infant School
A175: 330 | B175: Birmingham | C175: 3371 | D175: St Laurence Church Infant School
A176: 330 | B176: Birmingham | C176: 3372 | D176: St Bernadette's Catholic Primary School
A177: 330 | B177: Birmingham | C177: 3375 | D177: St Bernard's Catholic Primary School
A178: 330 | B178: Birmingham | C178: 3377 | D178: St Jude's Catholic Primary School
A179: 330 | B179: Birmingham | C179: 3380 | D179: St Ambrose Barlow Catholic Primary School
A180: 330 | B180: Birmingham | C180: 3381 | D180: St Alban's Catholic Primary School
A181: 330 | B181: Birmingham | C181: 3382 | D181: St Martin de Porres Catholic Primary School
A182: 330 | B182: Birmingham | C182: 3383 | D182: St Mark's Catholic Primary School
A183: 330 | B183: Birmingham | C183: 3385 | D183: St Peter's Catholic Primary School
A184: 330 | B184: Birmingham | C184: 3386 | D184: St Cuthbert's RC Junior and Infant (NC) School
A185: 330 | B185: Birmingham | C185: 3406 | D185: St Clare's Catholic Primary School
A186: 330 | B186: Birmingham | C186: 3409 | D186: Sacred Heart Catholic School
A187: 330 | B187: Birmingham | C187: 3410 | D187: St John and Monica Catholic Primary School
A188: 330 | B188: Birmingham | C188: 3411 | D188: Holly Hill Methodist CofE Infant School
A189: 330 | B189: Birmingham | C189: 3413 | D189: Springfield Primary School
A190: 330 | B190: Birmingham | C190: 3421 | D190: Yardley Primary School
A191: 330 | B191: Birmingham | C191: 3428 | D191: St Peters CofE Primary School
A192: 330 | B192: Birmingham | C192: 3431 | D192: New Oscott Primary School
A193: 330 | B193: Birmingham | C193: 3432 | D193: Clifton Primary School
A194: 330 | B194: Birmingham | C194: 3435 | D194: Four Oaks Primary School
A195: 330 | B195: Birmingham | C195: 3436 | D195: Harper Bell Seventh-day Adventist School
A196: 330 | B196: Birmingham | C196: 4334 | D196: Al-Hijrah School
A197: 330 | B197: Birmingham | C197: 5202 | D197: Walmley Junior School
A198: 330 | B198: Birmingham | C198: 5203 | D198: Walmley Infant School
A199: 330 | B199: Birmingham | C199: 5949 | D199: Al-Furqan Primary School
A200: 330 | B200: Birmingham | C200: 7006 | D200: Hamilton School
A201: 330 | B201: Birmingham | C201: 7009 | D201: Victoria School
A202: 330 | B202: Birmingham | C202: 7012 | D202: Longwill A Primary School for Deaf Children
A203: 330 | B203: Birmingham | C203: 7014 | D203: Uffculme School
A204: 330 | B204: Birmingham | C204: 7033 | D204: Selly Oak Trust School
A205: 330 | B205: Birmingham | C205: 7034 | D205: Priestley Smith School
... 38 more rows

Sheet SBS File Check (hidden)
B1: 2018/19 SCHOOL BUDGET SHARE ADDITIONS file as at 02/5/2019
B2: DOE No | C2: Fund Centre | D2: Cheque Book | E2: School Name | F2: Fair Funding Formula Budget Share | G2: PE and Sport Grant
B4: 1027 | C4: REAYW | E4: ADDERLEY Nurs | F4: 0 | I4: =IFERROR(VLOOKUP(B4,'October figures 18 AY 18-19'!$B$3:$G$208,6,FALSE),0)-G4 -> 0
B5: 1017 | C5: REAYX | D5: CB | E5: ALLENS CROFT Nurs | F5: 2300100007 | I5: =IFERROR(VLOOKUP(B5,'October figures 18 AY 18-19'!$B$3:$G$208,6,FALSE),0)-G5 -> 0
B6: 1025 | C6: REAYY | E6: BLOOMSBURY Nurs | F6: 0 | I6: =IFERROR(VLOOKUP(B6,'October figures 18 AY 18-19'!$B$3:$G$208,6,FALSE),0)-G6 -> 0
B7: 1001 | C7: REAYZ | E7: BORDESLEY GREEN Nurs | F7: 0 | I7: =IFERROR(VLOOKUP(B7,'October figures 18 AY 18-19'!$B$3:$G$208,6,FALSE),0)-G7 -> 0
B8: 1002 | C8: REAZA | E8: BREARLEY ST Nurs | F8: 0 | I8: =IFERROR(VLOOKUP(B8,'October figures 18 AY 18-19'!$B$3:$G$208,6,FALSE),0)-G8 -> 0
B9: 1048 | C9: REAZB | E9: CASTLE VALE Nurs | F9: 0 | I9: =IFERROR(VLOOKUP(B9,'October figures 18 AY 18-19'!$B$3:$G$208,6,FALSE),0)-G9 -> 0
B10: 1802 | C10: REAYF | E10: EDITH CADBURY Nrsy | F10: 0 | I10: =IFERROR(VLOOKUP(B10,'October figures 18 AY 18-19'!$B$3:$G$208,6,FALSE),0)-G10 -> 0
B11: 1026 | C11: REAZC | E11: FEATHERSTONE Nurs | F11: 0 | I11: =IFERROR(VLOOKUP(B11,'October figures 18 AY 18-19'!$B$3:$G$208,6,FALSE),0)-G11 -> 0
B12: 1006 | C12: REAZD | E12: GARRETTS GREEN Nurs | F12: 0 | I12: =IFERROR(VLOOKUP(B12,'October figures 18 AY 18-19'!$B$3:$G$208,6,FALSE),0)-G12 -> 0
B13: 1015 | C13: REAZE | E13: GOODWAY Nurs | F13: 0 | I13: =IFERROR(VLOOKUP(B13,'October figures 18 AY 18-19'!$B$3:$G$208,6,FALSE),0)-G13 -> 0
B14: 1022 | C14: REAZF | E14: GRACELANDS Nurs | F14: 0 | I14: =IFERROR(VLOOKUP(B14,'October figures 18 AY 18-19'!$B$3:$G$208,6,FALSE),0)-G14 -> 0
B15: 1010 | C15: REAZG | E15: HIGHFIELD Nurs | F15: 0 | I15: =IFERROR(VLOOKUP(B15,'October figures 18 AY 18-19'!$B$3:$G$208,6,FALSE),0)-G15 -> 0
B16: 1021 | C16: REAZH | E16: HIGHTERS HEATH Nurs | F16: 0 | I16: =IFERROR(VLOOKUP(B16,'October figures 18 AY 18-19'!$B$3:$G$208,6,FALSE),0)-G16 -> 0
B17: 1023 | C17: REAZJ | E17: JAKEMAN Nurs | F17: 0 | I17: =IFERROR(VLOOKUP(B17,'October figures 18 AY 18-19'!$B$3:$G$208,6,FALSE),0)-G17 -> 0
B18: 1016 | C18: REAZK | E18: KINGS NORTON Nurs | F18: 0 | I18: =IFERROR(VLOOKUP(B18,'October figures 18 AY 18-19'!$B$3:$G$208,6,FALSE),0)-G18 -> 0
B19: 1024 | C19: REAZL | E19: LILLIAN DE LISSA Nurs | F19: 0 | I19: =IFERROR(VLOOKUP(B19,'October figures 18 AY 18-19'!$B$3:$G$208,6,FALSE),0)-G19 -> 0
B20: 1012 | C20: REAZM | E20: MARSH HILL Nurs | F20: 0 | I20: =IFERROR(VLOOKUP(B20,'October figures 18 AY 18-19'!$B$3:$G$208,6,FALSE),0)-G20 -> 0
B21: 1028 | C21: REAZN | E21: NEWTOWN Nurs | F21: 0 | I21: =IFERROR(VLOOKUP(B21,'October figures 18 AY 18-19'!$B$3:$G$208,6,FALSE),0)-G21 -> 0
B22: 1049 | C22: REAZP | E22: OSBORNE Nurs | F22: 0 | I22: =IFERROR(VLOOKUP(B22,'October figures 18 AY 18-19'!$B$3:$G$208,6,FALSE),0)-G22 -> 0
B23: 1008 | C23: REAZQ | E23: PERRY BEECHES Nurs | F23: 0 | I23: =IFERROR(VLOOKUP(B23,'October figures 18 AY 18-19'!$B$3:$G$208,6,FALSE),0)-G23 -> 0
B24: 1018 | C24: REAZT | E24: RUBERY Nurs | F24: 0 | I24: =IFERROR(VLOOKUP(B24,'October figures 18 AY 18-19'!$B$3:$G$208,6,FALSE),0)-G24 -> 0
B25: 1000 | C25: REAZU | E25: SELLY OAK Nurs | F25: 0 | I25: =IFERROR(VLOOKUP(B25,'October figures 18 AY 18-19'!$B$3:$G$208,6,FALSE),0)-G25 -> 0
B26: 1038 | C26: REAZV | E26: SHENLEY FIELDS Nurs | F26: 0 | I26: =IFERROR(VLOOKUP(B26,'October figures 18 AY 18-19'!$B$3:$G$208,6,FALSE),0)-G26 -> 0
B27: 1009 | C27: REAZR | E27: ST THOMAS Nurs | F27: 0 | I27: =IFERROR(VLOOKUP(B27,'October figures 18 AY 18-19'!$B$3:$G$208,6,FALSE),0)-G27 -> 0
B28: 1019 | C28: REAZW | E28: WASHWOOD HEATH Nurs | F28: 0 | I28: =IFERROR(VLOOKUP(B28,'October figures 18 AY 18-19'!$B$3:$G$208,6,FALSE),0)-G28 -> 0
B29: 1020 | C29: REAZX | E29: WEOLEY CASTLE Nurs | F29: 0 | I29: =IFERROR(VLOOKUP(B29,'October figures 18 AY 18-19'!$B$3:$G$208,6,FALSE),0)-G29 -> 0
B30: 1014 | C30: REAZY | E30: WEST HEATH Nurs | F30: 0 | I30: =IFERROR(VLOOKUP(B30,'October figures 18 AY 18-19'!$B$3:$G$208,6,FALSE),0)-G30 -> 0
G31: REB25
B32: 3318 | C32: REAAA | E32: ABBEY RC JI | F32: 0 | G32: 8154 | I32: =IFERROR(VLOOKUP(B32,'October figures 18 AY 18-19'!$B$3:$G$208,6,FALSE),0)-G32 -> 0
B33: 2010 | C33: REAAD | D33: CB | E33: ADDERLEY JI | F33: 2300100156 | G33: 8842 | I33: =IFERROR(VLOOKUP(B33,'October figures 18 AY 18-19'!$B$3:$G$208,6,FALSE),0)-G33 -> 0
B34: 5949 | C34: REAAE | E34: AL-FURQAN JI | F34: 0 | G34: 8908 | I34: =IFERROR(VLOOKUP(B34,'October figures 18 AY 18-19'!$B$3:$G$208,6,FALSE),0)-G34 -> 0
B35: 2153 | C35: REAAH | E35: ALLENS CROFT JI | F35: 0 | G35: 7917 | I35: =IFERROR(VLOOKUP(B35,'October figures 18 AY 18-19'!$B$3:$G$208,6,FALSE),0)-G35 -> 0
B36: 2062 | C36: REAAK | D36: CB | E36: ANDERTON PARK JI NC | F36: 2300100101 | G36: 9096 | I36: =IFERROR(VLOOKUP(B36,'October figures 18 AY 18-19'!$B$3:$G$208,6,FALSE),0)-G36 -> 0
B37: 2479 | C37: REAAM | E37: ANGLESEY JI NC | F37: 0 | G37: 9075 | I37: =IFERROR(VLOOKUP(B37,'October figures 18 AY 18-19'!$B$3:$G$208,6,FALSE),0)-G37 -> 0
B38: 2300 | C38: REAAN | E38: ARDEN JI NC | F38: 0 | G38: 8917 | I38: =IFERROR(VLOOKUP(B38,'October figures 18 AY 18-19'!$B$3:$G$208,6,FALSE),0)-G38 -> 0
B39: 2026 | C39: REAAV | E39: BANNERS GATE PRIMARY SCHOOL JI NC | F39: 0 | G39: 8021 | I39: =IFERROR(VLOOKUP(B39,'October figures 18 AY 18-19'!$B$3:$G$208,6,FALSE),0)-G39 -> 0
B40: 2014 | C40: REAAW | E40: BARFORD JI NC | F40: 0 | G40: 8129 | I40: =IFERROR(VLOOKUP(B40,'October figures 18 AY 18-19'!$B$3:$G$208,6,FALSE),0)-G40 -> 0
B41: 2239 | C41: REAAY | E41: BELLFIELD I NC | F41: 0 | G41: 7408 | I41: =IFERROR(VLOOKUP(B41,'October figures 18 AY 18-19'!$B$3:$G$208,6,FALSE),0)-G41 -> 0
B42: 2241 | C42: REAAZ | E42: BELLFIELD J | F42: 0 | G42: 7729 | I42: =IFERROR(VLOOKUP(B42,'October figures 18 AY 18-19'!$B$3:$G$208,6,FALSE),0)-G42 -> 0
B43: 2456 | C43: REABA | E43: BELLS FARM JI | F43: 0 | G43: 7383 | I43: =IFERROR(VLOOKUP(B43,'October figures 18 AY 18-19'!$B$3:$G$208,6,FALSE),0)-G43 -> 0
B44: 2435 | C44: REABB | E44: BENSON JI NC | F44: 0 | G44: 8554 | I44: =IFERROR(VLOOKUP(B44,'October figures 18 AY 18-19'!$B$3:$G$208,6,FALSE),0)-G44 -> 0
B45: 2025 | C45: REABE | E45: BIRCHES GREEN I NC | F45: 0 | G45: 7150 | I45: =IFERROR(VLOOKUP(B45,'October figures 18 AY 18-19'!$B$3:$G$208,6,FALSE),0)-G45 -> 0
B46: 2024 | C46: REABF | E46: BIRCHES GREEN J | F46: 0 | G46: 7596 | I46: =IFERROR(VLOOKUP(B46,'October figures 18 AY 18-19'!$B$3:$G$208,6,FALSE),0)-G46 -> 0
B47: 2254 | C47: REABK | D47: CB | E47: BLAKESLEY HALL JI | F47: 2300100033 | G47: 8896 | I47: =IFERROR(VLOOKUP(B47,'October figures 18 AY 18-19'!$B$3:$G$208,6,FALSE),0)-G47 -> 0
B48: 2402 | C48: REABL | D48: CB | E48: BOLDMERE I NC | F48: 2300100009 | G48: 7417 | I48: =IFERROR(VLOOKUP(B48,'October figures 18 AY 18-19'!$B$3:$G$208,6,FALSE),0)-G48 -> 0
B49: 2401 | C49: REABM | D49: CB | E49: BOLDMERE J | F49: 2300100046 | G49: 8175 | I49: =IFERROR(VLOOKUP(B49,'October figures 18 AY 18-19'!$B$3:$G$208,6,FALSE),0)-G49 -> 0
B50: 2030 | C50: REABN | D50: CB | E50: BORDESLEY GREEN JI NC | F50: 2300100051 | G50: 9158 | I50: =IFERROR(VLOOKUP(B50,'October figures 18 AY 18-19'!$B$3:$G$208,6,FALSE),0)-G50 -> 0
B51: 3354 | C51: REABQ | E51: BOURNVILLE I | F51: 0 | G51: 7417 | I51: =IFERROR(VLOOKUP(B51,'October figures 18 AY 18-19'!$B$3:$G$208,6,FALSE),0)-G51 -> 0
B52: 3353 | C52: REABR | E52: BOURNVILLE J | F52: 0 | G52: 8258 | I52: =IFERROR(VLOOKUP(B52,'October figures 18 AY 18-19'!$B$3:$G$208,6,FALSE),0)-G52 -> 7417
B53: 2238 | C53: REABT | D53: CB | E53: BROADMEADOW I NC | F53: 2300100006 | G53: 7154 | I53: =IFERROR(VLOOKUP(B53,'October figures 18 AY 18-19'!$B$3:$G$208,6,FALSE),0)-G53 -> 0
B54: 2236 | C54: REABV | D54: CB | E54: BROADMEADOW J | F54: 2300100034 | G54: 7600 | I54: =IFERROR(VLOOKUP(B54,'October figures 18 AY 18-19'!$B$3:$G$208,6,FALSE),0)-G54 -> 0
B55: 2465 | C55: REACB | E55: CALSHOT JI NC | F55: 0 | G55: 8162 | I55: =IFERROR(VLOOKUP(B55,'October figures 18 AY 18-19'!$B$3:$G$208,6,FALSE),0)-G55 -> 0
B56: 2312 | C56: REACD | E56: CHAD VALE JI | F56: 0 | G56: 8171 | I56: =IFERROR(VLOOKUP(B56,'October figures 18 AY 18-19'!$B$3:$G$208,6,FALSE),0)-G56 -> 0
B57: 2040 | C57: REACF | E57: CHERRY ORCHARD JI NC | F57: 0 | G57: 8221 | I57: =IFERROR(VLOOKUP(B57,'October figures 18 AY 18-19'!$B$3:$G$208,6,FALSE),0)-G57 -> 0
B58: 2251 | C58: REACG | D58: CB | E58: CHILCOTE JI NC | F58: 2300000059 | G58: 8162 | I58: =IFERROR(VLOOKUP(B58,'October figures 18 AY 18-19'!$B$3:$G$208,6,FALSE),0)-G58 -> 0
B59: 3319 | C59: REACJ | D59: CB | E59: CHRIST THE KING RC JI NC | F59: 2300100054 | G59: 7987 | I59: =IFERROR(VLOOKUP(B59,'October figures 18 AY 18-19'!$B$3:$G$208,6,FALSE),0)-G59 -> 0
B60: 3002 | C60: REACK | D60: CB | E60: CHRISTCHURCH CE JI NC | F60: 2300100068 | G60: 7417 | I60: =IFERROR(VLOOKUP(B60,'October figures 18 AY 18-19'!$B$3:$G$208,6,FALSE),0)-G60 -> 0
B61: 3432 | C61: REACN | E61: CLIFTON JI NC | F61: 0 | G61: 9662 | I61: =IFERROR(VLOOKUP(B61,'October figures 18 AY 18-19'!$B$3:$G$208,6,FALSE),0)-G61 -> 0
B62: 2289 | C62: REACP | E62: COFTON JI | F62: 0 | G62: 7817 | I62: =IFERROR(VLOOKUP(B62,'October figures 18 AY 18-19'!$B$3:$G$208,6,FALSE),0)-G62 -> 0
B63: 2185 | C63: REACQ | E63: COLEBOURNE JI | F63: 0 | G63: 8171 | I63: =IFERROR(VLOOKUP(B63,'October figures 18 AY 18-19'!$B$3:$G$208,6,FALSE),0)-G63 -> 0
B64: 2054 | C64: REACV | D64: CB | E64: COLMORE I NC | F64: 2300000073 | G64: 7667 | I64: =IFERROR(VLOOKUP(B64,'October figures 18 AY 18-19'!$B$3:$G$208,6,FALSE),0)-G64 -> 0
B65: 2053 | C65: REACW | D65: CB | E65: COLMORE J | F65: 2300000071 | G65: 8658 | I65: =IFERROR(VLOOKUP(B65,'October figures 18 AY 18-19'!$B$3:$G$208,6,FALSE),0)-G65 -> 0
B66: 2464 | C66: REACY | E66: COPPICE JI | F66: 0 | G66: 8183 | I66: =IFERROR(VLOOKUP(B66,'October figures 18 AY 18-19'!$B$3:$G$208,6,FALSE),0)-G66 -> 0
B67: 3320 | C67: REACZ | E67: CORPUS CHRISTI RC JI | F67: 0 | G67: 8158 | I67: =IFERROR(VLOOKUP(B67,'October figures 18 AY 18-19'!$B$3:$G$208,6,FALSE),0)-G67 -> 0
B68: 2055 | C68: READA | E68: COTTERIDGE JI NC | F68: 0 | G68: 8112 | I68: =IFERROR(VLOOKUP(B68,'October figures 18 AY 18-19'!$B$3:$G$208,6,FALSE),0)-G68 -> 0
B69: 2191 | C69: READD | E69: COURT FARM JI | F69: 0 | G69: 7408 | I69: =IFERROR(VLOOKUP(B69,'October figures 18 AY 18-19'!$B$3:$G$208,6,FALSE),0)-G69 -> 0
B70: 2284 | C70: READG | E70: DEYKIN AVENUE JI | F70: 0 | G70: 7417 | I70: =IFERROR(VLOOKUP(B70,'October figures 18 AY 18-19'!$B$3:$G$208,6,FALSE),0)-G70 -> 0
B71: 2454 | C71: READJ | E71: ELMS FARM JI NC | F71: 0 | G71: 7971 | I71: =IFERROR(VLOOKUP(B71,'October figures 18 AY 18-19'!$B$3:$G$208,6,FALSE),0)-G71 -> 0
B72: 3321 | C72: READK | E72: ENGLISH MARTYRS RC JI | F72: 0 | G72: 8142 | I72: =IFERROR(VLOOKUP(B72,'October figures 18 AY 18-19'!$B$3:$G$208,6,FALSE),0)-G72 -> 0
B73: 2294 | C73: READN | E73: FEATHERSTONE JI | F73: 0 | G73: 8012 | I73: =IFERROR(VLOOKUP(B73,'October figures 18 AY 18-19'!$B$3:$G$208,6,FALSE),0)-G73 -> 0
B74: 2486 | C74: READY | E74: FORESTDALE JI NC | F74: 0 | G74: 7408 | I74: =IFERROR(VLOOKUP(B74,'October figures 18 AY 18-19'!$B$3:$G$208,6,FALSE),0)-G74 -> 0
B75: 3435 | C75: READX | E75: FOUR OAKS JI | F75: 0 | G75: 8171 | I75: =IFERROR(VLOOKUP(B75,'October figures 18 AY 18-19'!$B$3:$G$208,6,FALSE),0)-G75 -> 0
B76: 2079 | C76: READZ | E76: GEORGE DIXON JI | F76: 0 | G76: 8071 | I76: =IFERROR(VLOOKUP(B76,'October figures 18 AY 18-19'!$B$3:$G$208,6,FALSE),0)-G76 -> 0
B77: 2081 | C77: REAEA | E77: GILBERTSTONE JI NC | F77: 0 | G77: 8175 | I77: =IFERROR(VLOOKUP(B77,'October figures 18 AY 18-19'!$B$3:$G$208,6,FALSE),0)-G77 -> 0
B78: 2296 | C78: REAEB | D78: CB | E78: GLENMEAD JI | F78: 2300100146 | G78: 8112 | I78: =IFERROR(VLOOKUP(B78,'October figures 18 AY 18-19'!$B$3:$G$208,6,FALSE),0)-G78 -> 0
B79: 2087 | C79: REAEH | E79: GRENDON JI NC | F79: 0 | G79: 7842 | I79: =IFERROR(VLOOKUP(B79,'October figures 18 AY 18-19'!$B$3:$G$208,6,FALSE),0)-G79 -> 0
B80: 2466 | C80: REAEK | E80: GROVE JI NC | F80: 0 | G80: 8912 | I80: =IFERROR(VLOOKUP(B80,'October figures 18 AY 18-19'!$B$3:$G$208,6,FALSE),0)-G80 -> 0
B81: 3316 | C81: REAEL | E81: GUARDIAN ANGELS RC JI | F81: 0 | G81: 7546 | I81: =IFERROR(VLOOKUP(B81,'October figures 18 AY 18-19'!$B$3:$G$208,6,FALSE),0)-G81 -> 0
B82: 2091 | C82: REAEM | E82: GUNTER JI NC | F82: 0 | G82: 7408 | I82: =IFERROR(VLOOKUP(B82,'October figures 18 AY 18-19'!$B$3:$G$208,6,FALSE),0)-G82 -> 0
B83: 2093 | C83: REAEN | E83: HALL GREEN I NC | F83: 0 | G83: 7667 | I83: =IFERROR(VLOOKUP(B83,'October figures 18 AY 18-19'!$B$3:$G$208,6,FALSE),0)-G83 -> 0
B84: 2092 | C84: REAEP | D84: CB | E84: HALL GREEN J | F84: 2300100121 | G84: 8658 | I84: =IFERROR(VLOOKUP(B84,'October figures 18 AY 18-19'!$B$3:$G$208,6,FALSE),0)-G84 -> 0
B85: 2477 | C85: REAER | E85: HARBORNE JI | F85: 0 | G85: 8908 | I85: =IFERROR(VLOOKUP(B85,'October figures 18 AY 18-19'!$B$3:$G$208,6,FALSE),0)-G85 -> 0
B86: 3436 | C86: REAHP | E86: HARPER BELL PRIMARY JI NC | F86: 0 | G86: 7375 | I86: =IFERROR(VLOOKUP(B86,'October figures 18 AY 18-19'!$B$3:$G$208,6,FALSE),0)-G86 -> 0
B87: 2099 | C87: REAEW | E87: HAWTHORN JI | F87: 0 | G87: 7404 | I87: =IFERROR(VLOOKUP(B87,'October figures 18 AY 18-19'!$B$3:$G$208,6,FALSE),0)-G87 -> 0
B88: 2313 | C88: REAEX | E88: HEATH MOUNT JI | F88: 0 | G88: 8133 | I88: =IFERROR(VLOOKUP(B88,'October figures 18 AY 18-19'!$B$3:$G$208,6,FALSE),0)-G88 -> 0
B89: 2438 | C89: REAFB | E89: HIGHTERS HEATH JI | F89: 0 | G89: 7404 | I89: =IFERROR(VLOOKUP(B89,'October figures 18 AY 18-19'!$B$3:$G$208,6,FALSE),0)-G89 -> 0
B90: 2429 | C90: REAFG | E90: HOLLAND HOUSE I NC | F90: 0 | G90: 7167 | I90: =IFERROR(VLOOKUP(B90,'October figures 18 AY 18-19'!$B$3:$G$208,6,FALSE),0)-G90 -> 0
B91: 3411 | C91: REAFH | E91: HOLLY HILL I NC | F91: 0 | G91: 7158 | I91: =IFERROR(VLOOKUP(B91,'October figures 18 AY 18-19'!$B$3:$G$208,6,FALSE),0)-G91 -> 0
B92: 2474 | C92: REAFK | E92: HOLLYFIELD JI | F92: 0 | G92: 8142 | I92: =IFERROR(VLOOKUP(B92,'October figures 18 AY 18-19'!$B$3:$G$208,6,FALSE),0)-G92 -> 0
B93: 2288 | C93: REAFL | E93: HOLLYWOOD JI | F93: 0 | G93: 8208 | I93: =IFERROR(VLOOKUP(B93,'October figures 18 AY 18-19'!$B$3:$G$208,6,FALSE),0)-G93 -> 0
B94: 3317 | C94: REAFP | E94: HOLY FAMILY RC JI NC | F94: 0 | G94: 7504 | I94: =IFERROR(VLOOKUP(B94,'October figures 18 AY 18-19'!$B$3:$G$208,6,FALSE),0)-G94 -> 0
B95: 3327 | C95: REAFQ | E95: HOLY SOULS RC JI | F95: 0 | G95: 1633.4 | I95: =IFERROR(VLOOKUP(B95,'October figures 18 AY 18-19'!$B$3:$G$208,6,FALSE),0)-G95 -> 6533.6 | J95: making 1/5th allocation
B96: 2015 | C96: REAFT | D96: CB | E96: JAMES WATT JI NC | F96: 2300100041 | G96: 8167 | I96: =IFERROR(VLOOKUP(B96,'October figures 18 AY 18-19'!$B$3:$G$208,6,FALSE),0)-G96 -> 0
B97: 3352 | C97: REAFW | E97: KING DAVID JI NC | F97: 0 | G97: 7400 | I97: =IFERROR(VLOOKUP(B97,'October figures 18 AY 18-19'!$B$3:$G$208,6,FALSE),0)-G97 -> 0
B98: 2005 | C98: REAFY | E98: KINGS HEATH JI NC | F98: 0 | G98: 8996 | I98: =IFERROR(VLOOKUP(B98,'October figures 18 AY 18-19'!$B$3:$G$208,6,FALSE),0)-G98 -> 0
B99: 2118 | C99: REAFZ | E99: KINGS NORTON JI | F99: 0 | G99: 8150 | I99: =IFERROR(VLOOKUP(B99,'October figures 18 AY 18-19'!$B$3:$G$208,6,FALSE),0)-G99 -> 0
B100: 2115 | C100: REAGB | E100: KINGSLAND JI NC | F100: 0 | G100: 7729 | I100: =IFERROR(VLOOKUP(B100,'October figures 18 AY 18-19'!$B$3:$G$208,6,FALSE),0)-G100 -> 0
B101: 2441 | C101: REAGC | E101: KINGSTHORNE JI NC | F101: 0 | G101: 8108 | I101: =IFERROR(VLOOKUP(B101,'October figures 18 AY 18-19'!$B$3:$G$208,6,FALSE),0)-G101 -> 0
B102: 2321 | C102: REAGD | E102: KITWELL JI NC | F102: 0 | G102: 7421 | I102: =IFERROR(VLOOKUP(B102,'October figures 18 AY 18-19'!$B$3:$G$208,6,FALSE),0)-G102 -> 0
B103: 2189 | C103: REAGE | E103: LADYPOOL JI NC | F103: 0 | G103: 8042 | I103: =IFERROR(VLOOKUP(B103,'October figures 18 AY 18-19'!$B$3:$G$208,6,FALSE),0)-G103 -> 0
B104: 2119 | C104: REAGF | E104: LAKEY LANE JI NC | F104: 0 | G104: 8171 | I104: =IFERROR(VLOOKUP(B104,'October figures 18 AY 18-19'!$B$3:$G$208,6,FALSE),0)-G104 -> 0
B105: 2462 | C105: REAGK | D105: CB | E105: LITTLE SUTTON JI | F105: 2300100057 | G105: 8167 | I105: =IFERROR(VLOOKUP(B105,'October figures 18 AY 18-19'!$B$3:$G$208,6,FALSE),0)-G105 -> 0
B106: 2127 | C106: REAGL | D106: CB | E106: LOZELLS JI NC | F106: 2300100081 | G106: 8175 | I106: =IFERROR(VLOOKUP(B106,'October figures 18 AY 18-19'!$B$3:$G$208,6,FALSE),0)-G106 -> 0
B107: 2129 | C107: REAGM | D107: CB | E107: LYNDON GREEN I | F107: 2300100099 | G107: 7454 | I107: =IFERROR(VLOOKUP(B107,'October figures 18 AY 18-19'!$B$3:$G$208,6,FALSE),0)-G107 -> 0
B108: 2128 | C108: REAGN | D108: CB | E108: LYNDON GREEN J | F108: 2300100035 | G108: 8212 | I108: =IFERROR(VLOOKUP(B108,'October figures 18 AY 18-19'!$B$3:$G$208,6,FALSE),0)-G108 -> 0
B109: 2420 | C109: REAGP | E109: MANEY HILL JI | F109: 0 | G109: 7667 | I109: =IFERROR(VLOOKUP(B109,'October figures 18 AY 18-19'!$B$3:$G$208,6,FALSE),0)-G109 -> 0
B110: 2004 | C110: REAGV | E110: MAPLEDENE JI NC | F110: 0 | G110: 7837 | I110: =IFERROR(VLOOKUP(B110,'October figures 18 AY 18-19'!$B$3:$G$208,6,FALSE),0)-G110 -> 0
B111: 2133 | C111: REAGY | D111: CB | E111: MARSH HILL JI | F111: 2300100076 | G111: 8137 | I111: =IFERROR(VLOOKUP(B111,'October figures 18 AY 18-19'!$B$3:$G$208,6,FALSE),0)-G111 -> 0
B112: 3322 | C112: REAGZ | D112: CB | E112: MARYVALE RC JI NC | F112: 2300100131 | G112: 7396 | I112: =IFERROR(VLOOKUP(B112,'October figures 18 AY 18-19'!$B$3:$G$208,6,FALSE),0)-G112 -> 0
B113: 2246 | C113: REAHA | E113: MEADOWS JI | F113: 0 | G113: 8737 | I113: =IFERROR(VLOOKUP(B113,'October figures 18 AY 18-19'!$B$3:$G$208,6,FALSE),0)-G113 -> 0
B114: 2406 | C114: REAHC | E114: MINWORTH JI | F114: 0 | G114: 7396 | I114: =IFERROR(VLOOKUP(B114,'October figures 18 AY 18-19'!$B$3:$G$208,6,FALSE),0)-G114 -> 0
B115: 2416 | C115: REAHG | E115: MOOR HALL JI | F115: 0 | G115: 7554 | I115: =IFERROR(VLOOKUP(B115,'October figures 18 AY 18-19'!$B$3:$G$208,6,FALSE),0)-G115 -> 0
B116: 3003 | C116: REAHH | E116: MOSELEY CE JI | F116: 0 | G116: 7429 | I116: =IFERROR(VLOOKUP(B116,'October figures 18 AY 18-19'!$B$3:$G$208,6,FALSE),0)-G116 -> 0
B117: 2142 | C117: REAHL | E117: NELSON JI NC | F117: 0 | G117: 7983 | I117: =IFERROR(VLOOKUP(B117,'October figures 18 AY 18-19'!$B$3:$G$208,6,FALSE),0)-G117 -> 0
B118: 2457 | C118: REAHM | E118: NELSON MANDELA JI NC | F118: 0 | G118: 8179 | I118: =IFERROR(VLOOKUP(B118,'October figures 18 AY 18-19'!$B$3:$G$208,6,FALSE),0)-G118 -> 0
B119: 2469 | C119: REAHN | E119: NEW HALL JI NC | F119: 0 | G119: 7967 | I119: =IFERROR(VLOOKUP(B119,'October figures 18 AY 18-19'!$B$3:$G$208,6,FALSE),0)-G119 -> 0
B120: 3431 | C120: REAHQ | E120: NEW OSCOTT JI NC | F120: 0 | G120: 8908 | I120: =IFERROR(VLOOKUP(B120,'October figures 18 AY 18-19'!$B$3:$G$208,6,FALSE),0)-G120 -> 0
B121: 2018 | C121: REAKP | E121: OAKS, THE JI NC | F121: 0 | G121: 7979 | I121: =IFERROR(VLOOKUP(B121,'October figures 18 AY 18-19'!$B$3:$G$208,6,FALSE),0)-G121 -> 0
B122: 3323 | C122: REAHX | E122: ORATORY RC JI NC | F122: 0 | G122: 7417 | I122: =IFERROR(VLOOKUP(B122,'October figures 18 AY 18-19'!$B$3:$G$208,6,FALSE),0)-G122 -> 0
B123: 2436 | C123: REAHY | E123: OSBORNE JI | F123: 0 | G123: 7533 | I123: =IFERROR(VLOOKUP(B123,'October figures 18 AY 18-19'!$B$3:$G$208,6,FALSE),0)-G123 -> 0
B124: 3351 | C124: REAHZ | E124: OUR LADY AND ST ROSE RC JI NC | F124: 0 | G124: 7425 | I124: =IFERROR(VLOOKUP(B124,'October figures 18 AY 18-19'!$B$3:$G$208,6,FALSE),0)-G124 -> 0
B125: 3328 | C125: REAJB | E125: OUR LADY OF LOURDES RC JI NC | F125: 0 | G125: 7417 | I125: =IFERROR(VLOOKUP(B125,'October figures 18 AY 18-19'!$B$3:$G$208,6,FALSE),0)-G125 -> 0
B126: 3357 | C126: REAJC | E126: OUR LADY'S RC JI | F126: 0 | G126: 7404 | I126: =IFERROR(VLOOKUP(B126,'October figures 18 AY 18-19'!$B$3:$G$208,6,FALSE),0)-G126 -> 0
B127: 2021 | C127: REAJE | E127: PAGANEL JI NC | F127: 0 | G127: 8033 | I127: =IFERROR(VLOOKUP(B127,'October figures 18 AY 18-19'!$B$3:$G$208,6,FALSE),0)-G127 -> 0
B128: 2149 | C128: REAJF | E128: PAGET JI NC | F128: 0 | G128: 8125 | I128: =IFERROR(VLOOKUP(B128,'October figures 18 AY 18-19'!$B$3:$G$208,6,FALSE),0)-G128 -> 0
B129: 2150 | C129: REAJG | E129: PARK HILL JI NC | F129: 0 | G129: 8642 | I129: =IFERROR(VLOOKUP(B129,'October figures 18 AY 18-19'!$B$3:$G$208,6,FALSE),0)-G129 -> 0
B130: 2425 | C130: REAJK | E130: PENNS JI | F130: 0 | G130: 7417 | I130: =IFERROR(VLOOKUP(B130,'October figures 18 AY 18-19'!$B$3:$G$208,6,FALSE),0)-G130 -> 0
B131: 2017 | C131: REAJM | E131: BEECHES I (formerly PERRY BEECHES I) | F131: 0 | G131: 7408 | I131: =IFERROR(VLOOKUP(B131,'October figures 18 AY 18-19'!$B$3:$G$208,6,FALSE),0)-G131 -> 0
B132: 2016 | C132: REAJN | E132: PERRY BEECHES J | F132: 0 | G132: 8179 | I132: =IFERROR(VLOOKUP(B132,'October figures 18 AY 18-19'!$B$3:$G$208,6,FALSE),0)-G132 -> 0
B133: 2157 | C133: REAJX | E133: RADDLEBARN JI NC | F133: 0 | G133: 8112 | I133: =IFERROR(VLOOKUP(B133,'October figures 18 AY 18-19'!$B$3:$G$208,6,FALSE),0)-G133 -> 0
B134: 2159 | C134: REAJZ | E134: REDHILL JI NC | F134: 0 | G134: 7417 | I134: =IFERROR(VLOOKUP(B134,'October figures 18 AY 18-19'!$B$3:$G$208,6,FALSE),0)-G134 -> 0
B135: 2161 | C135: REAKA | E135: REDNAL HILL I NC | F135: 0 | G135: 7417 | I135: =IFERROR(VLOOKUP(B135,'October figures 18 AY 18-19'!$B$3:$G$208,6,FALSE),0)-G135 -> 0
B136: 2160 | C136: REAKB | E136: REDNAL HILL J | F136: 0 | G136: 8046 | I136: =IFERROR(VLOOKUP(B136,'October figures 18 AY 18-19'!$B$3:$G$208,6,FALSE),0)-G136 -> 0
B137: 2063 | C137: REAKC | E137: REGENTS PARK JI NC | F137: 0 | G137: 8867 | I137: =IFERROR(VLOOKUP(B137,'October figures 18 AY 18-19'!$B$3:$G$208,6,FALSE),0)-G137 -> 0
B138: 3325 | C138: REAKH | E138: ROSARY RC JI NC | F138: 0 | G138: 8100 | I138: =IFERROR(VLOOKUP(B138,'October figures 18 AY 18-19'!$B$3:$G$208,6,FALSE),0)-G138 -> 0
B139: 3409 | C139: REAKJ | E139: SACRED HEART RC JI | F139: 0 | G139: 7458 | I139: =IFERROR(VLOOKUP(B139,'October figures 18 AY 18-19'!$B$3:$G$208,6,FALSE),0)-G139 -> 0
B140: 2169 | C140: REAKK | E140: SEVERNE JI NC | F140: 0 | G140: 8187 | I140: =IFERROR(VLOOKUP(B140,'October figures 18 AY 18-19'!$B$3:$G$208,6,FALSE),0)-G140 -> 0
B141: 2008 | C141: REAKL | E141: SHAW HILL JI NC | F141: 0 | G141: 8183 | I141: =IFERROR(VLOOKUP(B141,'October figures 18 AY 18-19'!$B$3:$G$208,6,FALSE),0)-G141 -> 0
B142: 2174 | C142: REAKR | D142: CB | E142: SLADEFIELD I | F142: 2300000060 | G142: 7667 | I142: =IFERROR(VLOOKUP(B142,'October figures 18 AY 18-19'!$B$3:$G$208,6,FALSE),0)-G142 -> 0
B143: 2176 | C143: REAKT | E143: SOMERVILLE JI NC | F143: 0 | G143: 9154 | I143: =IFERROR(VLOOKUP(B143,'October figures 18 AY 18-19'!$B$3:$G$208,6,FALSE),0)-G143 -> 0
B144: 3381 | C144: REAKX | E144: ST ALBANS RC JI | F144: 0 | G144: 7404 | I144: =IFERROR(VLOOKUP(B144,'October figures 18 AY 18-19'!$B$3:$G$208,6,FALSE),0)-G144 -> 0
B145: 3380 | C145: REAKY | E145: ST AMBROSE BARLOW RC JI | F145: 0 | G145: 7408 | I145: =IFERROR(VLOOKUP(B145,'October figures 18 AY 18-19'!$B$3:$G$208,6,FALSE),0)-G145 -> 0
B146: 3335 | C146: REALA | E146: ST ANNE'S RC JI | F146: 0 | G146: 7392 | I146: =IFERROR(VLOOKUP(B146,'October figures 18 AY 18-19'!$B$3:$G$208,6,FALSE),0)-G146 -> 0
B147: 3329 | C147: REALB | E147: ST AUGUSTINE'S RC JI NC | F147: 0 | G147: 7396 | I147: =IFERROR(VLOOKUP(B147,'October figures 18 AY 18-19'!$B$3:$G$208,6,FALSE),0)-G147 -> 0
B148: 3302 | C148: REALC | E148: ST BARNABAS CE JI NC | F148: 0 | G148: 8033 | I148: =IFERROR(VLOOKUP(B148,'October figures 18 AY 18-19'!$B$3:$G$208,6,FALSE),0)-G148 -> 0
B149: 2183 | C149: REALD | E149: ST BENEDICT'S I NC | F149: 0 | G149: 7575 | I149: =IFERROR(VLOOKUP(B149,'October figures 18 AY 18-19'!$B$3:$G$208,6,FALSE),0)-G149 -> 0
B150: 3372 | C150: REALE | E150: ST BERNADETTE'S RC JI NC | F150: 0 | G150: 8892 | I150: =IFERROR(VLOOKUP(B150,'October figures 18 AY 18-19'!$B$3:$G$208,6,FALSE),0)-G150 -> 0
B151: 3375 | C151: REALF | E151: ST BERNARD'S RC JI | F151: 0 | G151: 8158 | I151: =IFERROR(VLOOKUP(B151,'October figures 18 AY 18-19'!$B$3:$G$208,6,FALSE),0)-G151 -> 0
B152: 3331 | C152: REALH | E152: ST CATHERINE'S RC JI NC | F152: 0 | G152: 7442 | I152: =IFERROR(VLOOKUP(B152,'October figures 18 AY 18-19'!$B$3:$G$208,6,FALSE),0)-G152 -> 0
B153: 3337 | C153: REALJ | E153: ST CHAD'S RC JI | F153: 0 | G153: 7433 | I153: =IFERROR(VLOOKUP(B153,'October figures 18 AY 18-19'!$B$3:$G$208,6,FALSE),0)-G153 -> 0
B154: 3406 | C154: REALK | E154: ST CLARE'S RC JI NC | F154: 0 | G154: 8171 | I154: =IFERROR(VLOOKUP(B154,'October figures 18 AY 18-19'!$B$3:$G$208,6,FALSE),0)-G154 -> 0
B155: 3386 | C155: REALN | E155: ST CUTHBERTS RC JI NC | F155: 0 | G155: 7417 | I155: =IFERROR(VLOOKUP(B155,'October figures 18 AY 18-19'!$B$3:$G$208,6,FALSE),0)-G155 -> 0
B156: 3363 | C156: REALP | D156: CB | E156: ST DUNSTAN'S RC JI NC | F156: 2300100036 | G156: 8046 | I156: =IFERROR(VLOOKUP(B156,'October figures 18 AY 18-19'!$B$3:$G$208,6,FALSE),0)-G156 -> 0
B157: 3347 | C157: REALQ | E157: ST EDMUND'S RC JI NC | F157: 0 | G157: 7417 | I157: =IFERROR(VLOOKUP(B157,'October figures 18 AY 18-19'!$B$3:$G$208,6,FALSE),0)-G157 -> 0
B158: 3355 | C158: REALR | E158: ST EDWARD'S RC JI | F158: 0 | G158: 8112 | I158: =IFERROR(VLOOKUP(B158,'October figures 18 AY 18-19'!$B$3:$G$208,6,FALSE),0)-G158 -> 0
B159: 3342 | C159: REALV | E159: ST FRANCIS RC JI | F159: 0 | G159: 8162 | I159: =IFERROR(VLOOKUP(B159,'October figures 18 AY 18-19'!$B$3:$G$208,6,FALSE),0)-G159 -> 0
B160: 3367 | C160: REALY | E160: ST GERARD'S RC JI NC | F160: 0 | G160: 7408 | I160: =IFERROR(VLOOKUP(B160,'October figures 18 AY 18-19'!$B$3:$G$208,6,FALSE),0)-G160 -> 0
B161: 3010 | C161: REALZ | E161: ST JAMES CE JI | F161: 0 | G161: 8171 | I161: =IFERROR(VLOOKUP(B161,'October figures 18 AY 18-19'!$B$3:$G$208,6,FALSE),0)-G161 -> 0
B162: 3410 | C162: REAMB | E162: ST JOHN & ST MONICA RC JI | F162: 0 | G162: 7421 | I162: =IFERROR(VLOOKUP(B162,'October figures 18 AY 18-19'!$B$3:$G$208,6,FALSE),0)-G162 -> 0
B163: 3360 | C163: REAMC | E163: ST JOHN FISHER'S RC JI | F163: 0 | G163: 7408 | I163: =IFERROR(VLOOKUP(B163,'October figures 18 AY 18-19'!$B$3:$G$208,6,FALSE),0)-G163 -> 0
B164: 3339 | C164: REAMG | E164: ST JOSEPH'S RC (B7) JI | F164: 0 | G164: 7387 | I164: =IFERROR(VLOOKUP(B164,'October figures 18 AY 18-19'!$B$3:$G$208,6,FALSE),0)-G164 -> 0
B165: 3377 | C165: REAMJ | D165: CB | E165: ST JUDE'S RC JI | F165: 2300100077 | G165: 7379 | I165: =IFERROR(VLOOKUP(B165,'October figures 18 AY 18-19'!$B$3:$G$208,6,FALSE),0)-G165 -> 0
B166: 3371 | C166: REAMK | D166: CB | E166: ST LAURENCE CE I | F166: 2300100141 | G166: 7417 | I166: =IFERROR(VLOOKUP(B166,'October figures 18 AY 18-19'!$B$3:$G$208,6,FALSE),0)-G166 -> 0
B167: 3307 | C167: REAML | E167: ST LAURENCE CE J | F167: 0 | G167: 8167 | I167: =IFERROR(VLOOKUP(B167,'October figures 18 AY 18-19'!$B$3:$G$208,6,FALSE),0)-G167 -> 0
B168: 3361 | C168: REAMN | E168: ST MARGARET MARY RC JI | F168: 0 | G168: 7717 | I168: =IFERROR(VLOOKUP(B168,'October figures 18 AY 18-19'!$B$3:$G$208,6,FALSE),0)-G168 -> 0
B169: 3383 | C169: REAMP | E169: ST MARK'S RC JI | F169: 0 | G169: 7417 | I169: =IFERROR(VLOOKUP(B169,'October figures 18 AY 18-19'!$B$3:$G$208,6,FALSE),0)-G169 -> 0
B170: 3382 | C170: REAMQ | E170: ST MARTIN de PORRES RC JI | F170: 0 | G170: 7396 | I170: =IFERROR(VLOOKUP(B170,'October figures 18 AY 18-19'!$B$3:$G$208,6,FALSE),0)-G170 -> 0
B171: 3025 | C171: REAMV | E171: ST MARY'S CE (B29) JI | F171: 0 | G171: 8033 | I171: =IFERROR(VLOOKUP(B171,'October figures 18 AY 18-19'!$B$3:$G$208,6,FALSE),0)-G171 -> 0
B172: 3344 | C172: REAMW | E172: ST MARY'S RC (B17) JI | F172: 0 | G172: 8171 | I172: =IFERROR(VLOOKUP(B172,'October figures 18 AY 18-19'!$B$3:$G$208,6,FALSE),0)-G172 -> 0
B173: 3016 | C173: REAMX | D173: CB | E173: ST MATTHEW'S CE JI | F173: 2300100059 | G173: 7400 | I173: =IFERROR(VLOOKUP(B173,'October figures 18 AY 18-19'!$B$3:$G$208,6,FALSE),0)-G173 -> 0
B174: 3346 | C174: REANB | E174: ST PATRICK'S RC JI | F174: 0 | G174: 7400 | I174: =IFERROR(VLOOKUP(B174,'October figures 18 AY 18-19'!$B$3:$G$208,6,FALSE),0)-G174 -> 0
B175: 3428 | C175: REANF | D175: CB | E175: ST PETER'S CE JI NC | F175: 2300100069 | G175: 8171 | I175: =IFERROR(VLOOKUP(B175,'October figures 18 AY 18-19'!$B$3:$G$208,6,FALSE),0)-G175 -> 0
B176: 3385 | C176: REANG | E176: ST PETER'S RC JI | F176: 0 | G176: 7417 | I176: =IFERROR(VLOOKUP(B176,'October figures 18 AY 18-19'!$B$3:$G$208,6,FALSE),0)-G176 -> 0
B177: 3019 | C177: REANH | E177: ST SAVIOUR'S CE JI | F177: 0 | G177: 8129 | I177: =IFERROR(VLOOKUP(B177,'October figures 18 AY 18-19'!$B$3:$G$208,6,FALSE),0)-G177 -> 0
B178: 3365 | C178: REANJ | E178: ST TERESA'S RC JI | F178: 0 | G178: 7421 | I178: =IFERROR(VLOOKUP(B178,'October figures 18 AY 18-19'!$B$3:$G$208,6,FALSE),0)-G178 -> 0
B179: 3349 | C179: REANL | E179: ST THOMAS MORE'S RC JI | F179: 0 | G179: 7925 | I179: =IFERROR(VLOOKUP(B179,'October figures 18 AY 18-19'!$B$3:$G$208,6,FALSE),0)-G179 -> 0
B180: 3310 | C180: REANM | E180: ST VINCENT'S RC JI NC | F180: 0 | G180: 7396 | I180: =IFERROR(VLOOKUP(B180,'October figures 18 AY 18-19'!$B$3:$G$208,6,FALSE),0)-G180 -> 0
B181: 3359 | C181: REANN | D181: CB | E181: ST WILFRID'S RC JI NC | F181: 2300100147 | G181: 8008 | I181: =IFERROR(VLOOKUP(B181,'October figures 18 AY 18-19'!$B$3:$G$208,6,FALSE),0)-G181 -> 0
B182: 2178 | C182: REANP | E182: STANVILLE JI NC | F182: 0 | G182: 7529 | I182: =IFERROR(VLOOKUP(B182,'October figures 18 AY 18-19'!$B$3:$G$208,6,FALSE),0)-G182 -> 0
B183: 2179 | C183: REANQ | E183: STARBANK JI NC | F183: 0 | G183: 11225 | I183: =IFERROR(VLOOKUP(B183,'October figures 18 AY 18-19'!$B$3:$G$208,6,FALSE),0)-G183 -> 0
B184: 2184 | C184: REANR | E184: STECHFORD JI NC | F184: 0 | G184: 8167 | I184: =IFERROR(VLOOKUP(B184,'October figures 18 AY 18-19'!$B$3:$G$208,6,FALSE),0)-G184 -> 0
B185: 2097 | C185: REAJP | D185: CB | E185: STORY WOOD SCHOOL AND CHILDREN'S CENTRE JI NC | F185: 2300100093 | G185: 7421 | I185: =IFERROR(VLOOKUP(B185,'October figures 18 AY 18-19'!$B$3:$G$208,6,FALSE),0)-G185 -> 0
B186: 2067 | C186: REANV | E186: SUMMERFIELD JI NC | F186: 0 | G186: 8137 | I186: =IFERROR(VLOOKUP(B186,'October figures 18 AY 18-19'!$B$3:$G$208,6,FALSE),0)-G186 -> 0
B187: 2190 | C187: REANW | E187: SUNDRIDGE JI | F187: 0 | G187: 7404 | I187: =IFERROR(VLOOKUP(B187,'October figures 18 AY 18-19'!$B$3:$G$208,6,FALSE),0)-G187 -> 0
B188: 2192 | C188: REANY | E188: THORNTON JI | F188: 0 | G188: 9404 | I188: =IFERROR(VLOOKUP(B188,'October figures 18 AY 18-19'!$B$3:$G$208,6,FALSE),0)-G188 -> 0
B189: 5203 | C189: REAPH | D189: CB | E189: WALMLEY I NC | F189: 2300000045 | G189: 7421 | I189: =IFERROR(VLOOKUP(B189,'October figures 18 AY 18-19'!$B$3:$G$208,6,FALSE),0)-G189 -> 0
B190: 5202 | C190: REAPJ | D190: CB | E190: WALMLEY J | F190: 2300000044 | G190: 8171 | I190: =IFERROR(VLOOKUP(B190,'October figures 18 AY 18-19'!$B$3:$G$208,6,FALSE),0)-G190 -> 0
B191: 2108 | C191: REAPK | E191: WARD END JI NC | F191: 0 | G191: 9808 | I191: =IFERROR(VLOOKUP(B191,'October figures 18 AY 18-19'!$B$3:$G$208,6,FALSE),0)-G191 -> 0
B192: 2306 | C192: REAPM | E192: WATERMILL JI | F192: 0 | G192: 7387 | I192: =IFERROR(VLOOKUP(B192,'October figures 18 AY 18-19'!$B$3:$G$208,6,FALSE),0)-G192 -> 0
B193: 2482 | C193: REAPP | E193: WATTVILLE JI NC | F193: 0 | G193: 8367 | I193: =IFERROR(VLOOKUP(B193,'October figures 18 AY 18-19'!$B$3:$G$208,6,FALSE),0)-G193 -> 0
B194: 2308 | C194: REAPQ | D194: CB | E194: WELFORD JI NC | F194: 2300000024 | G194: 8179 | I194: =IFERROR(VLOOKUP(B194,'October figures 18 AY 18-19'!$B$3:$G$208,6,FALSE),0)-G194 -> 0
B195: 2245 | C195: REAPR | E195: WELSH HOUSE FARM JI NC | F195: 0 | G195: 7442 | I195: =IFERROR(VLOOKUP(B195,'October figures 18 AY 18-19'!$B$3:$G$208,6,FALSE),0)-G195 -> 0
B196: 2019 | C196: REAPV | E196: WEST HEATH JI | F196: 0 | G196: 8146 | I196: =IFERROR(VLOOKUP(B196,'October figures 18 AY 18-19'!$B$3:$G$208,6,FALSE),0)-G196 -> 0
B197: 2011 | C197: REAPY | D197: CB | E197: WHEELERS LANE JI NC | F197: 2300100126 | G197: 8912 | I197: =IFERROR(VLOOKUP(B197,'October figures 18 AY 18-19'!$B$3:$G$208,6,FALSE),0)-G197 -> 0
B198: 2478 | C198: REAPZ | E198: WHITEHOUSE COMMON JI NC | F198: 0 | G198: 8296 | I198: =IFERROR(VLOOKUP(B198,'October figures 18 AY 18-19'!$B$3:$G$208,6,FALSE),0)-G198 -> 0
B199: 2276 | C199: REAQC | E199: WILKES GREEN I NC | F199: 0 | G199: 7412 | I199: =IFERROR(VLOOKUP(B199,'October figures 18 AY 18-19'!$B$3:$G$208,6,FALSE),0)-G199 -> 0
B200: 2293 | C200: REARA | D200: CB | E200: WILKES GREEN J | F200: 2300100092 | G200: 8162 | I200: =IFERROR(VLOOKUP(B200,'October figures 18 AY 18-19'!$B$3:$G$208,6,FALSE),0)-G200 -> 7412
B201: 2445 | C201: REARC | E201: WOODCOCK HILL JI | F201: 0 | G201: 7408 | I201: =IFERROR(VLOOKUP(B201,'October figures 18 AY 18-19'!$B$3:$G$208,6,FALSE),0)-G201 -> 0
... 66 more rows

Sheet October figures 18 AY 18-19 (hidden)
A1: Primary PE and Sports Premium Allocations - AY 2018 to 2019 | R1: Funding for 2016 to 2017
A2: LAEstab (at Sep 18) | C2: School Name (at Sep 18) | D2: Eligible Pupils | E2: Total Allocation | F2: October 2018 payment | G2: April 2019 payment | R2: Schools with 16 or fewer eligible pupils receive £500 per pupil.
R3: Schools with 17 or more eligible pupils receive £8,000 and an additional payment of £5 per pupil.
A4: 3301100 | B4: 1100 | C4: City of Birmingham School | D4: 110 | E4: 17100 | F4: 9975 | G4: 7125 | H4: =(VLOOKUP(B4,'SBS File Check'!B:G,6,FALSE)-G4) -> 0 | J4: =(((16000+(D4*10))/12*7)-F4) -> 0 | L4: =VLOOKUP(B4+3300000,'AY 19-20 Sept to Marc'!C:D,2,FALSE) -> City of Birmingham School
A5: 3302004 | B5: 2004 | C5: Mapledene Primary School | D5: 281 | E5: 18810 | F5: 10973 | G5: 7837 | H5: =(VLOOKUP(B5,'SBS File Check'!B:G,6,FALSE)-G5) -> 0 | J5: =(((16000+(D5*10))/12*7)-F5) -> -0.5 | L5: =VLOOKUP(B5+3300000,'AY 19-20 Sept to Marc'!C:D,2,FALSE) -> Mapledene Primary School
A6: 3302005 | B6: 2005 | C6: Kings Heath Primary School | D6: 559 | E6: 21590 | F6: 12594 | G6: 8996 | H6: =(VLOOKUP(B6,'SBS File Check'!B:G,6,FALSE)-G6) -> 0 | J6: 0.1666666667 | L6: =VLOOKUP(B6+3300000,'AY 19-20 Sept to Marc'!C:D,2,FALSE) -> Kings Heath Primary School
A7: 3302008 | B7: 2008 | C7: Shaw Hill Primary School | D7: 364 | E7: 19640 | F7: 11457 | G7: 8183 | H7: =(VLOOKUP(B7,'SBS File Check'!B:G,6,FALSE)-G7) -> 0 | J7: -0.3333333333 | L7: =VLOOKUP(B7+3300000,'AY 19-20 Sept to Marc'!C:D,2,FALSE) -> Shaw Hill Primary School
A8: 3302010 | B8: 2010 | C8: Adderley Primary School | D8: 522 | E8: 21220 | F8: 12378 | G8: 8842 | H8: =(VLOOKUP(B8,'SBS File Check'!B:G,6,FALSE)-G8) -> 0 | J8: 0.3333333333 | L8: =VLOOKUP(B8+3300000,'AY 19-20 Sept to Marc'!C:D,2,FALSE) -> Adderley Primary School
A9: 3302011 | B9: 2011 | C9: Wheelers Lane Primary School | D9: 539 | E9: 21390 | F9: 12478 | G9: 8912 | H9: =(VLOOKUP(B9,'SBS File Check'!B:G,6,FALSE)-G9) -> 0 | J9: -0.5 | L9: =VLOOKUP(B9+3300000,'AY 19-20 Sept to Marc'!C:D,2,FALSE) -> Wheelers Lane Primary School
A10: 3302014 | B10: 2014 | C10: Barford Primary School | D10: 351 | E10: 19510 | F10: 11381 | G10: 8129 | H10: =(VLOOKUP(B10,'SBS File Check'!B:G,6,FALSE)-G10) -> 0 | J10: -0.1666666667 | L10: =VLOOKUP(B10+3300000,'AY 19-20 Sept to Marc'!C:D,2,FALSE) -> Barford Primary School
A11: 3302015 | B11: 2015 | C11: James Watt Primary School | D11: 360 | E11: 19600 | F11: 11433 | G11: 8167 | H11: =(VLOOKUP(B11,'SBS File Check'!B:G,6,FALSE)-G11) -> 0 | J11: 0.3333333333 | L11: =VLOOKUP(B11+3300000,'AY 19-20 Sept to Marc'!C:D,2,FALSE) -> James Watt Primary School
A12: 3302016 | B12: 2016 | C12: Beeches Junior School | D12: 363 | E12: 19630 | F12: 11451 | G12: 8179 | H12: =(VLOOKUP(B12,'SBS File Check'!B:G,6,FALSE)-G12) -> 0 | J12: -0.1666666667 | L12: =VLOOKUP(B12+3300000,'AY 19-20 Sept to Marc'!C:D,2,FALSE) -> Beeches Junior School
A13: 3302017 | B13: 2017 | C13: Beeches Infant School | D13: 178 | E13: 17780 | F13: 10372 | G13: 7408 | H13: =(VLOOKUP(B13,'SBS File Check'!B:G,6,FALSE)-G13) -> 0 | J13: -0.3333333333 | L13: =VLOOKUP(B13+3300000,'AY 19-20 Sept to Marc'!C:D,2,FALSE) -> Beeches Infant School
A14: 3302018 | B14: 2018 | C14: The Oaks Primary School | D14: 315 | E14: 19150 | F14: 11171 | G14: 7979 | H14: =(VLOOKUP(B14,'SBS File Check'!B:G,6,FALSE)-G14) -> 0 | J14: -0.1666666667 | L14: =VLOOKUP(B14+3300000,'AY 19-20 Sept to Marc'!C:D,2,FALSE) -> The Oaks Primary School
A15: 3302019 | B15: 2019 | C15: West Heath Primary School | D15: 355 | E15: 19550 | F15: 11404 | G15: 8146 | H15: =(VLOOKUP(B15,'SBS File Check'!B:G,6,FALSE)-G15) -> 0 | J15: 0.1666666667 | L15: =VLOOKUP(B15+3300000,'AY 19-20 Sept to Marc'!C:D,2,FALSE) -> West Heath Primary School
A16: 3302021 | B16: 2021 | C16: Paganel Primary School | D16: 328 | E16: 19280 | F16: 11247 | G16: 8033 | H16: =(VLOOKUP(B16,'SBS File Check'!B:G,6,FALSE)-G16) -> 0 | J16: -0.3333333333 | L16: =VLOOKUP(B16+3300000,'AY 19-20 Sept to Marc'!C:D,2,FALSE) -> Paganel Primary School
A17: 3302024 | B17: 2024 | C17: Birches Green Junior School | D17: 223 | E17: 18230 | F17: 10634 | G17: 7596 | H17: =(VLOOKUP(B17,'SBS File Check'!B:G,6,FALSE)-G17) -> 0 | J17: 0.1666666667 | L17: =VLOOKUP(B17+3300000,'AY 19-20 Sept to Marc'!C:D,2,FALSE) -> Birches Green Junior School
A18: 3302025 | B18: 2025 | C18: Birches Green Infant School | D18: 116 | E18: 17160 | F18: 10010 | G18: 7150 | H18: =(VLOOKUP(B18,'SBS File Check'!B:G,6,FALSE)-G18) -> 0 | J18: 0 | L18: =VLOOKUP(B18+3300000,'AY 19-20 Sept to Marc'!C:D,2,FALSE) -> Birches Green Infant School
A19: 3302026 | B19: 2026 | C19: Banners Gate Primary School | D19: 325 | E19: 19250 | F19: 11229 | G19: 8021 | H19: =(VLOOKUP(B19,'SBS File Check'!B:G,6,FALSE)-G19) -> 0 | J19: 0.1666666667 | L19: =VLOOKUP(B19+3300000,'AY 19-20 Sept to Marc'!C:D,2,FALSE) -> Banners Gate Primary School
A20: 3302030 | B20: 2030 | C20: Bordesley Green Primary School | D20: 598 | E20: 21980 | F20: 12822 | G20: 9158 | H20: =(VLOOKUP(B20,'SBS File Check'!B:G,6,FALSE)-G20) -> 0 | J20: -0.3333333333 | L20: =VLOOKUP(B20+3300000,'AY 19-20 Sept to Marc'!C:D,2,FALSE) -> Bordesley Green Primary School
A21: 3302034 | B21: 2034 | C21: Brookfields Primary School | D21: 339 | E21: 19390 | F21: 11311 | G21: 8079 | H21: =(VLOOKUP(B21,'SBS File Check'!B:G,6,FALSE)-G21) ->  | J21: -0.1666666667 | K21: Conversion | L21: =VLOOKUP(B21+3300000,'AY 19-20 Sept to Marc'!C:D,2,FALSE) -> 
A22: 3302040 | B22: 2040 | C22: Cherry Orchard Primary School | D22: 373 | E22: 19730 | F22: 11509 | G22: 8221 | H22: =(VLOOKUP(B22,'SBS File Check'!B:G,6,FALSE)-G22) -> 0 | J22: 0.1666666667 | L22: =VLOOKUP(B22+3300000,'AY 19-20 Sept to Marc'!C:D,2,FALSE) -> Cherry Orchard Primary School
A23: 3302052 | B23: 2052 | C23: Colmers Farm Primary School | D23: 351 | E23: 19510 | F23: 11381 | G23: 8129 | H23: =(VLOOKUP(B23,'SBS File Check'!B:G,6,FALSE)-G23) ->  | J23: -0.1666666667 | K23: Conversion | L23: =VLOOKUP(B23+3300000,'AY 19-20 Sept to Marc'!C:D,2,FALSE) -> 
A24: 3302053 | B24: 2053 | C24: Colmore Junior School | D24: 478 | E24: 20780 | F24: 12122 | G24: 8658 | H24: =(VLOOKUP(B24,'SBS File Check'!B:G,6,FALSE)-G24) -> 0 | J24: -0.3333333333 | L24: =VLOOKUP(B24+3300000,'AY 19-20 Sept to Marc'!C:D,2,FALSE) -> Colmore Junior School
A25: 3302054 | B25: 2054 | C25: Colmore Infant and Nursery School | D25: 240 | E25: 18400 | F25: 10733 | G25: 7667 | H25: =(VLOOKUP(B25,'SBS File Check'!B:G,6,FALSE)-G25) -> 0 | J25: 0.3333333333 | L25: =VLOOKUP(B25+3300000,'AY 19-20 Sept to Marc'!C:D,2,FALSE) -> Colmore Infant and Nursery School
A26: 3302055 | B26: 2055 | C26: Cotteridge Primary School | D26: 347 | E26: 19470 | F26: 11358 | G26: 8112 | H26: =(VLOOKUP(B26,'SBS File Check'!B:G,6,FALSE)-G26) -> 0 | J26: -0.5 | L26: =VLOOKUP(B26+3300000,'AY 19-20 Sept to Marc'!C:D,2,FALSE) -> Cotteridge Primary School
A27: 3302062 | B27: 2062 | C27: Anderton Park Primary School | D27: 583 | E27: 21830 | F27: 12734 | G27: 9096 | H27: =(VLOOKUP(B27,'SBS File Check'!B:G,6,FALSE)-G27) -> 0 | J27: 0.1666666667 | L27: =VLOOKUP(B27+3300000,'AY 19-20 Sept to Marc'!C:D,2,FALSE) -> Anderton Park Primary School
A28: 3302063 | B28: 2063 | C28: Regents Park Community Primary School | D28: 528 | E28: 21280 | F28: 12413 | G28: 8867 | H28: =(VLOOKUP(B28,'SBS File Check'!B:G,6,FALSE)-G28) -> 0 | J28: 0.3333333333 | L28: =VLOOKUP(B28+3300000,'AY 19-20 Sept to Marc'!C:D,2,FALSE) -> Regents Park Community Primary School
A29: 3302067 | B29: 2067 | C29: Summerfield Junior and Infant School | D29: 353 | E29: 19530 | F29: 11393 | G29: 8137 | H29: =(VLOOKUP(B29,'SBS File Check'!B:G,6,FALSE)-G29) -> 0 | J29: -0.5 | L29: =VLOOKUP(B29+3300000,'AY 19-20 Sept to Marc'!C:D,2,FALSE) -> Summerfield Junior and Infant School
A30: 3302079 | B30: 2079 | C30: George Dixon Primary School | D30: 337 | E30: 19370 | F30: 11299 | G30: 8071 | H30: =(VLOOKUP(B30,'SBS File Check'!B:G,6,FALSE)-G30) -> 0 | J30: 0.1666666667 | L30: =VLOOKUP(B30+3300000,'AY 19-20 Sept to Marc'!C:D,2,FALSE) -> George Dixon Primary School
A31: 3302081 | B31: 2081 | C31: Gilbertstone Primary School | D31: 362 | E31: 19620 | F31: 11445 | G31: 8175 | H31: =(VLOOKUP(B31,'SBS File Check'!B:G,6,FALSE)-G31) -> 0 | J31: 0 | L31: =VLOOKUP(B31+3300000,'AY 19-20 Sept to Marc'!C:D,2,FALSE) -> Gilbertstone Primary School
A32: 3302087 | B32: 2087 | C32: Grendon Junior and Infant School (NC) | D32: 282 | E32: 18820 | F32: 10978 | G32: 7842 | H32: =(VLOOKUP(B32,'SBS File Check'!B:G,6,FALSE)-G32) -> 0 | J32: 0.3333333333 | L32: =VLOOKUP(B32+3300000,'AY 19-20 Sept to Marc'!C:D,2,FALSE) -> Grendon Junior and Infant School (NC)
A33: 3302091 | B33: 2091 | C33: Gunter Primary School | D33: 178 | E33: 17780 | F33: 10372 | G33: 7408 | H33: =(VLOOKUP(B33,'SBS File Check'!B:G,6,FALSE)-G33) -> 0 | J33: -0.3333333333 | L33: =VLOOKUP(B33+3300000,'AY 19-20 Sept to Marc'!C:D,2,FALSE) -> Gunter Primary School
A34: 3302092 | B34: 2092 | C34: Hall Green Junior School | D34: 478 | E34: 20780 | F34: 12122 | G34: 8658 | H34: =(VLOOKUP(B34,'SBS File Check'!B:G,6,FALSE)-G34) -> 0 | J34: -0.3333333333 | L34: =VLOOKUP(B34+3300000,'AY 19-20 Sept to Marc'!C:D,2,FALSE) -> Hall Green Junior School
A35: 3302093 | B35: 2093 | C35: Hall Green Infant School | D35: 240 | E35: 18400 | F35: 10733 | G35: 7667 | H35: =(VLOOKUP(B35,'SBS File Check'!B:G,6,FALSE)-G35) -> 0 | J35: 0.3333333333 | L35: =VLOOKUP(B35+3300000,'AY 19-20 Sept to Marc'!C:D,2,FALSE) -> Hall Green Infant School
A36: 3302097 | B36: 2097 | C36: Story Wood School and Children's Centre | D36: 181 | E36: 17810 | F36: 10389 | G36: 7421 | H36: =(VLOOKUP(B36,'SBS File Check'!B:G,6,FALSE)-G36) -> 0 | J36: 0.1666666667 | L36: =VLOOKUP(B36+3300000,'AY 19-20 Sept to Marc'!C:D,2,FALSE) -> Story Wood School
A37: 3302099 | B37: 2099 | C37: Hawthorn Primary School | D37: 177 | E37: 17770 | F37: 10366 | G37: 7404 | H37: =(VLOOKUP(B37,'SBS File Check'!B:G,6,FALSE)-G37) -> 0 | J37: -0.1666666667 | L37: =VLOOKUP(B37+3300000,'AY 19-20 Sept to Marc'!C:D,2,FALSE) -> Hawthorn Primary School
A38: 3302108 | B38: 2108 | C38: Ward End Primary School | D38: 754 | E38: 23540 | F38: 13732 | G38: 9808 | H38: =(VLOOKUP(B38,'SBS File Check'!B:G,6,FALSE)-G38) -> 0 | J38: -0.3333333333 | L38: =VLOOKUP(B38+3300000,'AY 19-20 Sept to Marc'!C:D,2,FALSE) -> Ward End Primary School
A39: 3302115 | B39: 2115 | C39: Kingsland Primary School (NC) | D39: 255 | E39: 18550 | F39: 10821 | G39: 7729 | H39: =(VLOOKUP(B39,'SBS File Check'!B:G,6,FALSE)-G39) -> 0 | J39: -0.1666666667 | L39: =VLOOKUP(B39+3300000,'AY 19-20 Sept to Marc'!C:D,2,FALSE) -> Kingsland Primary School (NC)
A40: 3302118 | B40: 2118 | C40: Kings Norton Junior and Infant School | D40: 356 | E40: 19560 | F40: 11410 | G40: 8150 | H40: =(VLOOKUP(B40,'SBS File Check'!B:G,6,FALSE)-G40) -> 0 | J40: 0 | L40: =VLOOKUP(B40+3300000,'AY 19-20 Sept to Marc'!C:D,2,FALSE) -> Kings Norton Junior and Infant School
A41: 3302119 | B41: 2119 | C41: Lakey Lane Junior and Infant School | D41: 361 | E41: 19610 | F41: 11439 | G41: 8171 | H41: =(VLOOKUP(B41,'SBS File Check'!B:G,6,FALSE)-G41) -> 0 | J41: 0.1666666667 | L41: =VLOOKUP(B41+3300000,'AY 19-20 Sept to Marc'!C:D,2,FALSE) -> Lakey Lane Junior and Infant School
A42: 3302127 | B42: 2127 | C42: Lozells Junior and Infant School and Nursery | D42: 362 | E42: 19620 | F42: 11445 | G42: 8175 | H42: =(VLOOKUP(B42,'SBS File Check'!B:G,6,FALSE)-G42) -> 0 | J42: 0 | L42: =VLOOKUP(B42+3300000,'AY 19-20 Sept to Marc'!C:D,2,FALSE) -> Lozells Junior and Infant School and Nursery
A43: 3302128 | B43: 2128 | C43: Lyndon Green Junior School | D43: 371 | E43: 19710 | F43: 11498 | G43: 8212 | H43: =(VLOOKUP(B43,'SBS File Check'!B:G,6,FALSE)-G43) -> 0 | J43: -0.5 | L43: =VLOOKUP(B43+3300000,'AY 19-20 Sept to Marc'!C:D,2,FALSE) -> Lyndon Green Junior School
A44: 3302129 | B44: 2129 | C44: Lyndon Green Infant School | D44: 189 | E44: 17890 | F44: 10436 | G44: 7454 | H44: =(VLOOKUP(B44,'SBS File Check'!B:G,6,FALSE)-G44) -> 0 | J44: -0.1666666667 | L44: =VLOOKUP(B44+3300000,'AY 19-20 Sept to Marc'!C:D,2,FALSE) -> Lyndon Green Infant School
A45: 3302132 | B45: 2132 | C45: Marlborough Infant School | D45: 180 | E45: 17800 | F45: 10383 | G45: 7417 | H45: =(VLOOKUP(B45,'SBS File Check'!B:G,6,FALSE)-G45) ->  | J45: 0.3333333333 | K45: Conversion | L45: =VLOOKUP(B45+3300000,'AY 19-20 Sept to Marc'!C:D,2,FALSE) -> 
A46: 3302133 | B46: 2133 | C46: Marsh Hill Primary School | D46: 353 | E46: 19530 | F46: 11393 | G46: 8137 | H46: =(VLOOKUP(B46,'SBS File Check'!B:G,6,FALSE)-G46) -> 0 | J46: -0.5 | L46: =VLOOKUP(B46+3300000,'AY 19-20 Sept to Marc'!C:D,2,FALSE) -> Marsh Hill Primary School
A47: 3302142 | B47: 2142 | C47: Nelson Junior and Infant School | D47: 316 | E47: 19160 | F47: 11177 | G47: 7983 | H47: =(VLOOKUP(B47,'SBS File Check'!B:G,6,FALSE)-G47) -> 0 | J47: -0.3333333333 | L47: =VLOOKUP(B47+3300000,'AY 19-20 Sept to Marc'!C:D,2,FALSE) -> Nelson Junior and Infant School
A48: 3302149 | B48: 2149 | C48: Paget Primary School | D48: 350 | E48: 19500 | F48: 11375 | G48: 8125 | H48: =(VLOOKUP(B48,'SBS File Check'!B:G,6,FALSE)-G48) -> 0 | J48: 0 | L48: =VLOOKUP(B48+3300000,'AY 19-20 Sept to Marc'!C:D,2,FALSE) -> Paget Primary School
A49: 3302150 | B49: 2150 | C49: Park Hill Primary School | D49: 474 | E49: 20740 | F49: 12098 | G49: 8642 | H49: =(VLOOKUP(B49,'SBS File Check'!B:G,6,FALSE)-G49) -> 0 | J49: 0.3333333333 | L49: =VLOOKUP(B49+3300000,'AY 19-20 Sept to Marc'!C:D,2,FALSE) -> Park Hill Primary School
A50: 3302153 | B50: 2153 | C50: Allens Croft Primary School | D50: 300 | E50: 19000 | F50: 11083 | G50: 7917 | H50: =(VLOOKUP(B50,'SBS File Check'!B:G,6,FALSE)-G50) -> 0 | J50: 0.3333333333 | L50: =VLOOKUP(B50+3300000,'AY 19-20 Sept to Marc'!C:D,2,FALSE) -> Allens Croft Primary School
A51: 3302155 | B51: 2155 | C51: Princethorpe Junior School | D51: 237 | E51: 18370 | F51: 10716 | G51: 7654 | H51: =(VLOOKUP(B51,'SBS File Check'!B:G,6,FALSE)-G51) ->  | J51: -0.1666666667 | K51: Conversion | L51: =VLOOKUP(B51+3300000,'AY 19-20 Sept to Marc'!C:D,2,FALSE) -> 
A52: 3302157 | B52: 2157 | C52: Raddlebarn Primary School | D52: 347 | E52: 19470 | F52: 11358 | G52: 8112 | H52: =(VLOOKUP(B52,'SBS File Check'!B:G,6,FALSE)-G52) -> 0 | J52: -0.5 | L52: =VLOOKUP(B52+3300000,'AY 19-20 Sept to Marc'!C:D,2,FALSE) -> Raddlebarn Primary School
A53: 3302159 | B53: 2159 | C53: Redhill Junior and Infant School | D53: 180 | E53: 17800 | F53: 10383 | G53: 7417 | H53: =(VLOOKUP(B53,'SBS File Check'!B:G,6,FALSE)-G53) -> 0 | J53: 0.3333333333 | L53: =VLOOKUP(B53+3300000,'AY 19-20 Sept to Marc'!C:D,2,FALSE) -> Redhill Primary School
A54: 3302160 | B54: 2160 | C54: Rednal Hill Junior School | D54: 331 | E54: 19310 | F54: 11264 | G54: 8046 | H54: =(VLOOKUP(B54,'SBS File Check'!B:G,6,FALSE)-G54) -> 0 | J54: 0.1666666667 | L54: =VLOOKUP(B54+3300000,'AY 19-20 Sept to Marc'!C:D,2,FALSE) -> Rednal Hill Junior School
A55: 3302161 | B55: 2161 | C55: Rednal Hill Infant School | D55: 180 | E55: 17800 | F55: 10383 | G55: 7417 | H55: =(VLOOKUP(B55,'SBS File Check'!B:G,6,FALSE)-G55) -> 0 | J55: 0.3333333333 | L55: =VLOOKUP(B55+3300000,'AY 19-20 Sept to Marc'!C:D,2,FALSE) -> Rednal Hill Infant School
A56: 3302169 | B56: 2169 | C56: Severne Junior Infant and Nursery School | D56: 365 | E56: 19650 | F56: 11463 | G56: 8187 | H56: =(VLOOKUP(B56,'SBS File Check'!B:G,6,FALSE)-G56) -> 0 | J56: -0.5 | L56: =VLOOKUP(B56+3300000,'AY 19-20 Sept to Marc'!C:D,2,FALSE) -> Severne Junior Infant and Nursery School
A57: 3302174 | B57: 2174 | C57: Sladefield Infant School | D57: 240 | E57: 18400 | F57: 10733 | G57: 7667 | H57: =(VLOOKUP(B57,'SBS File Check'!B:G,6,FALSE)-G57) -> 0 | J57: 0.3333333333 | L57: =VLOOKUP(B57+3300000,'AY 19-20 Sept to Marc'!C:D,2,FALSE) -> Sladefield Infant School
A58: 3302176 | B58: 2176 | C58: Somerville Primary (NC) School | D58: 597 | E58: 21970 | F58: 12816 | G58: 9154 | H58: =(VLOOKUP(B58,'SBS File Check'!B:G,6,FALSE)-G58) -> 0 | J58: -0.1666666667 | L58: =VLOOKUP(B58+3300000,'AY 19-20 Sept to Marc'!C:D,2,FALSE) -> Somerville Primary (NC) School
A59: 3302178 | B59: 2178 | C59: Stanville Primary School | D59: 207 | E59: 18070 | F59: 10541 | G59: 7529 | H59: =(VLOOKUP(B59,'SBS File Check'!B:G,6,FALSE)-G59) -> 0 | J59: -0.1666666667 | L59: =VLOOKUP(B59+3300000,'AY 19-20 Sept to Marc'!C:D,2,FALSE) -> Stanville Primary School
A60: 3302179 | B60: 2179 | C60: Starbank School | D60: 1094 | E60: 26940 | F60: 15715 | G60: 11225 | H60: =(VLOOKUP(B60,'SBS File Check'!B:G,6,FALSE)-G60) -> 0 | J60: 0 | L60: =VLOOKUP(B60+3300000,'AY 19-20 Sept to Marc'!C:D,2,FALSE) -> Starbank School
A61: 3302183 | B61: 2183 | C61: St Benedict's Infant School | D61: 218 | E61: 18180 | F61: 10605 | G61: 7575 | H61: =(VLOOKUP(B61,'SBS File Check'!B:G,6,FALSE)-G61) -> 0 | J61: 0 | L61: =VLOOKUP(B61+3300000,'AY 19-20 Sept to Marc'!C:D,2,FALSE) -> St Benedict's Primary School
A62: 3302184 | B62: 2184 | C62: Stechford Primary School | D62: 360 | E62: 19600 | F62: 11433 | G62: 8167 | H62: =(VLOOKUP(B62,'SBS File Check'!B:G,6,FALSE)-G62) -> 0 | J62: 0.3333333333 | L62: =VLOOKUP(B62+3300000,'AY 19-20 Sept to Marc'!C:D,2,FALSE) -> Stechford Primary School
A63: 3302185 | B63: 2185 | C63: Colebourne Primary School | D63: 361 | E63: 19610 | F63: 11439 | G63: 8171 | H63: =(VLOOKUP(B63,'SBS File Check'!B:G,6,FALSE)-G63) -> 0 | J63: 0.1666666667 | L63: =VLOOKUP(B63+3300000,'AY 19-20 Sept to Marc'!C:D,2,FALSE) -> Colebourne Primary School
A64: 3302189 | B64: 2189 | C64: Ladypool Primary School | D64: 330 | E64: 19300 | F64: 11258 | G64: 8042 | H64: =(VLOOKUP(B64,'SBS File Check'!B:G,6,FALSE)-G64) -> 0 | J64: 0.3333333333 | L64: =VLOOKUP(B64+3300000,'AY 19-20 Sept to Marc'!C:D,2,FALSE) -> Ladypool Primary School
A65: 3302190 | B65: 2190 | C65: Sundridge Primary School | D65: 177 | E65: 17770 | F65: 10366 | G65: 7404 | H65: =(VLOOKUP(B65,'SBS File Check'!B:G,6,FALSE)-G65) -> 0 | J65: -0.1666666667 | L65: =VLOOKUP(B65+3300000,'AY 19-20 Sept to Marc'!C:D,2,FALSE) -> Sundridge Primary School
A66: 3302191 | B66: 2191 | C66: Court Farm Primary School | D66: 178 | E66: 17780 | F66: 10372 | G66: 7408 | H66: =(VLOOKUP(B66,'SBS File Check'!B:G,6,FALSE)-G66) -> 0 | J66: -0.3333333333 | L66: =VLOOKUP(B66+3300000,'AY 19-20 Sept to Marc'!C:D,2,FALSE) -> Court Farm Primary School
A67: 3302192 | B67: 2192 | C67: Thornton Primary School | D67: 657 | E67: 22570 | F67: 13166 | G67: 9404 | H67: =(VLOOKUP(B67,'SBS File Check'!B:G,6,FALSE)-G67) -> 0 | J67: -0.1666666667 | L67: =VLOOKUP(B67+3300000,'AY 19-20 Sept to Marc'!C:D,2,FALSE) -> Thornton Primary School
A68: 3302225 | B68: 2225 | C68: World's End Junior School | D68: 359 | E68: 19590 | F68: 11428 | G68: 8162 | H68: =(VLOOKUP(B68,'SBS File Check'!B:G,6,FALSE)-G68) -> 0 | J68: -0.5 | L68: =VLOOKUP(B68+3300000,'AY 19-20 Sept to Marc'!C:D,2,FALSE) -> World's End Junior School
A69: 3302227 | B69: 2227 | C69: Yardley Wood Community Primary School | D69: 292 | E69: 18920 | F69: 11037 | G69: 7883 | H69: =(VLOOKUP(B69,'SBS File Check'!B:G,6,FALSE)-G69) -> 0 | J69: =(((16000+(D69*10))/12*7)-F69) -> -0.3333333333 | L69: =VLOOKUP(B69+3300000,'AY 19-20 Sept to Marc'!C:D,2,FALSE) -> Yardley Wood Community Primary School
A70: 3302231 | B70: 2231 | C70: Yorkmead Junior and Infant School | D70: 360 | E70: 19600 | F70: 11433 | G70: 8167 | H70: =(VLOOKUP(B70,'SBS File Check'!B:G,6,FALSE)-G70) -> 0 | J70: 0.3333333333 | L70: =VLOOKUP(B70+3300000,'AY 19-20 Sept to Marc'!C:D,2,FALSE) -> Yorkmead Junior and Infant School
A71: 3302236 | B71: 2236 | C71: Broadmeadow Junior School | D71: 224 | E71: 18240 | F71: 10640 | G71: 7600 | H71: =(VLOOKUP(B71,'SBS File Check'!B:G,6,FALSE)-G71) -> 0 | J71: 0 | L71: =VLOOKUP(B71+3300000,'AY 19-20 Sept to Marc'!C:D,2,FALSE) -> Broadmeadow Junior School
A72: 3302238 | B72: 2238 | C72: Broadmeadow Infant School | D72: 117 | E72: 17170 | F72: 10016 | G72: 7154 | H72: =(VLOOKUP(B72,'SBS File Check'!B:G,6,FALSE)-G72) -> 0 | J72: -0.1666666667 | L72: =VLOOKUP(B72+3300000,'AY 19-20 Sept to Marc'!C:D,2,FALSE) -> Broadmeadow Infant School
A73: 3302239 | B73: 2239 | C73: Bellfield Infant School (NC) | D73: 178 | E73: 17780 | F73: 10372 | G73: 7408 | H73: =(VLOOKUP(B73,'SBS File Check'!B:G,6,FALSE)-G73) -> 0 | J73: -0.3333333333 | L73: =VLOOKUP(B73+3300000,'AY 19-20 Sept to Marc'!C:D,2,FALSE) -> Bellfield Infant School (NC)
A74: 3302241 | B74: 2241 | C74: Bellfield Junior School | D74: 255 | E74: 18550 | F74: 10821 | G74: 7729 | H74: =(VLOOKUP(B74,'SBS File Check'!B:G,6,FALSE)-G74) -> 0 | J74: -0.1666666667 | L74: =VLOOKUP(B74+3300000,'AY 19-20 Sept to Marc'!C:D,2,FALSE) -> Bellfield Junior School
A75: 3302245 | B75: 2245 | C75: Welsh House Farm Community School and Special Needs Resources Base | D75: 186 | E75: 17860 | F75: 10418 | G75: 7442 | H75: =(VLOOKUP(B75,'SBS File Check'!B:G,6,FALSE)-G75) -> 0 | J75: 0.3333333333 | L75: =VLOOKUP(B75+3300000,'AY 19-20 Sept to Marc'!C:D,2,FALSE) -> Welsh House Farm Community School and Special Needs Resources Base
A76: 3302246 | B76: 2246 | C76: The Meadows Primary School | D76: 497 | E76: 20970 | F76: 12233 | G76: 8737 | H76: =(VLOOKUP(B76,'SBS File Check'!B:G,6,FALSE)-G76) -> 0 | J76: -0.5 | L76: =VLOOKUP(B76+3300000,'AY 19-20 Sept to Marc'!C:D,2,FALSE) -> The Meadows Primary School
A77: 3302251 | B77: 2251 | C77: Chilcote Primary School | D77: 359 | E77: 19590 | F77: 11428 | G77: 8162 | H77: =(VLOOKUP(B77,'SBS File Check'!B:G,6,FALSE)-G77) -> 0 | J77: -0.5 | L77: =VLOOKUP(B77+3300000,'AY 19-20 Sept to Marc'!C:D,2,FALSE) -> Chilcote Primary School
A78: 3302254 | B78: 2254 | C78: Blakesley Hall Primary School | D78: 535 | E78: 21350 | F78: 12454 | G78: 8896 | H78: =(VLOOKUP(B78,'SBS File Check'!B:G,6,FALSE)-G78) -> 0 | J78: 0.1666666667 | L78: =VLOOKUP(B78+3300000,'AY 19-20 Sept to Marc'!C:D,2,FALSE) -> Blakesley Hall Primary School
A79: 3302276 | B79: 2276 | C79: Wilkes Green Infant School (NC) | D79: 179 | E79: 17790 | F79: 10378 | G79: 7412 | H79: =(VLOOKUP(B79,'SBS File Check'!B:G,6,FALSE)-G79) -> 0 | J79: -0.5 | L79: =VLOOKUP(B79+3300000,'AY 19-20 Sept to Marc'!C:D,2,FALSE) -> 
A80: 3302278 | B80: 2278 | C80: Woodgate Primary School | D80: 343 | E80: 19430 | F80: 11334 | G80: 8096 | H80: =(VLOOKUP(B80,'SBS File Check'!B:G,6,FALSE)-G80) -> 0 | J80: 0.1666666667 | L80: =VLOOKUP(B80+3300000,'AY 19-20 Sept to Marc'!C:D,2,FALSE) -> Woodgate Primary School
A81: 3302283 | B81: 2283 | C81: Marlborough Junior School | D81: 367 | E81: 19670 | F81: 11474 | G81: 8196 | H81: =(VLOOKUP(B81,'SBS File Check'!B:G,6,FALSE)-G81) ->  | J81: 0.1666666667 | K81: Conversion | L81: =VLOOKUP(B81+3300000,'AY 19-20 Sept to Marc'!C:D,2,FALSE) -> 
A82: 3302284 | B82: 2284 | C82: Deykin Avenue Junior and Infant School | D82: 180 | E82: 17800 | F82: 10383 | G82: 7417 | H82: =(VLOOKUP(B82,'SBS File Check'!B:G,6,FALSE)-G82) -> 0 | J82: 0.3333333333 | L82: =VLOOKUP(B82+3300000,'AY 19-20 Sept to Marc'!C:D,2,FALSE) -> Deykin Avenue Junior and Infant School
A83: 3302288 | B83: 2288 | C83: Hollywood Primary School | D83: 370 | E83: 19700 | F83: 11492 | G83: 8208 | H83: =(VLOOKUP(B83,'SBS File Check'!B:G,6,FALSE)-G83) -> 0 | J83: -0.3333333333 | L83: =VLOOKUP(B83+3300000,'AY 19-20 Sept to Marc'!C:D,2,FALSE) -> Hollywood Primary School
A84: 3302289 | B84: 2289 | C84: Cofton Primary School | D84: 276 | E84: 18760 | F84: 10943 | G84: 7817 | H84: =(VLOOKUP(B84,'SBS File Check'!B:G,6,FALSE)-G84) -> 0 | J84: 0.3333333333 | L84: =VLOOKUP(B84+3300000,'AY 19-20 Sept to Marc'!C:D,2,FALSE) -> Cofton Primary School
A85: 3302293 | B85: 2293 | C85: Wilkes Green Junior School | D85: =359+D79 -> 538 | E85: =19590+E79 -> 37380 | F85: =11428+F79 -> 21806 | G85: =8162+G79 -> 15574 | H85: =(VLOOKUP(B85,'SBS File Check'!B:G,6,FALSE)-G85) -> -7412 | J85: -9334.333333 | L85: =VLOOKUP(B85+3300000,'AY 19-20 Sept to Marc'!C:D,2,FALSE) -> William Murdoch Primary School
A86: 3302294 | B86: 2294 | C86: Featherstone Primary School | D86: 323 | E86: 19230 | F86: 11218 | G86: 8012 | H86: =(VLOOKUP(B86,'SBS File Check'!B:G,6,FALSE)-G86) -> 0 | J86: -0.5 | L86: =VLOOKUP(B86+3300000,'AY 19-20 Sept to Marc'!C:D,2,FALSE) -> Featherstone Primary School
A87: 3302296 | B87: 2296 | C87: Glenmead Primary School | D87: 347 | E87: 19470 | F87: 11358 | G87: 8112 | H87: =(VLOOKUP(B87,'SBS File Check'!B:G,6,FALSE)-G87) -> 0 | J87: -0.5 | L87: =VLOOKUP(B87+3300000,'AY 19-20 Sept to Marc'!C:D,2,FALSE) -> Glenmead Primary School
A88: 3302300 | B88: 2300 | C88: Arden Primary School | D88: 540 | E88: 21400 | F88: 12483 | G88: 8917 | H88: =(VLOOKUP(B88,'SBS File Check'!B:G,6,FALSE)-G88) -> 0 | J88: 0.3333333333 | L88: =VLOOKUP(B88+3300000,'AY 19-20 Sept to Marc'!C:D,2,FALSE) -> Arden Primary School
A89: 3302306 | B89: 2306 | C89: Water Mill Primary School | D89: 173 | E89: 17730 | F89: 10343 | G89: 7387 | H89: =(VLOOKUP(B89,'SBS File Check'!B:G,6,FALSE)-G89) -> 0 | J89: -0.5 | L89: =VLOOKUP(B89+3300000,'AY 19-20 Sept to Marc'!C:D,2,FALSE) -> Water Mill Primary School
A90: 3302308 | B90: 2308 | C90: Welford Primary School | D90: 363 | E90: 19630 | F90: 11451 | G90: 8179 | H90: =(VLOOKUP(B90,'SBS File Check'!B:G,6,FALSE)-G90) -> 0 | J90: -0.1666666667 | L90: =VLOOKUP(B90+3300000,'AY 19-20 Sept to Marc'!C:D,2,FALSE) -> Welford Primary School
A91: 3302312 | B91: 2312 | C91: Chad Vale Primary School | D91: 361 | E91: 19610 | F91: 11439 | G91: 8171 | H91: =(VLOOKUP(B91,'SBS File Check'!B:G,6,FALSE)-G91) -> 0 | J91: 0.1666666667 | L91: =VLOOKUP(B91+3300000,'AY 19-20 Sept to Marc'!C:D,2,FALSE) -> Chad Vale Primary School
A92: 3302313 | B92: 2313 | C92: Heath Mount Primary School | D92: 352 | E92: 19520 | F92: 11387 | G92: 8133 | H92: =(VLOOKUP(B92,'SBS File Check'!B:G,6,FALSE)-G92) -> 0 | J92: -0.3333333333 | L92: =VLOOKUP(B92+3300000,'AY 19-20 Sept to Marc'!C:D,2,FALSE) -> Heath Mount Primary School
A93: 3302314 | B93: 2314 | C93: Woodthorpe Junior and Infant School | D93: 180 | E93: 17800 | F93: 10383 | G93: 7417 | H93: =(VLOOKUP(B93,'SBS File Check'!B:G,6,FALSE)-G93) -> 0 | J93: 0.3333333333 | L93: =VLOOKUP(B93+3300000,'AY 19-20 Sept to Marc'!C:D,2,FALSE) -> Woodthorpe Junior and Infant School
A94: 3302317 | B94: 2317 | C94: World's End Infant and Nursery School | D94: 180 | E94: 17800 | F94: 10383 | G94: 7417 | H94: =(VLOOKUP(B94,'SBS File Check'!B:G,6,FALSE)-G94) -> 0 | J94: 0.3333333333 | L94: =VLOOKUP(B94+3300000,'AY 19-20 Sept to Marc'!C:D,2,FALSE) -> World's End Infant and Nursery School
A95: 3302321 | B95: 2321 | C95: Kitwell Primary School and Nursery Class | D95: 181 | E95: 17810 | F95: 10389 | G95: 7421 | H95: =(VLOOKUP(B95,'SBS File Check'!B:G,6,FALSE)-G95) -> 0 | J95: 0.1666666667 | L95: =VLOOKUP(B95+3300000,'AY 19-20 Sept to Marc'!C:D,2,FALSE) -> Kitwell Primary School and Nursery Class
A96: 3302401 | B96: 2401 | C96: Boldmere Junior School | D96: 362 | E96: 19620 | F96: 11445 | G96: 8175 | H96: =(VLOOKUP(B96,'SBS File Check'!B:G,6,FALSE)-G96) -> 0 | J96: 0 | L96: =VLOOKUP(B96+3300000,'AY 19-20 Sept to Marc'!C:D,2,FALSE) -> Boldmere Junior School
A97: 3302402 | B97: 2402 | C97: Boldmere Infant School and Nursery | D97: 180 | E97: 17800 | F97: 10383 | G97: 7417 | H97: =(VLOOKUP(B97,'SBS File Check'!B:G,6,FALSE)-G97) -> 0 | J97: 0.3333333333 | L97: =VLOOKUP(B97+3300000,'AY 19-20 Sept to Marc'!C:D,2,FALSE) -> Boldmere Infant School and Nursery
A98: 3302406 | B98: 2406 | C98: Minworth Junior and Infant School | D98: 175 | E98: 17750 | F98: 10354 | G98: 7396 | H98: =(VLOOKUP(B98,'SBS File Check'!B:G,6,FALSE)-G98) -> 0 | J98: 0.1666666667 | L98: =VLOOKUP(B98+3300000,'AY 19-20 Sept to Marc'!C:D,2,FALSE) -> Minworth Junior and Infant School
A99: 3302412 | B99: 2412 | C99: Wylde Green Primary School | D99: 363 | E99: 19630 | F99: 11451 | G99: 8179 | H99: =(VLOOKUP(B99,'SBS File Check'!B:G,6,FALSE)-G99) -> 0 | J99: -0.1666666667 | L99: =VLOOKUP(B99+3300000,'AY 19-20 Sept to Marc'!C:D,2,FALSE) -> Wylde Green Primary School
A100: 3302416 | B100: 2416 | C100: Moor Hall Primary School | D100: 213 | E100: 18130 | F100: 10576 | G100: 7554 | H100: =(VLOOKUP(B100,'SBS File Check'!B:G,6,FALSE)-G100) -> 0 | J100: -0.1666666667 | L100: =VLOOKUP(B100+3300000,'AY 19-20 Sept to Marc'!C:D,2,FALSE) -> Moor Hall Primary School
A101: 3302420 | B101: 2420 | C101: Maney Hill Primary School | D101: 240 | E101: 18400 | F101: 10733 | G101: 7667 | H101: =(VLOOKUP(B101,'SBS File Check'!B:G,6,FALSE)-G101) -> 0 | J101: 0.3333333333 | L101: =VLOOKUP(B101+3300000,'AY 19-20 Sept to Marc'!C:D,2,FALSE) -> Maney Hill Primary School
A102: 3302425 | B102: 2425 | C102: Penns Primary School | D102: 180 | E102: 17800 | F102: 10383 | G102: 7417 | H102: =(VLOOKUP(B102,'SBS File Check'!B:G,6,FALSE)-G102) -> 0 | J102: 0.3333333333 | L102: =VLOOKUP(B102+3300000,'AY 19-20 Sept to Marc'!C:D,2,FALSE) -> Penns Primary School
A103: 3302429 | B103: 2429 | C103: Holland House Infant School and Nursery | D103: 120 | E103: 17200 | F103: 10033 | G103: 7167 | H103: =(VLOOKUP(B103,'SBS File Check'!B:G,6,FALSE)-G103) -> 0 | J103: 0.3333333333 | L103: =VLOOKUP(B103+3300000,'AY 19-20 Sept to Marc'!C:D,2,FALSE) -> Holland House Infant School and Nursery
A104: 3302435 | B104: 2435 | C104: Benson Community School | D104: 453 | E104: 20530 | F104: 11976 | G104: 8554 | H104: =(VLOOKUP(B104,'SBS File Check'!B:G,6,FALSE)-G104) -> 0 | J104: -0.1666666667 | L104: =VLOOKUP(B104+3300000,'AY 19-20 Sept to Marc'!C:D,2,FALSE) -> Benson Community School
A105: 3302436 | B105: 2436 | C105: Osborne Primary School | D105: 208 | E105: 18080 | F105: 10547 | G105: 7533 | H105: =(VLOOKUP(B105,'SBS File Check'!B:G,6,FALSE)-G105) -> 0 | J105: -0.3333333333 | L105: =VLOOKUP(B105+3300000,'AY 19-20 Sept to Marc'!C:D,2,FALSE) -> Osborne Primary School
A106: 3302438 | B106: 2438 | C106: Highters Heath Community School | D106: 177 | E106: 17770 | F106: 10366 | G106: 7404 | H106: =(VLOOKUP(B106,'SBS File Check'!B:G,6,FALSE)-G106) -> 0 | J106: -0.1666666667 | L106: =VLOOKUP(B106+3300000,'AY 19-20 Sept to Marc'!C:D,2,FALSE) -> Highters Heath Community School
A107: 3302441 | B107: 2441 | C107: Kingsthorne Primary School | D107: 346 | E107: 19460 | F107: 11352 | G107: 8108 | H107: =(VLOOKUP(B107,'SBS File Check'!B:G,6,FALSE)-G107) -> 0 | J107: -0.3333333333 | L107: =VLOOKUP(B107+3300000,'AY 19-20 Sept to Marc'!C:D,2,FALSE) -> Kingsthorne Primary School
A108: 3302445 | B108: 2445 | C108: Woodcock Hill Primary School | D108: 178 | E108: 17780 | F108: 10372 | G108: 7408 | H108: =(VLOOKUP(B108,'SBS File Check'!B:G,6,FALSE)-G108) -> 0 | J108: -0.3333333333 | L108: =VLOOKUP(B108+3300000,'AY 19-20 Sept to Marc'!C:D,2,FALSE) -> Woodcock Hill Primary School
A109: 3302454 | B109: 2454 | C109: Elms Farm Community Primary School | D109: 313 | E109: 19130 | F109: 11159 | G109: 7971 | H109: =(VLOOKUP(B109,'SBS File Check'!B:G,6,FALSE)-G109) -> 0 | J109: 0.1666666667 | L109: =VLOOKUP(B109+3300000,'AY 19-20 Sept to Marc'!C:D,2,FALSE) -> Elms Farm Community Primary School
A110: 3302456 | B110: 2456 | C110: Bells Farm Primary School | D110: 172 | E110: 17720 | F110: 10337 | G110: 7383 | H110: =(VLOOKUP(B110,'SBS File Check'!B:G,6,FALSE)-G110) -> 0 | J110: -0.3333333333 | L110: =VLOOKUP(B110+3300000,'AY 19-20 Sept to Marc'!C:D,2,FALSE) -> Bells Farm Primary School
A111: 3302457 | B111: 2457 | C111: Nelson Mandela School | D111: 363 | E111: 19630 | F111: 11451 | G111: 8179 | H111: =(VLOOKUP(B111,'SBS File Check'!B:G,6,FALSE)-G111) -> 0 | J111: -0.1666666667 | L111: =VLOOKUP(B111+3300000,'AY 19-20 Sept to Marc'!C:D,2,FALSE) -> Nelson Mandela School
A112: 3302462 | B112: 2462 | C112: Little Sutton Primary School | D112: 360 | E112: 19600 | F112: 11433 | G112: 8167 | H112: =(VLOOKUP(B112,'SBS File Check'!B:G,6,FALSE)-G112) -> 0 | J112: 0.3333333333 | L112: =VLOOKUP(B112+3300000,'AY 19-20 Sept to Marc'!C:D,2,FALSE) -> Little Sutton Primary School
A113: 3302464 | B113: 2464 | C113: Coppice Primary School | D113: 364 | E113: 19640 | F113: 11457 | G113: 8183 | H113: =(VLOOKUP(B113,'SBS File Check'!B:G,6,FALSE)-G113) -> 0 | J113: -0.3333333333 | L113: =VLOOKUP(B113+3300000,'AY 19-20 Sept to Marc'!C:D,2,FALSE) -> Coppice Primary School
A114: 3302465 | B114: 2465 | C114: Calshot Primary School | D114: 359 | E114: 19590 | F114: 11428 | G114: 8162 | H114: =(VLOOKUP(B114,'SBS File Check'!B:G,6,FALSE)-G114) -> 0 | J114: -0.5 | L114: =VLOOKUP(B114+3300000,'AY 19-20 Sept to Marc'!C:D,2,FALSE) -> Calshot Primary School
A115: 3302466 | B115: 2466 | C115: Grove School | D115: 539 | E115: 21390 | F115: 12478 | G115: 8912 | H115: =(VLOOKUP(B115,'SBS File Check'!B:G,6,FALSE)-G115) -> 0 | J115: -0.5 | L115: =VLOOKUP(B115+3300000,'AY 19-20 Sept to Marc'!C:D,2,FALSE) -> Grove School
A116: 3302469 | B116: 2469 | C116: New Hall Primary and Children's Centre | D116: 312 | E116: 19120 | F116: 11153 | G116: 7967 | H116: =(VLOOKUP(B116,'SBS File Check'!B:G,6,FALSE)-G116) -> 0 | J116: 0.3333333333 | L116: =VLOOKUP(B116+3300000,'AY 19-20 Sept to Marc'!C:D,2,FALSE) -> New Hall Primary School
A117: 3302474 | B117: 2474 | C117: Hollyfield Primary School | D117: 354 | E117: 19540 | F117: 11398 | G117: 8142 | H117: =(VLOOKUP(B117,'SBS File Check'!B:G,6,FALSE)-G117) -> 0 | J117: 0.3333333333 | L117: =VLOOKUP(B117+3300000,'AY 19-20 Sept to Marc'!C:D,2,FALSE) -> Hollyfield Primary School
A118: 3302477 | B118: 2477 | C118: Harborne Primary School | D118: 538 | E118: 21380 | F118: 12472 | G118: 8908 | H118: =(VLOOKUP(B118,'SBS File Check'!B:G,6,FALSE)-G118) -> 0 | J118: -0.3333333333 | L118: =VLOOKUP(B118+3300000,'AY 19-20 Sept to Marc'!C:D,2,FALSE) -> Harborne Primary School
A119: 3302478 | B119: 2478 | C119: Whitehouse Common Primary School | D119: 391 | E119: 19910 | F119: 11614 | G119: 8296 | H119: =(VLOOKUP(B119,'SBS File Check'!B:G,6,FALSE)-G119) -> 0 | J119: 0.1666666667 | L119: =VLOOKUP(B119+3300000,'AY 19-20 Sept to Marc'!C:D,2,FALSE) -> Whitehouse Common Primary School
A120: 3302479 | B120: 2479 | C120: Anglesey Primary School | D120: 578 | E120: 21780 | F120: 12705 | G120: 9075 | H120: =(VLOOKUP(B120,'SBS File Check'!B:G,6,FALSE)-G120) -> 0 | J120: 0 | L120: =VLOOKUP(B120+3300000,'AY 19-20 Sept to Marc'!C:D,2,FALSE) -> Anglesey Primary School
A121: 3302482 | B121: 2482 | C121: Wattville Primary School | D121: 408 | E121: 20080 | F121: 11713 | G121: 8367 | H121: =(VLOOKUP(B121,'SBS File Check'!B:G,6,FALSE)-G121) -> 0 | J121: 0.3333333333 | L121: =VLOOKUP(B121+3300000,'AY 19-20 Sept to Marc'!C:D,2,FALSE) -> Wattville Primary School
A122: 3302485 | B122: 2485 | C122: Yenton Primary School | D122: 399 | E122: 19990 | F122: 11661 | G122: 8329 | H122: =(VLOOKUP(B122,'SBS File Check'!B:G,6,FALSE)-G122) -> 0 | J122: -0.1666666667 | L122: =VLOOKUP(B122+3300000,'AY 19-20 Sept to Marc'!C:D,2,FALSE) -> 
A123: 3302486 | B123: 2486 | C123: Forestdale Primary School | D123: 178 | E123: 17780 | F123: 10372 | G123: 7408 | H123: =(VLOOKUP(B123,'SBS File Check'!B:G,6,FALSE)-G123) -> 0 | J123: -0.3333333333 | L123: =VLOOKUP(B123+3300000,'AY 19-20 Sept to Marc'!C:D,2,FALSE) -> Forestdale Primary School
A124: 3303002 | B124: 3002 | C124: Christ Church CofE Controlled Primary School and Nursery | D124: 180 | E124: 17800 | F124: 10383 | G124: 7417 | H124: =(VLOOKUP(B124,'SBS File Check'!B:G,6,FALSE)-G124) -> 0 | J124: 0.3333333333 | L124: =VLOOKUP(B124+3300000,'AY 19-20 Sept to Marc'!C:D,2,FALSE) -> Christ Church CofE Controlled Primary School and Nursery
A125: 3303003 | B125: 3003 | C125: Moseley Church of England Primary School | D125: 183 | E125: 17830 | F125: 10401 | G125: 7429 | H125: =(VLOOKUP(B125,'SBS File Check'!B:G,6,FALSE)-G125) -> 0 | J125: -0.1666666667 | L125: =VLOOKUP(B125+3300000,'AY 19-20 Sept to Marc'!C:D,2,FALSE) -> Moseley Church of England Primary School
A126: 3303010 | B126: 3010 | C126: St James Church of England Primary School, Handsworth | D126: 361 | E126: 19610 | F126: 11439 | G126: 8171 | H126: =(VLOOKUP(B126,'SBS File Check'!B:G,6,FALSE)-G126) -> 0 | J126: 0.1666666667 | L126: =VLOOKUP(B126+3300000,'AY 19-20 Sept to Marc'!C:D,2,FALSE) -> St James Church of England Primary School, Handsworth
A127: 3303016 | B127: 3016 | C127: St Matthew's CofE Primary School | D127: 176 | E127: 17760 | F127: 10360 | G127: 7400 | H127: =(VLOOKUP(B127,'SBS File Check'!B:G,6,FALSE)-G127) -> 0 | J127: 0 | L127: =VLOOKUP(B127+3300000,'AY 19-20 Sept to Marc'!C:D,2,FALSE) -> St Matthew's CofE Primary School
A128: 3303019 | B128: 3019 | C128: St Saviour's C of E Primary School | D128: 351 | E128: 19510 | F128: 11381 | G128: 8129 | H128: =(VLOOKUP(B128,'SBS File Check'!B:G,6,FALSE)-G128) -> 0 | J128: -0.1666666667 | L128: =VLOOKUP(B128+3300000,'AY 19-20 Sept to Marc'!C:D,2,FALSE) -> St Saviour's C of E Primary School
A129: 3303025 | B129: 3025 | C129: St Mary's Church of England Primary School | D129: 328 | E129: 19280 | F129: 11247 | G129: 8033 | H129: =(VLOOKUP(B129,'SBS File Check'!B:G,6,FALSE)-G129) -> 0 | J129: -0.3333333333 | L129: =VLOOKUP(B129+3300000,'AY 19-20 Sept to Marc'!C:D,2,FALSE) -> St Mary's Church of England Primary School
A130: 3303302 | B130: 3302 | C130: Saint Barnabas Church of England Primary School | D130: 328 | E130: 19280 | F130: 11247 | G130: 8033 | H130: =(VLOOKUP(B130,'SBS File Check'!B:G,6,FALSE)-G130) -> 0 | J130: -0.3333333333 | L130: =VLOOKUP(B130+3300000,'AY 19-20 Sept to Marc'!C:D,2,FALSE) -> Saint Barnabas Church of England Primary School
A131: 3303307 | B131: 3307 | C131: St Laurence Church Junior School | D131: 360 | E131: 19600 | F131: 11433 | G131: 8167 | H131: =(VLOOKUP(B131,'SBS File Check'!B:G,6,FALSE)-G131) -> 0 | J131: 0.3333333333 | L131: =VLOOKUP(B131+3300000,'AY 19-20 Sept to Marc'!C:D,2,FALSE) -> St Laurence Church Junior School
A132: 3303310 | B132: 3310 | C132: St Vincent's Catholic Primary School | D132: 175 | E132: 17750 | F132: 10354 | G132: 7396 | H132: =(VLOOKUP(B132,'SBS File Check'!B:G,6,FALSE)-G132) -> 0 | J132: 0.1666666667 | L132: =VLOOKUP(B132+3300000,'AY 19-20 Sept to Marc'!C:D,2,FALSE) -> St Vincent's Catholic Primary School
A133: 3303316 | B133: 3316 | C133: Guardian Angels Catholic Primary School | D133: 211 | E133: 18110 | F133: 10564 | G133: 7546 | H133: =(VLOOKUP(B133,'SBS File Check'!B:G,6,FALSE)-G133) -> 0 | J133: =(((16000+(D133*10))/12*7)-F133) -> 0.1666666667 | L133: =VLOOKUP(B133+3300000,'AY 19-20 Sept to Marc'!C:D,2,FALSE) -> Guardian Angels Catholic Primary School
A134: 3303317 | B134: 3317 | C134: Holy Family Catholic Primary School | D134: 201 | E134: 18010 | F134: 10506 | G134: 7504 | H134: =(VLOOKUP(B134,'SBS File Check'!B:G,6,FALSE)-G134) -> 0 | J134: -0.1666666667 | L134: =VLOOKUP(B134+3300000,'AY 19-20 Sept to Marc'!C:D,2,FALSE) -> Holy Family Catholic Primary School
A135: 3303318 | B135: 3318 | C135: Abbey Catholic Primary School | D135: 357 | E135: 19570 | F135: 11416 | G135: 8154 | H135: =(VLOOKUP(B135,'SBS File Check'!B:G,6,FALSE)-G135) -> 0 | J135: -0.1666666667 | L135: =VLOOKUP(B135+3300000,'AY 19-20 Sept to Marc'!C:D,2,FALSE) -> Abbey Catholic Primary School
A136: 3303319 | B136: 3319 | C136: Christ The King Catholic Primary School | D136: 317 | E136: 19170 | F136: 11183 | G136: 7987 | H136: =(VLOOKUP(B136,'SBS File Check'!B:G,6,FALSE)-G136) -> 0 | J136: -0.5 | L136: =VLOOKUP(B136+3300000,'AY 19-20 Sept to Marc'!C:D,2,FALSE) -> Christ The King Catholic Primary School
A137: 3303320 | B137: 3320 | C137: Corpus Christi Catholic Primary School | D137: 358 | E137: 19580 | F137: 11422 | G137: 8158 | H137: =(VLOOKUP(B137,'SBS File Check'!B:G,6,FALSE)-G137) -> 0 | J137: -0.3333333333 | L137: =VLOOKUP(B137+3300000,'AY 19-20 Sept to Marc'!C:D,2,FALSE) -> Corpus Christi Catholic Primary School
A138: 3303321 | B138: 3321 | C138: English Martyrs' Catholic Primary School | D138: 354 | E138: 19540 | F138: 11398 | G138: 8142 | H138: =(VLOOKUP(B138,'SBS File Check'!B:G,6,FALSE)-G138) -> 0 | J138: 0.3333333333 | L138: =VLOOKUP(B138+3300000,'AY 19-20 Sept to Marc'!C:D,2,FALSE) -> English Martyrs' Catholic Primary School
A139: 3303322 | B139: 3322 | C139: Maryvale Catholic Primary School | D139: 175 | E139: 17750 | F139: 10354 | G139: 7396 | H139: =(VLOOKUP(B139,'SBS File Check'!B:G,6,FALSE)-G139) -> 0 | J139: 0.1666666667 | L139: =VLOOKUP(B139+3300000,'AY 19-20 Sept to Marc'!C:D,2,FALSE) -> Maryvale Catholic Primary School
A140: 3303323 | B140: 3323 | C140: The Oratory Roman Catholic Primary School | D140: 180 | E140: 17800 | F140: 10383 | G140: 7417 | H140: =(VLOOKUP(B140,'SBS File Check'!B:G,6,FALSE)-G140) -> 0 | J140: 0.3333333333 | L140: =VLOOKUP(B140+3300000,'AY 19-20 Sept to Marc'!C:D,2,FALSE) -> The Oratory Roman Catholic Primary School
A141: 3303325 | B141: 3325 | C141: The Rosary Catholic Primary School | D141: 344 | E141: 19440 | F141: 11340 | G141: 8100 | H141: =(VLOOKUP(B141,'SBS File Check'!B:G,6,FALSE)-G141) -> 0 | J141: 0 | L141: =VLOOKUP(B141+3300000,'AY 19-20 Sept to Marc'!C:D,2,FALSE) -> The Rosary Catholic Primary School
A142: 3303327 | B142: 3327 | C142: Holy Souls Catholic Primary School | D142: 360 | E142: 19600 | F142: 11433 | G142: 8167 | H142: =(VLOOKUP(B142,'SBS File Check'!B:G,6,FALSE)-G142) -> -6533.6 | J142: 0.3333333333 | K142: Conversion May 2019 | L142: =VLOOKUP(B142+3300000,'AY 19-20 Sept to Marc'!C:D,2,FALSE) -> 
A143: 3303328 | B143: 3328 | C143: Our Lady of Lourdes Catholic Primary School (NC) | D143: 180 | E143: 17800 | F143: 10383 | G143: 7417 | H143: =(VLOOKUP(B143,'SBS File Check'!B:G,6,FALSE)-G143) -> 0 | J143: 0.3333333333 | L143: =VLOOKUP(B143+3300000,'AY 19-20 Sept to Marc'!C:D,2,FALSE) -> Our Lady of Lourdes Catholic Primary School (NC)
A144: 3303329 | B144: 3329 | C144: St Augustine's Catholic Primary School | D144: 175 | E144: 17750 | F144: 10354 | G144: 7396 | H144: =(VLOOKUP(B144,'SBS File Check'!B:G,6,FALSE)-G144) -> 0 | J144: 0.1666666667 | L144: =VLOOKUP(B144+3300000,'AY 19-20 Sept to Marc'!C:D,2,FALSE) -> St Augustine's Catholic Primary School
A145: 3303331 | B145: 3331 | C145: St Catherine of Siena Catholic Primary School | D145: 186 | E145: 17860 | F145: 10418 | G145: 7442 | H145: =(VLOOKUP(B145,'SBS File Check'!B:G,6,FALSE)-G145) -> 0 | J145: 0.3333333333 | L145: =VLOOKUP(B145+3300000,'AY 19-20 Sept to Marc'!C:D,2,FALSE) -> St Catherine of Siena Catholic Primary School
A146: 3303335 | B146: 3335 | C146: St Anne's Catholic Primary School | D146: 174 | E146: 17740 | F146: 10348 | G146: 7392 | H146: =(VLOOKUP(B146,'SBS File Check'!B:G,6,FALSE)-G146) -> 0 | J146: 0.3333333333 | L146: =VLOOKUP(B146+3300000,'AY 19-20 Sept to Marc'!C:D,2,FALSE) -> St Anne's Catholic Primary School
A147: 3303337 | B147: 3337 | C147: St Chad's Catholic Primary School | D147: 184 | E147: 17840 | F147: 10407 | G147: 7433 | H147: =(VLOOKUP(B147,'SBS File Check'!B:G,6,FALSE)-G147) -> 0 | J147: -0.3333333333 | L147: =VLOOKUP(B147+3300000,'AY 19-20 Sept to Marc'!C:D,2,FALSE) -> St Chad's Catholic Primary School
A148: 3303339 | B148: 3339 | C148: St Joseph's Catholic Primary School | D148: 173 | E148: 17730 | F148: 10343 | G148: 7387 | H148: =(VLOOKUP(B148,'SBS File Check'!B:G,6,FALSE)-G148) -> 0 | J148: -0.5 | L148: =VLOOKUP(B148+3300000,'AY 19-20 Sept to Marc'!C:D,2,FALSE) -> St Joseph's Catholic Primary School
A149: 3303342 | B149: 3342 | C149: St Francis Catholic Primary School | D149: 359 | E149: 19590 | F149: 11428 | G149: 8162 | H149: =(VLOOKUP(B149,'SBS File Check'!B:G,6,FALSE)-G149) -> 0 | J149: -0.5 | L149: =VLOOKUP(B149+3300000,'AY 19-20 Sept to Marc'!C:D,2,FALSE) -> St Francis Catholic Primary School
A150: 3303344 | B150: 3344 | C150: St Mary's Catholic Primary School | D150: 361 | E150: 19610 | F150: 11439 | G150: 8171 | H150: =(VLOOKUP(B150,'SBS File Check'!B:G,6,FALSE)-G150) -> 0 | J150: 0.1666666667 | L150: =VLOOKUP(B150+3300000,'AY 19-20 Sept to Marc'!C:D,2,FALSE) -> St Mary's Catholic Primary School
A151: 3303346 | B151: 3346 | C151: St Patrick's Catholic Primary School | D151: 176 | E151: 17760 | F151: 10360 | G151: 7400 | H151: =(VLOOKUP(B151,'SBS File Check'!B:G,6,FALSE)-G151) -> 0 | J151: 0 | L151: =VLOOKUP(B151+3300000,'AY 19-20 Sept to Marc'!C:D,2,FALSE) -> St Patrick's Catholic Primary School
A152: 3303347 | B152: 3347 | C152: St Edmund's Catholic Primary School | D152: 180 | E152: 17800 | F152: 10383 | G152: 7417 | H152: =(VLOOKUP(B152,'SBS File Check'!B:G,6,FALSE)-G152) -> 0 | J152: 0.3333333333 | L152: =VLOOKUP(B152+3300000,'AY 19-20 Sept to Marc'!C:D,2,FALSE) -> St Edmund's Catholic Primary School
A153: 3303349 | B153: 3349 | C153: St Thomas More Catholic Primary School | D153: 302 | E153: 19020 | F153: 11095 | G153: 7925 | H153: =(VLOOKUP(B153,'SBS File Check'!B:G,6,FALSE)-G153) -> 0 | J153: 0 | L153: =VLOOKUP(B153+3300000,'AY 19-20 Sept to Marc'!C:D,2,FALSE) -> 
A154: 3303350 | B154: 3350 | C154: St Mary and St John Junior and Infant School | D154: 345 | E154: 19450 | F154: 11346 | G154: 8104 | H154: =(VLOOKUP(B154,'SBS File Check'!B:G,6,FALSE)-G154) ->  | J154: -0.1666666667 | K154: Conversion | L154: =VLOOKUP(B154+3300000,'AY 19-20 Sept to Marc'!C:D,2,FALSE) -> 
A155: 3303351 | B155: 3351 | C155: Our Lady and St Rose of Lima Catholic Primary School | D155: 182 | E155: 17820 | F155: 10395 | G155: 7425 | H155: =(VLOOKUP(B155,'SBS File Check'!B:G,6,FALSE)-G155) -> 0 | J155: 0 | L155: =VLOOKUP(B155+3300000,'AY 19-20 Sept to Marc'!C:D,2,FALSE) -> Our Lady and St Rose of Lima Catholic Primary School
A156: 3303352 | B156: 3352 | C156: King David Junior and Infant School | D156: 176 | E156: 17760 | F156: 10360 | G156: 7400 | H156: =(VLOOKUP(B156,'SBS File Check'!B:G,6,FALSE)-G156) -> 0 | J156: 0 | L156: =VLOOKUP(B156+3300000,'AY 19-20 Sept to Marc'!C:D,2,FALSE) -> King David Junior and Infant School
A157: 3303353 | B157: 3353 | C157: Bournville Junior School | D157: =382+D158 -> 562 | E157: =19820+E158 -> 37620 | F157: =11562+F158 -> 21945 | G157: =8258+G158 -> 15675 | H157: =(VLOOKUP(B157,'SBS File Check'!B:G,6,FALSE)-G157) -> -7417 | J157: -9333.333333 | L157: =VLOOKUP(B157+3300000,'AY 19-20 Sept to Marc'!C:D,2,FALSE) -> Bournville Village Primary
A158: 3303354 | B158: 3354 | C158: Bournville Infant School | D158: 180 | E158: 17800 | F158: 10383 | G158: 7417 | H158: =(VLOOKUP(B158,'SBS File Check'!B:G,6,FALSE)-G158) -> 0 | J158: 0.3333333333 | L158: =VLOOKUP(B158+3300000,'AY 19-20 Sept to Marc'!C:D,2,FALSE) -> 
A159: 3303355 | B159: 3355 | C159: St Edward's Catholic Primary School | D159: 347 | E159: 19470 | F159: 11358 | G159: 8112 | H159: =(VLOOKUP(B159,'SBS File Check'!B:G,6,FALSE)-G159) -> 0 | J159: -0.5 | L159: =VLOOKUP(B159+3300000,'AY 19-20 Sept to Marc'!C:D,2,FALSE) -> St Edward's Catholic Primary School
A160: 3303357 | B160: 3357 | C160: Our Lady's Catholic Primary School | D160: 177 | E160: 17770 | F160: 10366 | G160: 7404 | H160: =(VLOOKUP(B160,'SBS File Check'!B:G,6,FALSE)-G160) -> 0 | J160: -0.1666666667 | L160: =VLOOKUP(B160+3300000,'AY 19-20 Sept to Marc'!C:D,2,FALSE) -> Our Lady's Catholic Primary School
A161: 3303359 | B161: 3359 | C161: St Wilfrid's Catholic Junior and Infant School | D161: 322 | E161: 19220 | F161: 11212 | G161: 8008 | H161: =(VLOOKUP(B161,'SBS File Check'!B:G,6,FALSE)-G161) -> 0 | J161: -0.3333333333 | L161: =VLOOKUP(B161+3300000,'AY 19-20 Sept to Marc'!C:D,2,FALSE) -> St Wilfrid's Catholic Junior and Infant School
A162: 3303360 | B162: 3360 | C162: St John Fisher Catholic Primary School | D162: 178 | E162: 17780 | F162: 10372 | G162: 7408 | H162: =(VLOOKUP(B162,'SBS File Check'!B:G,6,FALSE)-G162) -> 0 | J162: -0.3333333333 | L162: =VLOOKUP(B162+3300000,'AY 19-20 Sept to Marc'!C:D,2,FALSE) -> St John Fisher Catholic Primary School
A163: 3303361 | B163: 3361 | C163: St Margaret Mary RC Junior and Infant School | D163: 252 | E163: 18520 | F163: 10803 | G163: 7717 | H163: =(VLOOKUP(B163,'SBS File Check'!B:G,6,FALSE)-G163) -> 0 | J163: 0.3333333333 | L163: =VLOOKUP(B163+3300000,'AY 19-20 Sept to Marc'!C:D,2,FALSE) -> St Margaret Mary RC Junior and Infant School
A164: 3303362 | B164: 3362 | C164: St Peter and St Paul RC Junior and Infant School | D164: 178 | E164: 17780 | F164: 10372 | G164: 7408 | H164: =(VLOOKUP(B164,'SBS File Check'!B:G,6,FALSE)-G164) ->  | J164: -0.3333333333 | K164: Conversion | L164: =VLOOKUP(B164+3300000,'AY 19-20 Sept to Marc'!C:D,2,FALSE) -> 
A165: 3303363 | B165: 3363 | C165: St Dunstan's Catholic Primary School | D165: 331 | E165: 19310 | F165: 11264 | G165: 8046 | H165: =(VLOOKUP(B165,'SBS File Check'!B:G,6,FALSE)-G165) -> 0 | J165: 0.1666666667 | L165: =VLOOKUP(B165+3300000,'AY 19-20 Sept to Marc'!C:D,2,FALSE) -> St Dunstan's Catholic Primary School
A166: 3303365 | B166: 3365 | C166: St Teresa's Catholic Primary School | D166: 181 | E166: 17810 | F166: 10389 | G166: 7421 | H166: =(VLOOKUP(B166,'SBS File Check'!B:G,6,FALSE)-G166) -> 0 | J166: 0.1666666667 | L166: =VLOOKUP(B166+3300000,'AY 19-20 Sept to Marc'!C:D,2,FALSE) -> St Teresa's Catholic Primary School
A167: 3303367 | B167: 3367 | C167: St Gerard's RC Junior and Infant School | D167: 178 | E167: 17780 | F167: 10372 | G167: 7408 | H167: =(VLOOKUP(B167,'SBS File Check'!B:G,6,FALSE)-G167) -> 0 | J167: -0.3333333333 | L167: =VLOOKUP(B167+3300000,'AY 19-20 Sept to Marc'!C:D,2,FALSE) -> St Gerard's RC Junior and Infant School
A168: 3303371 | B168: 3371 | C168: St Laurence Church Infant School | D168: 180 | E168: 17800 | F168: 10383 | G168: 7417 | H168: =(VLOOKUP(B168,'SBS File Check'!B:G,6,FALSE)-G168) -> 0 | J168: 0.3333333333 | L168: =VLOOKUP(B168+3300000,'AY 19-20 Sept to Marc'!C:D,2,FALSE) -> St Laurence Church Infant School
A169: 3303372 | B169: 3372 | C169: St Bernadette's Catholic Primary School | D169: 534 | E169: 21340 | F169: 12448 | G169: 8892 | H169: =(VLOOKUP(B169,'SBS File Check'!B:G,6,FALSE)-G169) -> 0 | J169: 0.3333333333 | L169: =VLOOKUP(B169+3300000,'AY 19-20 Sept to Marc'!C:D,2,FALSE) -> St Bernadette's Catholic Primary School
A170: 3303375 | B170: 3375 | C170: St Bernard's Catholic Primary School | D170: 358 | E170: 19580 | F170: 11422 | G170: 8158 | H170: =(VLOOKUP(B170,'SBS File Check'!B:G,6,FALSE)-G170) -> 0 | J170: -0.3333333333 | L170: =VLOOKUP(B170+3300000,'AY 19-20 Sept to Marc'!C:D,2,FALSE) -> St Bernard's Catholic Primary School
A171: 3303377 | B171: 3377 | C171: St Jude's Catholic Primary School | D171: 171 | E171: 17710 | F171: 10331 | G171: 7379 | H171: =(VLOOKUP(B171,'SBS File Check'!B:G,6,FALSE)-G171) -> 0 | J171: -0.1666666667 | L171: =VLOOKUP(B171+3300000,'AY 19-20 Sept to Marc'!C:D,2,FALSE) -> St Jude's Catholic Primary School
A172: 3303380 | B172: 3380 | C172: St Ambrose Barlow Catholic Primary School | D172: 178 | E172: 17780 | F172: 10372 | G172: 7408 | H172: =(VLOOKUP(B172,'SBS File Check'!B:G,6,FALSE)-G172) -> 0 | J172: -0.3333333333 | L172: =VLOOKUP(B172+3300000,'AY 19-20 Sept to Marc'!C:D,2,FALSE) -> St Ambrose Barlow Catholic Primary School
A173: 3303381 | B173: 3381 | C173: St Alban's Catholic Primary School | D173: 177 | E173: 17770 | F173: 10366 | G173: 7404 | H173: =(VLOOKUP(B173,'SBS File Check'!B:G,6,FALSE)-G173) -> 0 | J173: -0.1666666667 | L173: =VLOOKUP(B173+3300000,'AY 19-20 Sept to Marc'!C:D,2,FALSE) -> St Alban's Catholic Primary School
A174: 3303382 | B174: 3382 | C174: St Martin de Porres Catholic Primary School | D174: 175 | E174: 17750 | F174: 10354 | G174: 7396 | H174: =(VLOOKUP(B174,'SBS File Check'!B:G,6,FALSE)-G174) -> 0 | J174: 0.1666666667 | L174: =VLOOKUP(B174+3300000,'AY 19-20 Sept to Marc'!C:D,2,FALSE) -> St Martin de Porres Catholic Primary School
A175: 3303383 | B175: 3383 | C175: St Mark's Catholic Primary School | D175: 180 | E175: 17800 | F175: 10383 | G175: 7417 | H175: =(VLOOKUP(B175,'SBS File Check'!B:G,6,FALSE)-G175) -> 0 | J175: 0.3333333333 | L175: =VLOOKUP(B175+3300000,'AY 19-20 Sept to Marc'!C:D,2,FALSE) -> St Mark's Catholic Primary School
A176: 3303385 | B176: 3385 | C176: St Peter's Catholic Primary School | D176: 180 | E176: 17800 | F176: 10383 | G176: 7417 | H176: =(VLOOKUP(B176,'SBS File Check'!B:G,6,FALSE)-G176) -> 0 | J176: 0.3333333333 | L176: =VLOOKUP(B176+3300000,'AY 19-20 Sept to Marc'!C:D,2,FALSE) -> St Peter's Catholic Primary School
A177: 3303386 | B177: 3386 | C177: St Cuthbert's RC Junior and Infant (NC) School | D177: 180 | E177: 17800 | F177: 10383 | G177: 7417 | H177: =(VLOOKUP(B177,'SBS File Check'!B:G,6,FALSE)-G177) -> 0 | J177: 0.3333333333 | L177: =VLOOKUP(B177+3300000,'AY 19-20 Sept to Marc'!C:D,2,FALSE) -> St Cuthbert's RC Junior and Infant (NC) School
A178: 3303406 | B178: 3406 | C178: St Clare's Catholic Primary School | D178: 361 | E178: 19610 | F178: 11439 | G178: 8171 | H178: =(VLOOKUP(B178,'SBS File Check'!B:G,6,FALSE)-G178) -> 0 | J178: 0.1666666667 | L178: =VLOOKUP(B178+3300000,'AY 19-20 Sept to Marc'!C:D,2,FALSE) -> St Clare's Catholic Primary School
A179: 3303409 | B179: 3409 | C179: Sacred Heart Catholic School | D179: 190 | E179: 17900 | F179: 10442 | G179: 7458 | H179: =(VLOOKUP(B179,'SBS File Check'!B:G,6,FALSE)-G179) -> 0 | J179: -0.3333333333 | L179: =VLOOKUP(B179+3300000,'AY 19-20 Sept to Marc'!C:D,2,FALSE) -> 
A180: 3303410 | B180: 3410 | C180: St John and Monica Catholic Primary School | D180: 181 | E180: 17810 | F180: 10389 | G180: 7421 | H180: =(VLOOKUP(B180,'SBS File Check'!B:G,6,FALSE)-G180) -> 0 | J180: 0.1666666667 | L180: =VLOOKUP(B180+3300000,'AY 19-20 Sept to Marc'!C:D,2,FALSE) -> St John and Monica Catholic Primary School
A181: 3303411 | B181: 3411 | C181: Holly Hill Methodist CofE Infant School | D181: 118 | E181: 17180 | F181: 10022 | G181: 7158 | H181: =(VLOOKUP(B181,'SBS File Check'!B:G,6,FALSE)-G181) -> 0 | J181: -0.3333333333 | L181: =VLOOKUP(B181+3300000,'AY 19-20 Sept to Marc'!C:D,2,FALSE) -> Holly Hill Methodist CofE Infant School
A182: 3303413 | B182: 3413 | C182: Springfield Primary School | D182: 510 | E182: 21100 | F182: 12308 | G182: 8792 | H182: =(VLOOKUP(B182,'SBS File Check'!B:G,6,FALSE)-G182) ->  | J182: 0.3333333333 | K182: Conversion | L182: =VLOOKUP(B182+3300000,'AY 19-20 Sept to Marc'!C:D,2,FALSE) -> 
A183: 3303421 | B183: 3421 | C183: Yardley Primary School | D183: 719 | E183: 23190 | F183: 13528 | G183: 9662 | H183: =(VLOOKUP(B183,'SBS File Check'!B:G,6,FALSE)-G183) -> 0 | J183: -0.5 | L183: =VLOOKUP(B183+3300000,'AY 19-20 Sept to Marc'!C:D,2,FALSE) -> Yardley Primary School
A184: 3303428 | B184: 3428 | C184: St Peters CofE Primary School | D184: 361 | E184: 19610 | F184: 11439 | G184: 8171 | H184: =(VLOOKUP(B184,'SBS File Check'!B:G,6,FALSE)-G184) -> 0 | J184: 0.1666666667 | L184: =VLOOKUP(B184+3300000,'AY 19-20 Sept to Marc'!C:D,2,FALSE) -> St Peters CofE Primary School
A185: 3303431 | B185: 3431 | C185: New Oscott Primary School | D185: 538 | E185: 21380 | F185: 12472 | G185: 8908 | H185: =(VLOOKUP(B185,'SBS File Check'!B:G,6,FALSE)-G185) -> 0 | J185: -0.3333333333 | L185: =VLOOKUP(B185+3300000,'AY 19-20 Sept to Marc'!C:D,2,FALSE) -> New Oscott Primary School
A186: 3303432 | B186: 3432 | C186: Clifton Primary School | D186: 719 | E186: 23190 | F186: 13528 | G186: 9662 | H186: =(VLOOKUP(B186,'SBS File Check'!B:G,6,FALSE)-G186) -> 0 | J186: -0.5 | L186: =VLOOKUP(B186+3300000,'AY 19-20 Sept to Marc'!C:D,2,FALSE) -> Clifton Primary School
A187: 3303435 | B187: 3435 | C187: Four Oaks Primary School | D187: 361 | E187: 19610 | F187: 11439 | G187: 8171 | H187: =(VLOOKUP(B187,'SBS File Check'!B:G,6,FALSE)-G187) -> 0 | J187: 0.1666666667 | L187: =VLOOKUP(B187+3300000,'AY 19-20 Sept to Marc'!C:D,2,FALSE) -> Four Oaks Primary School
A188: 3303436 | B188: 3436 | C188: Harper Bell Seventh-day Adventist School | D188: 170 | E188: 17700 | F188: 10325 | G188: 7375 | H188: =(VLOOKUP(B188,'SBS File Check'!B:G,6,FALSE)-G188) -> 0 | J188: 0 | L188: =VLOOKUP(B188+3300000,'AY 19-20 Sept to Marc'!C:D,2,FALSE) -> Harper Bell Seventh-day Adventist School
A189: 3304334 | B189: 4334 | C189: Al-Hijrah School | D189: 358 | E189: 19580 | F189: 11422 | G189: 8158 | H189: =(VLOOKUP(B189,'SBS File Check'!B:G,6,FALSE)-G189) -> 0 | J189: -0.3333333333 | L189: =VLOOKUP(B189+3300000,'AY 19-20 Sept to Marc'!C:D,2,FALSE) -> 
A190: 3305202 | B190: 5202 | C190: Walmley Junior School | D190: 361 | E190: 19610 | F190: 11439 | G190: 8171 | H190: =(VLOOKUP(B190,'SBS File Check'!B:G,6,FALSE)-G190) -> 0 | J190: 0.1666666667 | L190: =VLOOKUP(B190+3300000,'AY 19-20 Sept to Marc'!C:D,2,FALSE) -> Walmley Junior School
A191: 3305203 | B191: 5203 | C191: Walmley Infant School | D191: 181 | E191: 17810 | F191: 10389 | G191: 7421 | H191: =(VLOOKUP(B191,'SBS File Check'!B:G,6,FALSE)-G191) -> 0 | J191: 0.1666666667 | L191: =VLOOKUP(B191+3300000,'AY 19-20 Sept to Marc'!C:D,2,FALSE) -> Walmley Infant School
A192: 3305949 | B192: 5949 | C192: Al-Furqan Primary School | D192: 538 | E192: 21380 | F192: 12472 | G192: 8908 | H192: =(VLOOKUP(B192,'SBS File Check'!B:G,6,FALSE)-G192) -> 0 | J192: -0.3333333333 | L192: =VLOOKUP(B192+3300000,'AY 19-20 Sept to Marc'!C:D,2,FALSE) -> Al-Furqan Primary School
A193: 3307006 | B193: 7006 | C193: Hamilton School | D193: 100 | E193: 17000 | F193: 9917 | G193: 7083 | H193: =(VLOOKUP(B193,'SBS File Check'!B:G,6,FALSE)-G193) -> 0 | J193: -0.3333333333 | L193: =VLOOKUP(B193+3300000,'AY 19-20 Sept to Marc'!C:D,2,FALSE) -> Hamilton School
A194: 3307009 | B194: 7009 | C194: Victoria School | D194: 84 | E194: 16840 | F194: 9823 | G194: 7017 | H194: =(VLOOKUP(B194,'SBS File Check'!B:G,6,FALSE)-G194) -> 0 | J194: 0.3333333333 | L194: =VLOOKUP(B194+3300000,'AY 19-20 Sept to Marc'!C:D,2,FALSE) -> Victoria School
A195: 3307012 | B195: 7012 | C195: Longwill A Primary School for Deaf Children | D195: 50 | E195: 16500 | F195: 9625 | G195: 6875 | H195: =(VLOOKUP(B195,'SBS File Check'!B:G,6,FALSE)-G195) -> 0 | J195: 0 | L195: =VLOOKUP(B195+3300000,'AY 19-20 Sept to Marc'!C:D,2,FALSE) -> Longwill A Primary School for Deaf Children
A196: 3307014 | B196: 7014 | C196: Uffculme School | D196: 85 | E196: 16850 | F196: 9829 | G196: 7021 | H196: =(VLOOKUP(B196,'SBS File Check'!B:G,6,FALSE)-G196) -> 0 | J196: 0.1666666667 | L196: =VLOOKUP(B196+3300000,'AY 19-20 Sept to Marc'!C:D,2,FALSE) -> Uffculme School
A197: 3307034 | B197: 7034 | C197: Priestley Smith School | D197: 24 | E197: 16240 | F197: 9473 | G197: 6767 | H197: =(VLOOKUP(B197,'SBS File Check'!B:G,6,FALSE)-G197) -> 0 | J197: =(((16000+(D197*10))/12*7)-F197) -> 0.3333333333 | L197: =VLOOKUP(B197+3300000,'AY 19-20 Sept to Marc'!C:D,2,FALSE) -> Priestley Smith School
A198: 3307035 | B198: 7035 | C198: The Dame Ellen Pinsent School | D198: 145 | E198: 17450 | F198: 10179 | G198: 7271 | H198: =(VLOOKUP(B198,'SBS File Check'!B:G,6,FALSE)-G198) -> 0 | J198: 0.1666666667 | L198: =VLOOKUP(B198+3300000,'AY 19-20 Sept to Marc'!C:D,2,FALSE) -> The Dame Ellen Pinsent School
A199: 3307037 | B199: 7037 | C199: Skilts School | D199: 81 | E199: 16810 | F199: 9806 | G199: 7004 | H199: =(VLOOKUP(B199,'SBS File Check'!B:G,6,FALSE)-G199) -> 0 | J199: -0.1666666667 | L199: =VLOOKUP(B199+3300000,'AY 19-20 Sept to Marc'!C:D,2,FALSE) -> Skilts School
A200: 3307040 | B200: 7040 | C200: Mayfield School | D200: 116 | E200: 17160 | F200: 10010 | G200: 7150 | H200: =(VLOOKUP(B200,'SBS File Check'!B:G,6,FALSE)-G200) -> 0 | J200: 0 | L200: =VLOOKUP(B200+3300000,'AY 19-20 Sept to Marc'!C:D,2,FALSE) -> Mayfield School
... 7 more rows

Sheet AY 19-20 Sept to Marc (hidden)
A1: LA No. | B1: LA Name | C1: LAEstab (at Sept 19) | D1: School Name (at Sept 19) | E1: Eligible Pupils | F1: Total Allocation | G1: October / February payment | H1: April payment | K1: Formula check
A2: 330 | B2: Birmingham | C2: 3301100 | D2: City of Birmingham School | E2: 110 | F2: 17100 | G2: 9975 | H2: 7125 | J2: =VLOOKUP(C2-3300000,'[2]School List'!A:D,4,FALSE) -> EPA | K2: =(E2*10)+16000-F2 -> 0 | M2: =VLOOKUP(C2-3300000,'October figures 18 AY 18-19'!$B$4:$C$206,2,FALSE) -> City of Birmingham School
A3: 330 | B3: Birmingham | C3: 3302004 | D3: Mapledene Primary School | E3: 291 | F3: 18910 | G3: 11031 | H3: 7879 | J3: =VLOOKUP(C3-3300000,'[2]School List'!A:D,4,FALSE) -> Non Chq Bk | K3: =(E3*10)+16000-F3 -> 0 | M3: =VLOOKUP(C3-3300000,'October figures 18 AY 18-19'!$B$4:$C$206,2,FALSE) -> Mapledene Primary School
A4: 330 | B4: Birmingham | C4: 3302005 | D4: Kings Heath Primary School | E4: 562 | F4: 21620 | G4: 12612 | H4: 9008 | J4: =VLOOKUP(C4-3300000,'[2]School List'!A:D,4,FALSE) -> Non Chq Bk | K4: 0 | M4: =VLOOKUP(C4-3300000,'October figures 18 AY 18-19'!$B$4:$C$206,2,FALSE) -> Kings Heath Primary School
A5: 330 | B5: Birmingham | C5: 3302008 | D5: Shaw Hill Primary School | E5: 370 | F5: 19700 | G5: 11492 | H5: 8208 | J5: =VLOOKUP(C5-3300000,'[2]School List'!A:D,4,FALSE) -> EPA | K5: 0 | M5: =VLOOKUP(C5-3300000,'October figures 18 AY 18-19'!$B$4:$C$206,2,FALSE) -> Shaw Hill Primary School
A6: 330 | B6: Birmingham | C6: 3302010 | D6: Adderley Primary School | E6: 496 | F6: 20960 | G6: 12227 | H6: 8733 | J6: =VLOOKUP(C6-3300000,'[2]School List'!A:D,4,FALSE) -> Chq Bk | K6: 0 | M6: =VLOOKUP(C6-3300000,'October figures 18 AY 18-19'!$B$4:$C$206,2,FALSE) -> Adderley Primary School
A7: 330 | B7: Birmingham | C7: 3302011 | D7: Wheelers Lane Primary School | E7: 540 | F7: 21400 | G7: 12483 | H7: 8917 | J7: =VLOOKUP(C7-3300000,'[2]School List'!A:D,4,FALSE) -> Chq Bk | K7: 0 | M7: =VLOOKUP(C7-3300000,'October figures 18 AY 18-19'!$B$4:$C$206,2,FALSE) -> Wheelers Lane Primary School
A8: 330 | B8: Birmingham | C8: 3302014 | D8: Barford Primary School | E8: 359 | F8: 19590 | G8: 11428 | H8: 8162 | J8: =VLOOKUP(C8-3300000,'[2]School List'!A:D,4,FALSE) -> Non Chq Bk | K8: 0 | M8: =VLOOKUP(C8-3300000,'October figures 18 AY 18-19'!$B$4:$C$206,2,FALSE) -> Barford Primary School
A9: 330 | B9: Birmingham | C9: 3302015 | D9: James Watt Primary School | E9: 356 | F9: 19560 | G9: 11410 | H9: 8150 | J9: =VLOOKUP(C9-3300000,'[2]School List'!A:D,4,FALSE) -> Chq Bk | K9: 0 | M9: =VLOOKUP(C9-3300000,'October figures 18 AY 18-19'!$B$4:$C$206,2,FALSE) -> James Watt Primary School
A10: 330 | B10: Birmingham | C10: 3302016 | D10: Beeches Junior School | E10: 361 | F10: 19610 | G10: 11439 | H10: 8171 | J10: =VLOOKUP(C10-3300000,'[2]School List'!A:D,4,FALSE) -> Non Chq Bk | K10: 0 | M10: =VLOOKUP(C10-3300000,'October figures 18 AY 18-19'!$B$4:$C$206,2,FALSE) -> Beeches Junior School
A11: 330 | B11: Birmingham | C11: 3302017 | D11: Beeches Infant School | E11: 180 | F11: 17800 | G11: 10383 | H11: 7417 | J11: =VLOOKUP(C11-3300000,'[2]School List'!A:D,4,FALSE) -> Non Chq Bk | K11: 0 | M11: =VLOOKUP(C11-3300000,'October figures 18 AY 18-19'!$B$4:$C$206,2,FALSE) -> Beeches Infant School
A12: 330 | B12: Birmingham | C12: 3302018 | D12: The Oaks Primary School | E12: 329 | F12: 19290 | G12: 11253 | H12: 8037 | J12: =VLOOKUP(C12-3300000,'[2]School List'!A:D,4,FALSE) -> Non Chq Bk | K12: 0 | M12: =VLOOKUP(C12-3300000,'October figures 18 AY 18-19'!$B$4:$C$206,2,FALSE) -> The Oaks Primary School
A13: 330 | B13: Birmingham | C13: 3302019 | D13: West Heath Primary School | E13: 348 | F13: 19480 | G13: 11363 | H13: 8117 | J13: =VLOOKUP(C13-3300000,'[2]School List'!A:D,4,FALSE) -> Non Chq Bk | K13: 0 | M13: =VLOOKUP(C13-3300000,'October figures 18 AY 18-19'!$B$4:$C$206,2,FALSE) -> West Heath Primary School
A14: 330 | B14: Birmingham | C14: 3302021 | D14: Paganel Primary School | E14: 349 | F14: 19490 | G14: 11369 | H14: 8121 | J14: =VLOOKUP(C14-3300000,'[2]School List'!A:D,4,FALSE) -> EPA | K14: 0 | M14: =VLOOKUP(C14-3300000,'October figures 18 AY 18-19'!$B$4:$C$206,2,FALSE) -> Paganel Primary School
A15: 330 | B15: Birmingham | C15: 3302024 | D15: Birches Green Junior School | E15: 230 | F15: 18300 | G15: 10675 | H15: 7625 | J15: =VLOOKUP(C15-3300000,'[2]School List'!A:D,4,FALSE) -> Non Chq Bk | K15: 0 | M15: =VLOOKUP(C15-3300000,'October figures 18 AY 18-19'!$B$4:$C$206,2,FALSE) -> Birches Green Junior School
A16: 330 | B16: Birmingham | C16: 3302025 | D16: Birches Green Infant School | E16: 117 | F16: 17170 | G16: 10016 | H16: 7154 | J16: =VLOOKUP(C16-3300000,'[2]School List'!A:D,4,FALSE) -> Non Chq Bk | K16: 0 | M16: =VLOOKUP(C16-3300000,'October figures 18 AY 18-19'!$B$4:$C$206,2,FALSE) -> Birches Green Infant School
A17: 330 | B17: Birmingham | C17: 3302026 | D17: Banners Gate Primary School | E17: 317 | F17: 19170 | G17: 11183 | H17: 7987 | J17: =VLOOKUP(C17-3300000,'[2]School List'!A:D,4,FALSE) -> EPA | K17: 0 | M17: =VLOOKUP(C17-3300000,'October figures 18 AY 18-19'!$B$4:$C$206,2,FALSE) -> Banners Gate Primary School
A18: 330 | B18: Birmingham | C18: 3302030 | D18: Bordesley Green Primary School | E18: 599 | F18: 21990 | G18: 12828 | H18: 9162 | J18: =VLOOKUP(C18-3300000,'[2]School List'!A:D,4,FALSE) -> Chq Bk | K18: 0 | M18: =VLOOKUP(C18-3300000,'October figures 18 AY 18-19'!$B$4:$C$206,2,FALSE) -> Bordesley Green Primary School
A19: 330 | B19: Birmingham | C19: 3302040 | D19: Cherry Orchard Primary School | E19: 378 | F19: 19780 | G19: 11538 | H19: 8242 | J19: =VLOOKUP(C19-3300000,'[2]School List'!A:D,4,FALSE) -> EPA | K19: 0 | M19: =VLOOKUP(C19-3300000,'October figures 18 AY 18-19'!$B$4:$C$206,2,FALSE) -> Cherry Orchard Primary School
A20: 330 | B20: Birmingham | C20: 3302053 | D20: Colmore Junior School | E20: 480 | F20: 20800 | G20: 12133 | H20: 8667 | J20: =VLOOKUP(C20-3300000,'[2]School List'!A:D,4,FALSE) -> Chq Bk | K20: 0 | M20: =VLOOKUP(C20-3300000,'October figures 18 AY 18-19'!$B$4:$C$206,2,FALSE) -> Colmore Junior School
A21: 330 | B21: Birmingham | C21: 3302054 | D21: Colmore Infant and Nursery School | E21: 237 | F21: 18370 | G21: 10716 | H21: 7654 | J21: =VLOOKUP(C21-3300000,'[2]School List'!A:D,4,FALSE) -> Chq Bk | K21: 0 | M21: =VLOOKUP(C21-3300000,'October figures 18 AY 18-19'!$B$4:$C$206,2,FALSE) -> Colmore Infant and Nursery School
A22: 330 | B22: Birmingham | C22: 3302055 | D22: Cotteridge Primary School | E22: 347 | F22: 19470 | G22: 11358 | H22: 8112 | J22: =VLOOKUP(C22-3300000,'[2]School List'!A:D,4,FALSE) -> Non Chq Bk | K22: 0 | M22: =VLOOKUP(C22-3300000,'October figures 18 AY 18-19'!$B$4:$C$206,2,FALSE) -> Cotteridge Primary School
A23: 330 | B23: Birmingham | C23: 3302062 | D23: Anderton Park Primary School | E23: 540 | F23: 21400 | G23: 12483 | H23: 8917 | J23: =VLOOKUP(C23-3300000,'[2]School List'!A:D,4,FALSE) -> Chq Bk | K23: 0 | M23: =VLOOKUP(C23-3300000,'October figures 18 AY 18-19'!$B$4:$C$206,2,FALSE) -> Anderton Park Primary School
A24: 330 | B24: Birmingham | C24: 3302063 | D24: Regents Park Community Primary School | E24: 510 | F24: 21100 | G24: 12308 | H24: 8792 | J24: =VLOOKUP(C24-3300000,'[2]School List'!A:D,4,FALSE) -> EPA | K24: 0 | M24: =VLOOKUP(C24-3300000,'October figures 18 AY 18-19'!$B$4:$C$206,2,FALSE) -> Regents Park Community Primary School
A25: 330 | B25: Birmingham | C25: 3302067 | D25: Summerfield Junior and Infant School | E25: 351 | F25: 19510 | G25: 11381 | H25: 8129 | J25: =VLOOKUP(C25-3300000,'[2]School List'!A:D,4,FALSE) -> Non Chq Bk | K25: 0 | M25: =VLOOKUP(C25-3300000,'October figures 18 AY 18-19'!$B$4:$C$206,2,FALSE) -> Summerfield Junior and Infant School
A26: 330 | B26: Birmingham | C26: 3302079 | D26: George Dixon Primary School | E26: 342 | F26: 19420 | G26: 11328 | H26: 8092 | J26: =VLOOKUP(C26-3300000,'[2]School List'!A:D,4,FALSE) -> Non Chq Bk | K26: 0 | M26: =VLOOKUP(C26-3300000,'October figures 18 AY 18-19'!$B$4:$C$206,2,FALSE) -> George Dixon Primary School
A27: 330 | B27: Birmingham | C27: 3302081 | D27: Gilbertstone Primary School | E27: 355 | F27: 19550 | G27: 11404 | H27: 8146 | J27: =VLOOKUP(C27-3300000,'[2]School List'!A:D,4,FALSE) -> EPA | K27: 0 | M27: =VLOOKUP(C27-3300000,'October figures 18 AY 18-19'!$B$4:$C$206,2,FALSE) -> Gilbertstone Primary School
A28: 330 | B28: Birmingham | C28: 3302087 | D28: Grendon Junior and Infant School (NC) | E28: 300 | F28: 19000 | G28: 11083 | H28: 7917 | J28: =VLOOKUP(C28-3300000,'[2]School List'!A:D,4,FALSE) -> Non Chq Bk | K28: 0 | M28: =VLOOKUP(C28-3300000,'October figures 18 AY 18-19'!$B$4:$C$206,2,FALSE) -> Grendon Junior and Infant School (NC)
A29: 330 | B29: Birmingham | C29: 3302091 | D29: Gunter Primary School | E29: 177 | F29: 17770 | G29: 10366 | H29: 7404 | J29: =VLOOKUP(C29-3300000,'[2]School List'!A:D,4,FALSE) -> Non Chq Bk | K29: 0 | M29: =VLOOKUP(C29-3300000,'October figures 18 AY 18-19'!$B$4:$C$206,2,FALSE) -> Gunter Primary School
A30: 330 | B30: Birmingham | C30: 3302092 | D30: Hall Green Junior School | E30: 480 | F30: 20800 | G30: 12133 | H30: 8667 | J30: =VLOOKUP(C30-3300000,'[2]School List'!A:D,4,FALSE) -> Chq Bk | K30: 0 | M30: =VLOOKUP(C30-3300000,'October figures 18 AY 18-19'!$B$4:$C$206,2,FALSE) -> Hall Green Junior School
A31: 330 | B31: Birmingham | C31: 3302093 | D31: Hall Green Infant School | E31: 239 | F31: 18390 | G31: 10728 | H31: 7662 | J31: =VLOOKUP(C31-3300000,'[2]School List'!A:D,4,FALSE) -> EPA | K31: 0 | M31: =VLOOKUP(C31-3300000,'October figures 18 AY 18-19'!$B$4:$C$206,2,FALSE) -> Hall Green Infant School
A32: 330 | B32: Birmingham | C32: 3302097 | D32: Story Wood School | E32: 177 | F32: 17770 | G32: 10366 | H32: 7404 | J32: =VLOOKUP(C32-3300000,'[2]School List'!A:D,4,FALSE) -> Chq Bk | K32: 0 | M32: =VLOOKUP(C32-3300000,'October figures 18 AY 18-19'!$B$4:$C$206,2,FALSE) -> Story Wood School and Children's Centre
A33: 330 | B33: Birmingham | C33: 3302099 | D33: Hawthorn Primary School | E33: 177 | F33: 17770 | G33: 10366 | H33: 7404 | J33: =VLOOKUP(C33-3300000,'[2]School List'!A:D,4,FALSE) -> EPA | K33: 0 | M33: =VLOOKUP(C33-3300000,'October figures 18 AY 18-19'!$B$4:$C$206,2,FALSE) -> Hawthorn Primary School
A34: 330 | B34: Birmingham | C34: 3302108 | D34: Ward End Primary School | E34: 719 | F34: 23190 | G34: 13528 | H34: 9662 | J34: =VLOOKUP(C34-3300000,'[2]School List'!A:D,4,FALSE) -> Non Chq Bk | K34: 0 | M34: =VLOOKUP(C34-3300000,'October figures 18 AY 18-19'!$B$4:$C$206,2,FALSE) -> Ward End Primary School
A35: 330 | B35: Birmingham | C35: 3302115 | D35: Kingsland Primary School (NC) | E35: 249 | F35: 18490 | G35: 10786 | H35: 7704 | J35: =VLOOKUP(C35-3300000,'[2]School List'!A:D,4,FALSE) -> Non Chq Bk | K35: 0 | M35: =VLOOKUP(C35-3300000,'October figures 18 AY 18-19'!$B$4:$C$206,2,FALSE) -> Kingsland Primary School (NC)
A36: 330 | B36: Birmingham | C36: 3302118 | D36: Kings Norton Junior and Infant School | E36: 354 | F36: 19540 | G36: 11398 | H36: 8142 | J36: =VLOOKUP(C36-3300000,'[2]School List'!A:D,4,FALSE) -> EPA | K36: 0 | M36: =VLOOKUP(C36-3300000,'October figures 18 AY 18-19'!$B$4:$C$206,2,FALSE) -> Kings Norton Junior and Infant School
A37: 330 | B37: Birmingham | C37: 3302119 | D37: Lakey Lane Junior and Infant School | E37: 359 | F37: 19590 | G37: 11428 | H37: 8162 | J37: =VLOOKUP(C37-3300000,'[2]School List'!A:D,4,FALSE) -> EPA | K37: 0 | M37: =VLOOKUP(C37-3300000,'October figures 18 AY 18-19'!$B$4:$C$206,2,FALSE) -> Lakey Lane Junior and Infant School
A38: 330 | B38: Birmingham | C38: 3302127 | D38: Lozells Junior and Infant School and Nursery | E38: 360 | F38: 19600 | G38: 11433 | H38: 8167 | J38: =VLOOKUP(C38-3300000,'[2]School List'!A:D,4,FALSE) -> Chq Bk | K38: 0 | M38: =VLOOKUP(C38-3300000,'October figures 18 AY 18-19'!$B$4:$C$206,2,FALSE) -> Lozells Junior and Infant School and Nursery
A39: 330 | B39: Birmingham | C39: 3302128 | D39: Lyndon Green Junior School | E39: 369 | F39: 19690 | G39: 11486 | H39: 8204 | J39: =VLOOKUP(C39-3300000,'[2]School List'!A:D,4,FALSE) -> Chq Bk | K39: 0 | M39: =VLOOKUP(C39-3300000,'October figures 18 AY 18-19'!$B$4:$C$206,2,FALSE) -> Lyndon Green Junior School
A40: 330 | B40: Birmingham | C40: 3302129 | D40: Lyndon Green Infant School | E40: 187 | F40: 17870 | G40: 10424 | H40: 7446 | J40: =VLOOKUP(C40-3300000,'[2]School List'!A:D,4,FALSE) -> Chq Bk | K40: 0 | M40: =VLOOKUP(C40-3300000,'October figures 18 AY 18-19'!$B$4:$C$206,2,FALSE) -> Lyndon Green Infant School
A41: 330 | B41: Birmingham | C41: 3302133 | D41: Marsh Hill Primary School | E41: 358 | F41: 19580 | G41: 11422 | H41: 8158 | J41: =VLOOKUP(C41-3300000,'[2]School List'!A:D,4,FALSE) -> Chq Bk | K41: 0 | M41: =VLOOKUP(C41-3300000,'October figures 18 AY 18-19'!$B$4:$C$206,2,FALSE) -> Marsh Hill Primary School
A42: 330 | B42: Birmingham | C42: 3302142 | D42: Nelson Junior and Infant School | E42: 347 | F42: 19470 | G42: 11358 | H42: 8112 | J42: =VLOOKUP(C42-3300000,'[2]School List'!A:D,4,FALSE) -> Non Chq Bk | K42: 0 | M42: =VLOOKUP(C42-3300000,'October figures 18 AY 18-19'!$B$4:$C$206,2,FALSE) -> Nelson Junior and Infant School
A43: 330 | B43: Birmingham | C43: 3302149 | D43: Paget Primary School | E43: 351 | F43: 19510 | G43: 11381 | H43: 8129 | J43: =VLOOKUP(C43-3300000,'[2]School List'!A:D,4,FALSE) -> Non Chq Bk | K43: 0 | M43: =VLOOKUP(C43-3300000,'October figures 18 AY 18-19'!$B$4:$C$206,2,FALSE) -> Paget Primary School
A44: 330 | B44: Birmingham | C44: 3302150 | D44: Park Hill Primary School | E44: 446 | F44: 20460 | G44: 11935 | H44: 8525 | J44: =VLOOKUP(C44-3300000,'[2]School List'!A:D,4,FALSE) -> Non Chq Bk | K44: 0 | M44: =VLOOKUP(C44-3300000,'October figures 18 AY 18-19'!$B$4:$C$206,2,FALSE) -> Park Hill Primary School
A45: 330 | B45: Birmingham | C45: 3302153 | D45: Allens Croft Primary School | E45: 315 | F45: 19150 | G45: 11171 | H45: 7979 | J45: =VLOOKUP(C45-3300000,'[2]School List'!A:D,4,FALSE) -> EPA | K45: 0 | M45: =VLOOKUP(C45-3300000,'October figures 18 AY 18-19'!$B$4:$C$206,2,FALSE) -> Allens Croft Primary School
A46: 330 | B46: Birmingham | C46: 3302157 | D46: Raddlebarn Primary School | E46: 328 | F46: 19280 | G46: 11247 | H46: 8033 | J46: =VLOOKUP(C46-3300000,'[2]School List'!A:D,4,FALSE) -> Non Chq Bk | K46: 0 | M46: =VLOOKUP(C46-3300000,'October figures 18 AY 18-19'!$B$4:$C$206,2,FALSE) -> Raddlebarn Primary School
A47: 330 | B47: Birmingham | C47: 3302159 | D47: Redhill Primary School | E47: 181 | F47: 17810 | G47: 10389 | H47: 7421 | J47: =VLOOKUP(C47-3300000,'[2]School List'!A:D,4,FALSE) -> Non Chq Bk | K47: 0 | M47: =VLOOKUP(C47-3300000,'October figures 18 AY 18-19'!$B$4:$C$206,2,FALSE) -> Redhill Junior and Infant School
A48: 330 | B48: Birmingham | C48: 3302160 | D48: Rednal Hill Junior School | E48: 351 | F48: 19510 | G48: 11381 | H48: 8129 | J48: =VLOOKUP(C48-3300000,'[2]School List'!A:D,4,FALSE) -> EPA | K48: 0 | M48: =VLOOKUP(C48-3300000,'October figures 18 AY 18-19'!$B$4:$C$206,2,FALSE) -> Rednal Hill Junior School
A49: 330 | B49: Birmingham | C49: 3302161 | D49: Rednal Hill Infant School | E49: 180 | F49: 17800 | G49: 10383 | H49: 7417 | J49: =VLOOKUP(C49-3300000,'[2]School List'!A:D,4,FALSE) -> Non Chq Bk | K49: 0 | M49: =VLOOKUP(C49-3300000,'October figures 18 AY 18-19'!$B$4:$C$206,2,FALSE) -> Rednal Hill Infant School
A50: 330 | B50: Birmingham | C50: 3302169 | D50: Severne Junior Infant and Nursery School | E50: 343 | F50: 19430 | G50: 11334 | H50: 8096 | J50: =VLOOKUP(C50-3300000,'[2]School List'!A:D,4,FALSE) -> Non Chq Bk | K50: 0 | M50: =VLOOKUP(C50-3300000,'October figures 18 AY 18-19'!$B$4:$C$206,2,FALSE) -> Severne Junior Infant and Nursery School
A51: 330 | B51: Birmingham | C51: 3302174 | D51: Sladefield Infant School | E51: 240 | F51: 18400 | G51: 10733 | H51: 7667 | J51: =VLOOKUP(C51-3300000,'[2]School List'!A:D,4,FALSE) -> Chq Bk | K51: 0 | M51: =VLOOKUP(C51-3300000,'October figures 18 AY 18-19'!$B$4:$C$206,2,FALSE) -> Sladefield Infant School
A52: 330 | B52: Birmingham | C52: 3302176 | D52: Somerville Primary (NC) School | E52: 596 | F52: 21960 | G52: 12810 | H52: 9150 | J52: =VLOOKUP(C52-3300000,'[2]School List'!A:D,4,FALSE) -> EPA | K52: 0 | M52: =VLOOKUP(C52-3300000,'October figures 18 AY 18-19'!$B$4:$C$206,2,FALSE) -> Somerville Primary (NC) School
A53: 330 | B53: Birmingham | C53: 3302178 | D53: Stanville Primary School | E53: 209 | F53: 18090 | G53: 10553 | H53: 7537 | J53: =VLOOKUP(C53-3300000,'[2]School List'!A:D,4,FALSE) -> EPA | K53: 0 | M53: =VLOOKUP(C53-3300000,'October figures 18 AY 18-19'!$B$4:$C$206,2,FALSE) -> Stanville Primary School
A54: 330 | B54: Birmingham | C54: 3302179 | D54: Starbank School | E54: 1088 | F54: 26880 | G54: 15680 | H54: 11200 | J54: =VLOOKUP(C54-3300000,'[2]School List'!A:D,4,FALSE) -> EPA | K54: 0 | M54: =VLOOKUP(C54-3300000,'October figures 18 AY 18-19'!$B$4:$C$206,2,FALSE) -> Starbank School
A55: 330 | B55: Birmingham | C55: 3302183 | D55: St Benedict's Primary School | E55: 253 | F55: 18530 | G55: 10809 | H55: 7721 | J55: =VLOOKUP(C55-3300000,'[2]School List'!A:D,4,FALSE) -> Non Chq Bk | K55: 0 | M55: =VLOOKUP(C55-3300000,'October figures 18 AY 18-19'!$B$4:$C$206,2,FALSE) -> St Benedict's Infant School
A56: 330 | B56: Birmingham | C56: 3302184 | D56: Stechford Primary School | E56: 360 | F56: 19600 | G56: 11433 | H56: 8167 | J56: =VLOOKUP(C56-3300000,'[2]School List'!A:D,4,FALSE) -> Non Chq Bk | K56: 0 | M56: =VLOOKUP(C56-3300000,'October figures 18 AY 18-19'!$B$4:$C$206,2,FALSE) -> Stechford Primary School
A57: 330 | B57: Birmingham | C57: 3302185 | D57: Colebourne Primary School | E57: 368 | F57: 19680 | G57: 11480 | H57: 8200 | J57: =VLOOKUP(C57-3300000,'[2]School List'!A:D,4,FALSE) -> EPA | K57: 0 | M57: =VLOOKUP(C57-3300000,'October figures 18 AY 18-19'!$B$4:$C$206,2,FALSE) -> Colebourne Primary School
A58: 330 | B58: Birmingham | C58: 3302189 | D58: Ladypool Primary School | E58: 325 | F58: 19250 | G58: 11229 | H58: 8021 | J58: =VLOOKUP(C58-3300000,'[2]School List'!A:D,4,FALSE) -> Non Chq Bk | K58: 0 | M58: =VLOOKUP(C58-3300000,'October figures 18 AY 18-19'!$B$4:$C$206,2,FALSE) -> Ladypool Primary School
A59: 330 | B59: Birmingham | C59: 3302190 | D59: Sundridge Primary School | E59: 171 | F59: 17710 | G59: 10331 | H59: 7379 | J59: =VLOOKUP(C59-3300000,'[2]School List'!A:D,4,FALSE) -> EPA | K59: 0 | M59: =VLOOKUP(C59-3300000,'October figures 18 AY 18-19'!$B$4:$C$206,2,FALSE) -> Sundridge Primary School
A60: 330 | B60: Birmingham | C60: 3302191 | D60: Court Farm Primary School | E60: 179 | F60: 17790 | G60: 10378 | H60: 7412 | J60: =VLOOKUP(C60-3300000,'[2]School List'!A:D,4,FALSE) -> Non Chq Bk | K60: 0 | M60: =VLOOKUP(C60-3300000,'October figures 18 AY 18-19'!$B$4:$C$206,2,FALSE) -> Court Farm Primary School
A61: 330 | B61: Birmingham | C61: 3302192 | D61: Thornton Primary School | E61: 630 | F61: 22300 | G61: 13008 | H61: 9292 | J61: =VLOOKUP(C61-3300000,'[2]School List'!A:D,4,FALSE) -> Non Chq Bk | K61: 0 | M61: =VLOOKUP(C61-3300000,'October figures 18 AY 18-19'!$B$4:$C$206,2,FALSE) -> Thornton Primary School
A62: 330 | B62: Birmingham | C62: 3302225 | D62: World's End Junior School | E62: 365 | F62: 19650 | G62: 11463 | H62: 8187 | J62: =VLOOKUP(C62-3300000,'[2]School List'!A:D,4,FALSE) -> Chq Bk | K62: 0 | M62: =VLOOKUP(C62-3300000,'October figures 18 AY 18-19'!$B$4:$C$206,2,FALSE) -> World's End Junior School
A63: 330 | B63: Birmingham | C63: 3302227 | D63: Yardley Wood Community Primary School | E63: 314 | F63: 19140 | G63: 11165 | H63: 7975 | J63: =VLOOKUP(C63-3300000,'[2]School List'!A:D,4,FALSE) -> Non Chq Bk | K63: 0 | M63: =VLOOKUP(C63-3300000,'October figures 18 AY 18-19'!$B$4:$C$206,2,FALSE) -> Yardley Wood Community Primary School
A64: 330 | B64: Birmingham | C64: 3302231 | D64: Yorkmead Junior and Infant School | E64: 360 | F64: 19600 | G64: 11433 | H64: 8167 | J64: =VLOOKUP(C64-3300000,'[2]School List'!A:D,4,FALSE) -> Non Chq Bk | K64: 0 | M64: =VLOOKUP(C64-3300000,'October figures 18 AY 18-19'!$B$4:$C$206,2,FALSE) -> Yorkmead Junior and Infant School
A65: 330 | B65: Birmingham | C65: 3302236 | D65: Broadmeadow Junior School | E65: 232 | F65: 18320 | G65: 10687 | H65: 7633 | J65: =VLOOKUP(C65-3300000,'[2]School List'!A:D,4,FALSE) -> Chq Bk | K65: 0 | M65: =VLOOKUP(C65-3300000,'October figures 18 AY 18-19'!$B$4:$C$206,2,FALSE) -> Broadmeadow Junior School
A66: 330 | B66: Birmingham | C66: 3302238 | D66: Broadmeadow Infant School | E66: 116 | F66: 17160 | G66: 10010 | H66: 7150 | J66: =VLOOKUP(C66-3300000,'[2]School List'!A:D,4,FALSE) -> Chq Bk | K66: 0 | M66: =VLOOKUP(C66-3300000,'October figures 18 AY 18-19'!$B$4:$C$206,2,FALSE) -> Broadmeadow Infant School
A67: 330 | B67: Birmingham | C67: 3302239 | D67: Bellfield Infant School (NC) | E67: 150 | F67: 17500 | G67: 10208 | H67: 7292 | J67: =VLOOKUP(C67-3300000,'[2]School List'!A:D,4,FALSE) -> EPA | K67: =(E67*10)+16000-F67 -> 0 | M67: =VLOOKUP(C67-3300000,'October figures 18 AY 18-19'!$B$4:$C$206,2,FALSE) -> Bellfield Infant School (NC)
A68: 330 | B68: Birmingham | C68: 3302241 | D68: Bellfield Junior School | E68: 278 | F68: 18780 | G68: 10955 | H68: 7825 | J68: =VLOOKUP(C68-3300000,'[2]School List'!A:D,4,FALSE) -> Non Chq Bk | K68: 0 | M68: =VLOOKUP(C68-3300000,'October figures 18 AY 18-19'!$B$4:$C$206,2,FALSE) -> Bellfield Junior School
A69: 330 | B69: Birmingham | C69: 3302245 | D69: Welsh House Farm Community School and Special Needs Resources Base | E69: 177 | F69: 17770 | G69: 10366 | H69: 7404 | J69: =VLOOKUP(C69-3300000,'[2]School List'!A:D,4,FALSE) -> EPA | K69: 0 | M69: =VLOOKUP(C69-3300000,'October figures 18 AY 18-19'!$B$4:$C$206,2,FALSE) -> Welsh House Farm Community School and Special Needs Resources Base
A70: 330 | B70: Birmingham | C70: 3302246 | D70: The Meadows Primary School | E70: 521 | F70: 21210 | G70: 12373 | H70: 8837 | J70: =VLOOKUP(C70-3300000,'[2]School List'!A:D,4,FALSE) -> Non Chq Bk | K70: 0 | M70: =VLOOKUP(C70-3300000,'October figures 18 AY 18-19'!$B$4:$C$206,2,FALSE) -> The Meadows Primary School
A71: 330 | B71: Birmingham | C71: 3302251 | D71: Chilcote Primary School | E71: 356 | F71: 19560 | G71: 11410 | H71: 8150 | J71: =VLOOKUP(C71-3300000,'[2]School List'!A:D,4,FALSE) -> Chq Bk | K71: 0 | M71: =VLOOKUP(C71-3300000,'October figures 18 AY 18-19'!$B$4:$C$206,2,FALSE) -> Chilcote Primary School
A72: 330 | B72: Birmingham | C72: 3302254 | D72: Blakesley Hall Primary School | E72: 535 | F72: 21350 | G72: 12454 | H72: 8896 | J72: =VLOOKUP(C72-3300000,'[2]School List'!A:D,4,FALSE) -> Chq Bk | K72: 0 | M72: =VLOOKUP(C72-3300000,'October figures 18 AY 18-19'!$B$4:$C$206,2,FALSE) -> Blakesley Hall Primary School
A73: 330 | B73: Birmingham | C73: 3302278 | D73: Woodgate Primary School | E73: 333 | F73: 19330 | G73: 11276 | H73: 8054 | J73: =VLOOKUP(C73-3300000,'[2]School List'!A:D,4,FALSE) -> EPA | K73: 0 | M73: =VLOOKUP(C73-3300000,'October figures 18 AY 18-19'!$B$4:$C$206,2,FALSE) -> Woodgate Primary School
A74: 330 | B74: Birmingham | C74: 3302284 | D74: Deykin Avenue Junior and Infant School | E74: 181 | F74: 17810 | G74: 10389 | H74: 7421 | J74: =VLOOKUP(C74-3300000,'[2]School List'!A:D,4,FALSE) -> Non Chq Bk | K74: 0 | M74: =VLOOKUP(C74-3300000,'October figures 18 AY 18-19'!$B$4:$C$206,2,FALSE) -> Deykin Avenue Junior and Infant School
A75: 330 | B75: Birmingham | C75: 3302288 | D75: Hollywood Primary School | E75: 364 | F75: 19640 | G75: 11457 | H75: 8183 | J75: =VLOOKUP(C75-3300000,'[2]School List'!A:D,4,FALSE) -> EPA | K75: 0 | M75: =VLOOKUP(C75-3300000,'October figures 18 AY 18-19'!$B$4:$C$206,2,FALSE) -> Hollywood Primary School
A76: 330 | B76: Birmingham | C76: 3302289 | D76: Cofton Primary School | E76: 297 | F76: 18970 | G76: 11066 | H76: 7904 | J76: =VLOOKUP(C76-3300000,'[2]School List'!A:D,4,FALSE) -> Non Chq Bk | K76: 0 | M76: =VLOOKUP(C76-3300000,'October figures 18 AY 18-19'!$B$4:$C$206,2,FALSE) -> Cofton Primary School
A77: 330 | B77: Birmingham | C77: 3302293 | D77: William Murdoch Primary School | E77: 534 | F77: 21340 | G77: 12448 | H77: 8892 | J77: =VLOOKUP(C77-3300000,'[2]School List'!A:D,4,FALSE) -> Chq Bk | K77: 0 | M77: =VLOOKUP(C77-3300000,'October figures 18 AY 18-19'!$B$4:$C$206,2,FALSE) -> Wilkes Green Junior School
A78: 330 | B78: Birmingham | C78: 3302294 | D78: Featherstone Primary School | E78: 353 | F78: 19530 | G78: 11393 | H78: 8137 | J78: =VLOOKUP(C78-3300000,'[2]School List'!A:D,4,FALSE) -> Non Chq Bk | K78: 0 | M78: =VLOOKUP(C78-3300000,'October figures 18 AY 18-19'!$B$4:$C$206,2,FALSE) -> Featherstone Primary School
A79: 330 | B79: Birmingham | C79: 3302296 | D79: Glenmead Primary School | E79: 343 | F79: 19430 | G79: 11334 | H79: 8096 | J79: =VLOOKUP(C79-3300000,'[2]School List'!A:D,4,FALSE) -> Chq bk | K79: 0 | M79: =VLOOKUP(C79-3300000,'October figures 18 AY 18-19'!$B$4:$C$206,2,FALSE) -> Glenmead Primary School
A80: 330 | B80: Birmingham | C80: 3302300 | D80: Arden Primary School | E80: 540 | F80: 21400 | G80: 12483 | H80: 8917 | J80: =VLOOKUP(C80-3300000,'[2]School List'!A:D,4,FALSE) -> EPA | K80: 0 | M80: =VLOOKUP(C80-3300000,'October figures 18 AY 18-19'!$B$4:$C$206,2,FALSE) -> Arden Primary School
A81: 330 | B81: Birmingham | C81: 3302306 | D81: Water Mill Primary School | E81: 167 | F81: 17670 | G81: 10308 | H81: 7362 | J81: =VLOOKUP(C81-3300000,'[2]School List'!A:D,4,FALSE) -> Non Chq Bk | K81: 0 | M81: =VLOOKUP(C81-3300000,'October figures 18 AY 18-19'!$B$4:$C$206,2,FALSE) -> Water Mill Primary School
A82: 330 | B82: Birmingham | C82: 3302308 | D82: Welford Primary School | E82: 356 | F82: 19560 | G82: 11410 | H82: 8150 | J82: =VLOOKUP(C82-3300000,'[2]School List'!A:D,4,FALSE) -> Chq Bk | K82: 0 | M82: =VLOOKUP(C82-3300000,'October figures 18 AY 18-19'!$B$4:$C$206,2,FALSE) -> Welford Primary School
A83: 330 | B83: Birmingham | C83: 3302312 | D83: Chad Vale Primary School | E83: 361 | F83: 19610 | G83: 11439 | H83: 8171 | J83: =VLOOKUP(C83-3300000,'[2]School List'!A:D,4,FALSE) -> EPA | K83: 0 | M83: =VLOOKUP(C83-3300000,'October figures 18 AY 18-19'!$B$4:$C$206,2,FALSE) -> Chad Vale Primary School
A84: 330 | B84: Birmingham | C84: 3302313 | D84: Heath Mount Primary School | E84: 328 | F84: 19280 | G84: 11247 | H84: 8033 | J84: =VLOOKUP(C84-3300000,'[2]School List'!A:D,4,FALSE) -> EPA | K84: 0 | M84: =VLOOKUP(C84-3300000,'October figures 18 AY 18-19'!$B$4:$C$206,2,FALSE) -> Heath Mount Primary School
A85: 330 | B85: Birmingham | C85: 3302314 | D85: Woodthorpe Junior and Infant School | E85: 181 | F85: 17810 | G85: 10389 | H85: 7421 | J85: =VLOOKUP(C85-3300000,'[2]School List'!A:D,4,FALSE) -> Non Chq Bk | K85: 0 | M85: =VLOOKUP(C85-3300000,'October figures 18 AY 18-19'!$B$4:$C$206,2,FALSE) -> Woodthorpe Junior and Infant School
A86: 330 | B86: Birmingham | C86: 3302317 | D86: World's End Infant and Nursery School | E86: 178 | F86: 17780 | G86: 10372 | H86: 7408 | J86: =VLOOKUP(C86-3300000,'[2]School List'!A:D,4,FALSE) -> EPA | K86: 0 | M86: =VLOOKUP(C86-3300000,'October figures 18 AY 18-19'!$B$4:$C$206,2,FALSE) -> World's End Infant and Nursery School
A87: 330 | B87: Birmingham | C87: 3302321 | D87: Kitwell Primary School and Nursery Class | E87: 179 | F87: 17790 | G87: 10378 | H87: 7412 | J87: =VLOOKUP(C87-3300000,'[2]School List'!A:D,4,FALSE) -> Non Chq Bk | K87: 0 | M87: =VLOOKUP(C87-3300000,'October figures 18 AY 18-19'!$B$4:$C$206,2,FALSE) -> Kitwell Primary School and Nursery Class
A88: 330 | B88: Birmingham | C88: 3302401 | D88: Boldmere Junior School | E88: 362 | F88: 19620 | G88: 11445 | H88: 8175 | J88: =VLOOKUP(C88-3300000,'[2]School List'!A:D,4,FALSE) -> Chq Bk | K88: 0 | M88: =VLOOKUP(C88-3300000,'October figures 18 AY 18-19'!$B$4:$C$206,2,FALSE) -> Boldmere Junior School
A89: 330 | B89: Birmingham | C89: 3302402 | D89: Boldmere Infant School and Nursery | E89: 184 | F89: 17840 | G89: 10407 | H89: 7433 | J89: =VLOOKUP(C89-3300000,'[2]School List'!A:D,4,FALSE) -> Chq Bk | K89: 0 | M89: =VLOOKUP(C89-3300000,'October figures 18 AY 18-19'!$B$4:$C$206,2,FALSE) -> Boldmere Infant School and Nursery
A90: 330 | B90: Birmingham | C90: 3302406 | D90: Minworth Junior and Infant School | E90: 175 | F90: 17750 | G90: 10354 | H90: 7396 | J90: =VLOOKUP(C90-3300000,'[2]School List'!A:D,4,FALSE) -> Non Chq Bk | K90: 0 | M90: =VLOOKUP(C90-3300000,'October figures 18 AY 18-19'!$B$4:$C$206,2,FALSE) -> Minworth Junior and Infant School
A91: 330 | B91: Birmingham | C91: 3302412 | D91: Wylde Green Primary School | E91: 361 | F91: 19610 | G91: 11439 | H91: 8171 | J91: =VLOOKUP(C91-3300000,'[2]School List'!A:D,4,FALSE) -> EPA | K91: 0 | M91: =VLOOKUP(C91-3300000,'October figures 18 AY 18-19'!$B$4:$C$206,2,FALSE) -> Wylde Green Primary School
A92: 330 | B92: Birmingham | C92: 3302416 | D92: Moor Hall Primary School | E92: 215 | F92: 18150 | G92: 10588 | H92: 7562 | J92: =VLOOKUP(C92-3300000,'[2]School List'!A:D,4,FALSE) -> Non Chq Bk | K92: 0 | M92: =VLOOKUP(C92-3300000,'October figures 18 AY 18-19'!$B$4:$C$206,2,FALSE) -> Moor Hall Primary School
A93: 330 | B93: Birmingham | C93: 3302420 | D93: Maney Hill Primary School | E93: 270 | F93: 18700 | G93: 10908 | H93: 7792 | J93: =VLOOKUP(C93-3300000,'[2]School List'!A:D,4,FALSE) -> EPA | K93: 0 | M93: =VLOOKUP(C93-3300000,'October figures 18 AY 18-19'!$B$4:$C$206,2,FALSE) -> Maney Hill Primary School
A94: 330 | B94: Birmingham | C94: 3302425 | D94: Penns Primary School | E94: 181 | F94: 17810 | G94: 10389 | H94: 7421 | J94: =VLOOKUP(C94-3300000,'[2]School List'!A:D,4,FALSE) -> Non Chq Bk | K94: 0 | M94: =VLOOKUP(C94-3300000,'October figures 18 AY 18-19'!$B$4:$C$206,2,FALSE) -> Penns Primary School
A95: 330 | B95: Birmingham | C95: 3302429 | D95: Holland House Infant School and Nursery | E95: 117 | F95: 17170 | G95: 10016 | H95: 7154 | J95: =VLOOKUP(C95-3300000,'[2]School List'!A:D,4,FALSE) -> EPA | K95: 0 | M95: =VLOOKUP(C95-3300000,'October figures 18 AY 18-19'!$B$4:$C$206,2,FALSE) -> Holland House Infant School and Nursery
A96: 330 | B96: Birmingham | C96: 3302435 | D96: Benson Community School | E96: 437 | F96: 20370 | G96: 11883 | H96: 8487 | J96: =VLOOKUP(C96-3300000,'[2]School List'!A:D,4,FALSE) -> EPA | K96: 0 | M96: =VLOOKUP(C96-3300000,'October figures 18 AY 18-19'!$B$4:$C$206,2,FALSE) -> Benson Community School
A97: 330 | B97: Birmingham | C97: 3302436 | D97: Osborne Primary School | E97: 229 | F97: 18290 | G97: 10669 | H97: 7621 | J97: =VLOOKUP(C97-3300000,'[2]School List'!A:D,4,FALSE) -> EPA | K97: 0 | M97: =VLOOKUP(C97-3300000,'October figures 18 AY 18-19'!$B$4:$C$206,2,FALSE) -> Osborne Primary School
A98: 330 | B98: Birmingham | C98: 3302438 | D98: Highters Heath Community School | E98: 178 | F98: 17780 | G98: 10372 | H98: 7408 | J98: =VLOOKUP(C98-3300000,'[2]School List'!A:D,4,FALSE) -> EPA | K98: 0 | M98: =VLOOKUP(C98-3300000,'October figures 18 AY 18-19'!$B$4:$C$206,2,FALSE) -> Highters Heath Community School
A99: 330 | B99: Birmingham | C99: 3302441 | D99: Kingsthorne Primary School | E99: 355 | F99: 19550 | G99: 11404 | H99: 8146 | J99: =VLOOKUP(C99-3300000,'[2]School List'!A:D,4,FALSE) -> Non Chq Bk | K99: 0 | M99: =VLOOKUP(C99-3300000,'October figures 18 AY 18-19'!$B$4:$C$206,2,FALSE) -> Kingsthorne Primary School
A100: 330 | B100: Birmingham | C100: 3302445 | D100: Woodcock Hill Primary School | E100: 177 | F100: 17770 | G100: 10366 | H100: 7404 | J100: =VLOOKUP(C100-3300000,'[2]School List'!A:D,4,FALSE) -> EPA | K100: 0 | M100: =VLOOKUP(C100-3300000,'October figures 18 AY 18-19'!$B$4:$C$206,2,FALSE) -> Woodcock Hill Primary School
A101: 330 | B101: Birmingham | C101: 3302454 | D101: Elms Farm Community Primary School | E101: 332 | F101: 19320 | G101: 11270 | H101: 8050 | J101: =VLOOKUP(C101-3300000,'[2]School List'!A:D,4,FALSE) -> Non Chq Bk | K101: 0 | M101: =VLOOKUP(C101-3300000,'October figures 18 AY 18-19'!$B$4:$C$206,2,FALSE) -> Elms Farm Community Primary School
A102: 330 | B102: Birmingham | C102: 3302456 | D102: Bells Farm Primary School | E102: 176 | F102: 17760 | G102: 10360 | H102: 7400 | J102: =VLOOKUP(C102-3300000,'[2]School List'!A:D,4,FALSE) -> Non Chq Bk | K102: 0 | M102: =VLOOKUP(C102-3300000,'October figures 18 AY 18-19'!$B$4:$C$206,2,FALSE) -> Bells Farm Primary School
A103: 330 | B103: Birmingham | C103: 3302457 | D103: Nelson Mandela School | E103: 362 | F103: 19620 | G103: 11445 | H103: 8175 | J103: =VLOOKUP(C103-3300000,'[2]School List'!A:D,4,FALSE) -> Non Chq Bk | K103: 0 | M103: =VLOOKUP(C103-3300000,'October figures 18 AY 18-19'!$B$4:$C$206,2,FALSE) -> Nelson Mandela School
A104: 330 | B104: Birmingham | C104: 3302462 | D104: Little Sutton Primary School | E104: 362 | F104: 19620 | G104: 11445 | H104: 8175 | J104: =VLOOKUP(C104-3300000,'[2]School List'!A:D,4,FALSE) -> Chq Bk | K104: 0 | M104: =VLOOKUP(C104-3300000,'October figures 18 AY 18-19'!$B$4:$C$206,2,FALSE) -> Little Sutton Primary School
A105: 330 | B105: Birmingham | C105: 3302464 | D105: Coppice Primary School | E105: 360 | F105: 19600 | G105: 11433 | H105: 8167 | J105: =VLOOKUP(C105-3300000,'[2]School List'!A:D,4,FALSE) -> EPA | K105: 0 | M105: =VLOOKUP(C105-3300000,'October figures 18 AY 18-19'!$B$4:$C$206,2,FALSE) -> Coppice Primary School
A106: 330 | B106: Birmingham | C106: 3302465 | D106: Calshot Primary School | E106: 360 | F106: 19600 | G106: 11433 | H106: 8167 | J106: =VLOOKUP(C106-3300000,'[2]School List'!A:D,4,FALSE) -> EPA | K106: 0 | M106: =VLOOKUP(C106-3300000,'October figures 18 AY 18-19'!$B$4:$C$206,2,FALSE) -> Calshot Primary School
A107: 330 | B107: Birmingham | C107: 3302466 | D107: Grove School | E107: 538 | F107: 21380 | G107: 12472 | H107: 8908 | J107: =VLOOKUP(C107-3300000,'[2]School List'!A:D,4,FALSE) -> Non Chq Bk | K107: 0 | M107: =VLOOKUP(C107-3300000,'October figures 18 AY 18-19'!$B$4:$C$206,2,FALSE) -> Grove School
A108: 330 | B108: Birmingham | C108: 3302469 | D108: New Hall Primary School | E108: 312 | F108: 19120 | G108: 11153 | H108: 7967 | J108: =VLOOKUP(C108-3300000,'[2]School List'!A:D,4,FALSE) -> Non Chq Bk | K108: 0 | M108: =VLOOKUP(C108-3300000,'October figures 18 AY 18-19'!$B$4:$C$206,2,FALSE) -> New Hall Primary and Children's Centre
A109: 330 | B109: Birmingham | C109: 3302474 | D109: Hollyfield Primary School | E109: 357 | F109: 19570 | G109: 11416 | H109: 8154 | J109: =VLOOKUP(C109-3300000,'[2]School List'!A:D,4,FALSE) -> Non Chq Bk | K109: 0 | M109: =VLOOKUP(C109-3300000,'October figures 18 AY 18-19'!$B$4:$C$206,2,FALSE) -> Hollyfield Primary School
A110: 330 | B110: Birmingham | C110: 3302477 | D110: Harborne Primary School | E110: 536 | F110: 21360 | G110: 12460 | H110: 8900 | J110: =VLOOKUP(C110-3300000,'[2]School List'!A:D,4,FALSE) -> Non Chq Bk | K110: 0 | M110: =VLOOKUP(C110-3300000,'October figures 18 AY 18-19'!$B$4:$C$206,2,FALSE) -> Harborne Primary School
A111: 330 | B111: Birmingham | C111: 3302478 | D111: Whitehouse Common Primary School | E111: 392 | F111: 19920 | G111: 11620 | H111: 8300 | J111: =VLOOKUP(C111-3300000,'[2]School List'!A:D,4,FALSE) -> EPA | K111: 0 | M111: =VLOOKUP(C111-3300000,'October figures 18 AY 18-19'!$B$4:$C$206,2,FALSE) -> Whitehouse Common Primary School
A112: 330 | B112: Birmingham | C112: 3302479 | D112: Anglesey Primary School | E112: 615 | F112: 22150 | G112: 12921 | H112: 9229 | J112: =VLOOKUP(C112-3300000,'[2]School List'!A:D,4,FALSE) -> EPA | K112: 0 | M112: =VLOOKUP(C112-3300000,'October figures 18 AY 18-19'!$B$4:$C$206,2,FALSE) -> Anglesey Primary School
A113: 330 | B113: Birmingham | C113: 3302482 | D113: Wattville Primary School | E113: 412 | F113: 20120 | G113: 11737 | H113: 8383 | J113: =VLOOKUP(C113-3300000,'[2]School List'!A:D,4,FALSE) -> EPA | K113: 0 | M113: =VLOOKUP(C113-3300000,'October figures 18 AY 18-19'!$B$4:$C$206,2,FALSE) -> Wattville Primary School
A114: 330 | B114: Birmingham | C114: 3302486 | D114: Forestdale Primary School | E114: 178 | F114: 17780 | G114: 10372 | H114: 7408 | J114: =VLOOKUP(C114-3300000,'[2]School List'!A:D,4,FALSE) -> Non Chq Bk | K114: 0 | M114: =VLOOKUP(C114-3300000,'October figures 18 AY 18-19'!$B$4:$C$206,2,FALSE) -> Forestdale Primary School
A115: 330 | B115: Birmingham | C115: 3303002 | D115: Christ Church CofE Controlled Primary School and Nursery | E115: 181 | F115: 17810 | G115: 10389 | H115: 7421 | J115: =VLOOKUP(C115-3300000,'[2]School List'!A:D,4,FALSE) -> Chq Bk | K115: 0 | M115: =VLOOKUP(C115-3300000,'October figures 18 AY 18-19'!$B$4:$C$206,2,FALSE) -> Christ Church CofE Controlled Primary School and Nursery
A116: 330 | B116: Birmingham | C116: 3303003 | D116: Moseley Church of England Primary School | E116: 182 | F116: 17820 | G116: 10395 | H116: 7425 | J116: =VLOOKUP(C116-3300000,'[2]School List'!A:D,4,FALSE) -> Non Chq Bk | K116: 0 | M116: =VLOOKUP(C116-3300000,'October figures 18 AY 18-19'!$B$4:$C$206,2,FALSE) -> Moseley Church of England Primary School
A117: 330 | B117: Birmingham | C117: 3303010 | D117: St James Church of England Primary School, Handsworth | E117: 361 | F117: 19610 | G117: 11439 | H117: 8171 | J117: =VLOOKUP(C117-3300000,'[2]School List'!A:D,4,FALSE) -> Non Chq Bk | K117: 0 | M117: =VLOOKUP(C117-3300000,'October figures 18 AY 18-19'!$B$4:$C$206,2,FALSE) -> St James Church of England Primary School, Handsworth
A118: 330 | B118: Birmingham | C118: 3303016 | D118: St Matthew's CofE Primary School | E118: 180 | F118: 17800 | G118: 10383 | H118: 7417 | J118: =VLOOKUP(C118-3300000,'[2]School List'!A:D,4,FALSE) -> Chq Bk | K118: 0 | M118: =VLOOKUP(C118-3300000,'October figures 18 AY 18-19'!$B$4:$C$206,2,FALSE) -> St Matthew's CofE Primary School
A119: 330 | B119: Birmingham | C119: 3303019 | D119: St Saviour's C of E Primary School | E119: 353 | F119: 19530 | G119: 11393 | H119: 8137 | J119: =VLOOKUP(C119-3300000,'[2]School List'!A:D,4,FALSE) -> Non Chq Bk | K119: 0 | M119: =VLOOKUP(C119-3300000,'October figures 18 AY 18-19'!$B$4:$C$206,2,FALSE) -> St Saviour's C of E Primary School
A120: 330 | B120: Birmingham | C120: 3303025 | D120: St Mary's Church of England Primary School | E120: 358 | F120: 19580 | G120: 11422 | H120: 8158 | J120: =VLOOKUP(C120-3300000,'[2]School List'!A:D,4,FALSE) -> Non Chq Bk | K120: 0 | M120: =VLOOKUP(C120-3300000,'October figures 18 AY 18-19'!$B$4:$C$206,2,FALSE) -> St Mary's Church of England Primary School
A121: 330 | B121: Birmingham | C121: 3303302 | D121: Saint Barnabas Church of England Primary School | E121: 330 | F121: 19300 | G121: =11258/7*1 -> 1608.285714 | J121: Academy | K121: 0 | L121: Academy | M121: Public | N121: 2019-10-01
A122: 330 | B122: Birmingham | C122: 3303307 | D122: St Laurence Church Junior School | E122: 360 | F122: 19600 | G122: 11433 | H122: 8167 | J122: =VLOOKUP(C122-3300000,'[2]School List'!A:D,4,FALSE) -> Non Chq Bk | K122: 0 | M122: =VLOOKUP(C122-3300000,'October figures 18 AY 18-19'!$B$4:$C$206,2,FALSE) -> St Laurence Church Junior School
A123: 330 | B123: Birmingham | C123: 3303310 | D123: St Vincent's Catholic Primary School | E123: 175 | F123: 17750 | G123: 10354 | H123: 7396 | J123: =VLOOKUP(C123-3300000,'[2]School List'!A:D,4,FALSE) -> Non Chq Bk | K123: 0 | M123: =VLOOKUP(C123-3300000,'October figures 18 AY 18-19'!$B$4:$C$206,2,FALSE) -> St Vincent's Catholic Primary School
A124: 330 | B124: Birmingham | C124: 3303316 | D124: Guardian Angels Catholic Primary School | E124: 207 | F124: 18070 | G124: 10541 | H124: 7529 | J124: =VLOOKUP(C124-3300000,'[2]School List'!A:D,4,FALSE) -> Non Chq Bk | K124: 0 | M124: =VLOOKUP(C124-3300000,'October figures 18 AY 18-19'!$B$4:$C$206,2,FALSE) -> Guardian Angels Catholic Primary School
A125: 330 | B125: Birmingham | C125: 3303317 | D125: Holy Family Catholic Primary School | E125: 200 | F125: 18000 | G125: 10500 | H125: 7500 | J125: =VLOOKUP(C125-3300000,'[2]School List'!A:D,4,FALSE) -> Non Chq Bk | K125: 0 | M125: =VLOOKUP(C125-3300000,'October figures 18 AY 18-19'!$B$4:$C$206,2,FALSE) -> Holy Family Catholic Primary School
A126: 330 | B126: Birmingham | C126: 3303318 | D126: Abbey Catholic Primary School | E126: 363 | F126: 19630 | G126: 11451 | H126: 8179 | J126: =VLOOKUP(C126-3300000,'[2]School List'!A:D,4,FALSE) -> EPA | K126: 0 | M126: =VLOOKUP(C126-3300000,'October figures 18 AY 18-19'!$B$4:$C$206,2,FALSE) -> Abbey Catholic Primary School
A127: 330 | B127: Birmingham | C127: 3303319 | D127: Christ The King Catholic Primary School | E127: 321 | F127: 19210 | G127: 11206 | H127: 8004 | J127: =VLOOKUP(C127-3300000,'[2]School List'!A:D,4,FALSE) -> Chq Bk | K127: 0 | M127: =VLOOKUP(C127-3300000,'October figures 18 AY 18-19'!$B$4:$C$206,2,FALSE) -> Christ The King Catholic Primary School
A128: 330 | B128: Birmingham | C128: 3303320 | D128: Corpus Christi Catholic Primary School | E128: 356 | F128: 19560 | G128: 11410 | H128: 8150 | J128: =VLOOKUP(C128-3300000,'[2]School List'!A:D,4,FALSE) -> Non Chq Bk | K128: 0 | M128: =VLOOKUP(C128-3300000,'October figures 18 AY 18-19'!$B$4:$C$206,2,FALSE) -> Corpus Christi Catholic Primary School
A129: 330 | B129: Birmingham | C129: 3303321 | D129: English Martyrs' Catholic Primary School | E129: 359 | F129: 19590 | G129: 11428 | H129: 8162 | J129: =VLOOKUP(C129-3300000,'[2]School List'!A:D,4,FALSE) -> EPA | K129: 0 | M129: =VLOOKUP(C129-3300000,'October figures 18 AY 18-19'!$B$4:$C$206,2,FALSE) -> English Martyrs' Catholic Primary School
A130: 330 | B130: Birmingham | C130: 3303322 | D130: Maryvale Catholic Primary School | E130: 175 | F130: 17750 | G130: 10354 | H130: 7396 | J130: =VLOOKUP(C130-3300000,'[2]School List'!A:D,4,FALSE) -> Chq Bk | K130: 0 | M130: =VLOOKUP(C130-3300000,'October figures 18 AY 18-19'!$B$4:$C$206,2,FALSE) -> Maryvale Catholic Primary School
A131: 330 | B131: Birmingham | C131: 3303323 | D131: The Oratory Roman Catholic Primary School | E131: 180 | F131: 17800 | G131: 10383 | H131: 7417 | J131: =VLOOKUP(C131-3300000,'[2]School List'!A:D,4,FALSE) -> EPA | K131: =(E131*10)+16000-F131 -> 0 | M131: =VLOOKUP(C131-3300000,'October figures 18 AY 18-19'!$B$4:$C$206,2,FALSE) -> The Oratory Roman Catholic Primary School
A132: 330 | B132: Birmingham | C132: 3303325 | D132: The Rosary Catholic Primary School | E132: 349 | F132: 19490 | G132: 11369 | H132: 8121 | J132: =VLOOKUP(C132-3300000,'[2]School List'!A:D,4,FALSE) -> Non Chq Bk | K132: 0 | M132: =VLOOKUP(C132-3300000,'October figures 18 AY 18-19'!$B$4:$C$206,2,FALSE) -> The Rosary Catholic Primary School
A133: 330 | B133: Birmingham | C133: 3303328 | D133: Our Lady of Lourdes Catholic Primary School (NC) | E133: 180 | F133: 17800 | G133: 10383 | H133: 7417 | J133: =VLOOKUP(C133-3300000,'[2]School List'!A:D,4,FALSE) -> EPA | K133: 0 | M133: =VLOOKUP(C133-3300000,'October figures 18 AY 18-19'!$B$4:$C$206,2,FALSE) -> Our Lady of Lourdes Catholic Primary School (NC)
A134: 330 | B134: Birmingham | C134: 3303329 | D134: St Augustine's Catholic Primary School | E134: 179 | F134: 17790 | G134: 10378 | H134: 7412 | J134: =VLOOKUP(C134-3300000,'[2]School List'!A:D,4,FALSE) -> Non Chq Bk | K134: 0 | M134: =VLOOKUP(C134-3300000,'October figures 18 AY 18-19'!$B$4:$C$206,2,FALSE) -> St Augustine's Catholic Primary School
A135: 330 | B135: Birmingham | C135: 3303331 | D135: St Catherine of Siena Catholic Primary School | E135: 184 | F135: 17840 | G135: 10407 | H135: 7433 | J135: =VLOOKUP(C135-3300000,'[2]School List'!A:D,4,FALSE) -> Non Chq Bk | K135: 0 | M135: =VLOOKUP(C135-3300000,'October figures 18 AY 18-19'!$B$4:$C$206,2,FALSE) -> St Catherine of Siena Catholic Primary School
A136: 330 | B136: Birmingham | C136: 3303335 | D136: St Anne's Catholic Primary School | E136: 178 | F136: 17780 | G136: 10372 | H136: 7408 | J136: =VLOOKUP(C136-3300000,'[2]School List'!A:D,4,FALSE) -> EPA | K136: 0 | M136: =VLOOKUP(C136-3300000,'October figures 18 AY 18-19'!$B$4:$C$206,2,FALSE) -> St Anne's Catholic Primary School
A137: 330 | B137: Birmingham | C137: 3303337 | D137: St Chad's Catholic Primary School | E137: 181 | F137: 17810 | G137: 10389 | H137: 7421 | J137: =VLOOKUP(C137-3300000,'[2]School List'!A:D,4,FALSE) -> Non Chq Bk | K137: 0 | M137: =VLOOKUP(C137-3300000,'October figures 18 AY 18-19'!$B$4:$C$206,2,FALSE) -> St Chad's Catholic Primary School
A138: 330 | B138: Birmingham | C138: 3303339 | D138: St Joseph's Catholic Primary School | E138: 178 | F138: 17780 | G138: 10372 | H138: 7408 | J138: =VLOOKUP(C138-3300000,'[2]School List'!A:D,4,FALSE) -> Non Chq Bk | K138: 0 | M138: =VLOOKUP(C138-3300000,'October figures 18 AY 18-19'!$B$4:$C$206,2,FALSE) -> St Joseph's Catholic Primary School
A139: 330 | B139: Birmingham | C139: 3303342 | D139: St Francis Catholic Primary School | E139: 357 | F139: 19570 | G139: 11416 | H139: 8154 | J139: =VLOOKUP(C139-3300000,'[2]School List'!A:D,4,FALSE) -> Non Chq Bk | K139: 0 | M139: =VLOOKUP(C139-3300000,'October figures 18 AY 18-19'!$B$4:$C$206,2,FALSE) -> St Francis Catholic Primary School
A140: 330 | B140: Birmingham | C140: 3303344 | D140: St Mary's Catholic Primary School | E140: 359 | F140: 19590 | G140: 11428 | H140: 8162 | J140: =VLOOKUP(C140-3300000,'[2]School List'!A:D,4,FALSE) -> EPA | K140: 0 | M140: =VLOOKUP(C140-3300000,'October figures 18 AY 18-19'!$B$4:$C$206,2,FALSE) -> St Mary's Catholic Primary School
A141: 330 | B141: Birmingham | C141: 3303346 | D141: St Patrick's Catholic Primary School | E141: 181 | F141: 17810 | G141: 10389 | H141: 7421 | J141: =VLOOKUP(C141-3300000,'[2]School List'!A:D,4,FALSE) -> Non Chq Bk | K141: 0 | M141: =VLOOKUP(C141-3300000,'October figures 18 AY 18-19'!$B$4:$C$206,2,FALSE) -> St Patrick's Catholic Primary School
A142: 330 | B142: Birmingham | C142: 3303347 | D142: St Edmund's Catholic Primary School | E142: 181 | F142: 17810 | G142: 10389 | H142: 7421 | J142: =VLOOKUP(C142-3300000,'[2]School List'!A:D,4,FALSE) -> Non Chq Bk | K142: 0 | M142: =VLOOKUP(C142-3300000,'October figures 18 AY 18-19'!$B$4:$C$206,2,FALSE) -> St Edmund's Catholic Primary School
A143: 330 | B143: Birmingham | C143: 3303351 | D143: Our Lady and St Rose of Lima Catholic Primary School | E143: 179 | F143: 17790 | G143: 10378 | H143: 7412 | J143: =VLOOKUP(C143-3300000,'[2]School List'!A:D,4,FALSE) -> EPA | K143: 0 | M143: =VLOOKUP(C143-3300000,'October figures 18 AY 18-19'!$B$4:$C$206,2,FALSE) -> Our Lady and St Rose of Lima Catholic Primary School
A144: 330 | B144: Birmingham | C144: 3303352 | D144: King David Junior and Infant School | E144: 177 | F144: 17770 | G144: 10366 | H144: 7404 | J144: =VLOOKUP(C144-3300000,'[2]School List'!A:D,4,FALSE) -> Non Chq Bk | K144: 0 | M144: =VLOOKUP(C144-3300000,'October figures 18 AY 18-19'!$B$4:$C$206,2,FALSE) -> King David Junior and Infant School
A145: 330 | B145: Birmingham | C145: 3303353 | D145: Bournville Village Primary | E145: 563 | F145: 21630 | G145: 12618 | H145: 9012 | J145: =VLOOKUP(C145-3300000,'[2]School List'!A:D,4,FALSE) -> Non Chq Bk | K145: 0 | M145: =VLOOKUP(C145-3300000,'October figures 18 AY 18-19'!$B$4:$C$206,2,FALSE) -> Bournville Junior School
A146: 330 | B146: Birmingham | C146: 3303355 | D146: St Edward's Catholic Primary School | E146: 341 | F146: 19410 | G146: 11323 | H146: 8087 | J146: =VLOOKUP(C146-3300000,'[2]School List'!A:D,4,FALSE) -> Non Chq Bk | K146: 0 | M146: =VLOOKUP(C146-3300000,'October figures 18 AY 18-19'!$B$4:$C$206,2,FALSE) -> St Edward's Catholic Primary School
A147: 330 | B147: Birmingham | C147: 3303357 | D147: Our Lady's Catholic Primary School | E147: 178 | F147: 17780 | G147: 10372 | H147: 7408 | J147: =VLOOKUP(C147-3300000,'[2]School List'!A:D,4,FALSE) -> Non Chq Bk | K147: 0 | M147: =VLOOKUP(C147-3300000,'October figures 18 AY 18-19'!$B$4:$C$206,2,FALSE) -> Our Lady's Catholic Primary School
A148: 330 | B148: Birmingham | C148: 3303359 | D148: St Wilfrid's Catholic Junior and Infant School | E148: 339 | F148: 19390 | G148: 11311 | H148: 8079 | J148: =VLOOKUP(C148-3300000,'[2]School List'!A:D,4,FALSE) -> CHQ Bk | K148: 0 | M148: =VLOOKUP(C148-3300000,'October figures 18 AY 18-19'!$B$4:$C$206,2,FALSE) -> St Wilfrid's Catholic Junior and Infant School
A149: 330 | B149: Birmingham | C149: 3303360 | D149: St John Fisher Catholic Primary School | E149: 177 | F149: 17770 | G149: 10366 | H149: 7404 | J149: =VLOOKUP(C149-3300000,'[2]School List'!A:D,4,FALSE) -> Non Chq Bk | K149: 0 | M149: =VLOOKUP(C149-3300000,'October figures 18 AY 18-19'!$B$4:$C$206,2,FALSE) -> St John Fisher Catholic Primary School
A150: 330 | B150: Birmingham | C150: 3303361 | D150: St Margaret Mary RC Junior and Infant School | E150: 286 | F150: 18860 | G150: 11002 | H150: 7858 | J150: =VLOOKUP(C150-3300000,'[2]School List'!A:D,4,FALSE) -> EPA | K150: 0 | M150: =VLOOKUP(C150-3300000,'October figures 18 AY 18-19'!$B$4:$C$206,2,FALSE) -> St Margaret Mary RC Junior and Infant School
A151: 330 | B151: Birmingham | C151: 3303363 | D151: St Dunstan's Catholic Primary School | E151: 340 | F151: 19400 | G151: 11317 | H151: 8083 | J151: =VLOOKUP(C151-3300000,'[2]School List'!A:D,4,FALSE) -> Chq Bk | K151: 0 | M151: =VLOOKUP(C151-3300000,'October figures 18 AY 18-19'!$B$4:$C$206,2,FALSE) -> St Dunstan's Catholic Primary School
A152: 330 | B152: Birmingham | C152: 3303365 | D152: St Teresa's Catholic Primary School | E152: 178 | F152: 17780 | G152: 10372 | H152: 7408 | J152: =VLOOKUP(C152-3300000,'[2]School List'!A:D,4,FALSE) -> Non Chq Bk | K152: 0 | M152: =VLOOKUP(C152-3300000,'October figures 18 AY 18-19'!$B$4:$C$206,2,FALSE) -> St Teresa's Catholic Primary School
A153: 330 | B153: Birmingham | C153: 3303367 | D153: St Gerard's RC Junior and Infant School | E153: 180 | F153: 17800 | G153: 10383 | H153: 7417 | J153: =VLOOKUP(C153-3300000,'[2]School List'!A:D,4,FALSE) -> EPA | K153: 0 | M153: =VLOOKUP(C153-3300000,'October figures 18 AY 18-19'!$B$4:$C$206,2,FALSE) -> St Gerard's RC Junior and Infant School
A154: 330 | B154: Birmingham | C154: 3303371 | D154: St Laurence Church Infant School | E154: 178 | F154: 17780 | G154: 10372 | H154: 7408 | J154: =VLOOKUP(C154-3300000,'[2]School List'!A:D,4,FALSE) -> Chq Bk | K154: 0 | M154: =VLOOKUP(C154-3300000,'October figures 18 AY 18-19'!$B$4:$C$206,2,FALSE) -> St Laurence Church Infant School
A155: 330 | B155: Birmingham | C155: 3303372 | D155: St Bernadette's Catholic Primary School | E155: 538 | F155: 21380 | G155: 12472 | H155: 8908 | J155: =VLOOKUP(C155-3300000,'[2]School List'!A:D,4,FALSE) -> EPA | K155: 0 | M155: =VLOOKUP(C155-3300000,'October figures 18 AY 18-19'!$B$4:$C$206,2,FALSE) -> St Bernadette's Catholic Primary School
A156: 330 | B156: Birmingham | C156: 3303375 | D156: St Bernard's Catholic Primary School | E156: 357 | F156: 19570 | G156: 11416 | H156: 8154 | J156: =VLOOKUP(C156-3300000,'[2]School List'!A:D,4,FALSE) -> Non Chq Bk | K156: 0 | M156: =VLOOKUP(C156-3300000,'October figures 18 AY 18-19'!$B$4:$C$206,2,FALSE) -> St Bernard's Catholic Primary School
A157: 330 | B157: Birmingham | C157: 3303377 | D157: St Jude's Catholic Primary School | E157: 173 | F157: 17730 | G157: 10343 | H157: 7387 | J157: =VLOOKUP(C157-3300000,'[2]School List'!A:D,4,FALSE) -> Chq Bk | K157: 0 | M157: =VLOOKUP(C157-3300000,'October figures 18 AY 18-19'!$B$4:$C$206,2,FALSE) -> St Jude's Catholic Primary School
A158: 330 | B158: Birmingham | C158: 3303380 | D158: St Ambrose Barlow Catholic Primary School | E158: 179 | F158: 17790 | G158: 10378 | H158: 7412 | J158: =VLOOKUP(C158-3300000,'[2]School List'!A:D,4,FALSE) -> EPA | K158: 0 | M158: =VLOOKUP(C158-3300000,'October figures 18 AY 18-19'!$B$4:$C$206,2,FALSE) -> St Ambrose Barlow Catholic Primary School
A159: 330 | B159: Birmingham | C159: 3303381 | D159: St Alban's Catholic Primary School | E159: 180 | F159: 17800 | G159: 10383 | H159: 7417 | J159: =VLOOKUP(C159-3300000,'[2]School List'!A:D,4,FALSE) -> Non Chq Bk | K159: 0 | M159: =VLOOKUP(C159-3300000,'October figures 18 AY 18-19'!$B$4:$C$206,2,FALSE) -> St Alban's Catholic Primary School
A160: 330 | B160: Birmingham | C160: 3303382 | D160: St Martin de Porres Catholic Primary School | E160: 172 | F160: 17720 | G160: 10337 | H160: 7383 | J160: =VLOOKUP(C160-3300000,'[2]School List'!A:D,4,FALSE) -> Non Chq Bk | K160: 0 | M160: =VLOOKUP(C160-3300000,'October figures 18 AY 18-19'!$B$4:$C$206,2,FALSE) -> St Martin de Porres Catholic Primary School
A161: 330 | B161: Birmingham | C161: 3303383 | D161: St Mark's Catholic Primary School | E161: 180 | F161: 17800 | G161: 10383 | H161: 7417 | J161: =VLOOKUP(C161-3300000,'[2]School List'!A:D,4,FALSE) -> EPA | K161: 0 | M161: =VLOOKUP(C161-3300000,'October figures 18 AY 18-19'!$B$4:$C$206,2,FALSE) -> St Mark's Catholic Primary School
A162: 330 | B162: Birmingham | C162: 3303385 | D162: St Peter's Catholic Primary School | E162: 181 | F162: 17810 | G162: 10389 | H162: 7421 | J162: =VLOOKUP(C162-3300000,'[2]School List'!A:D,4,FALSE) -> EPA | K162: 0 | M162: =VLOOKUP(C162-3300000,'October figures 18 AY 18-19'!$B$4:$C$206,2,FALSE) -> St Peter's Catholic Primary School
A163: 330 | B163: Birmingham | C163: 3303386 | D163: St Cuthbert's RC Junior and Infant (NC) School | E163: 182 | F163: 17820 | G163: 10395 | H163: 7425 | J163: =VLOOKUP(C163-3300000,'[2]School List'!A:D,4,FALSE) -> Non Chq Bk | K163: 0 | M163: =VLOOKUP(C163-3300000,'October figures 18 AY 18-19'!$B$4:$C$206,2,FALSE) -> St Cuthbert's RC Junior and Infant (NC) School
A164: 330 | B164: Birmingham | C164: 3303406 | D164: St Clare's Catholic Primary School | E164: 366 | F164: 19660 | G164: 11468 | H164: 8192 | J164: =VLOOKUP(C164-3300000,'[2]School List'!A:D,4,FALSE) -> Non Chq Bk | K164: 0 | M164: =VLOOKUP(C164-3300000,'October figures 18 AY 18-19'!$B$4:$C$206,2,FALSE) -> St Clare's Catholic Primary School
A165: 330 | B165: Birmingham | C165: 3303410 | D165: St John and Monica Catholic Primary School | E165: 180 | F165: 17800 | G165: 10383 | H165: 7417 | J165: =VLOOKUP(C165-3300000,'[2]School List'!A:D,4,FALSE) -> EPA | K165: 0 | M165: =VLOOKUP(C165-3300000,'October figures 18 AY 18-19'!$B$4:$C$206,2,FALSE) -> St John and Monica Catholic Primary School
A166: 330 | B166: Birmingham | C166: 3303411 | D166: Holly Hill Methodist CofE Infant School | E166: 116 | F166: 17160 | G166: 10010 | H166: 7150 | J166: =VLOOKUP(C166-3300000,'[2]School List'!A:D,4,FALSE) -> Non Chq Bk | K166: 0 | M166: =VLOOKUP(C166-3300000,'October figures 18 AY 18-19'!$B$4:$C$206,2,FALSE) -> Holly Hill Methodist CofE Infant School
A167: 330 | B167: Birmingham | C167: 3303421 | D167: Yardley Primary School | E167: 719 | F167: 23190 | G167: 13528 | H167: 9662 | J167: =VLOOKUP(C167-3300000,'[2]School List'!A:D,4,FALSE) -> EPA | K167: 0 | M167: =VLOOKUP(C167-3300000,'October figures 18 AY 18-19'!$B$4:$C$206,2,FALSE) -> Yardley Primary School
A168: 330 | B168: Birmingham | C168: 3303428 | D168: St Peters CofE Primary School | E168: 358 | F168: 19580 | G168: 11422 | H168: 8158 | J168: =VLOOKUP(C168-3300000,'[2]School List'!A:D,4,FALSE) -> Chq Bk | K168: 0 | M168: =VLOOKUP(C168-3300000,'October figures 18 AY 18-19'!$B$4:$C$206,2,FALSE) -> St Peters CofE Primary School
A169: 330 | B169: Birmingham | C169: 3303431 | D169: New Oscott Primary School | E169: 537 | F169: 21370 | G169: 12466 | H169: 8904 | J169: =VLOOKUP(C169-3300000,'[2]School List'!A:D,4,FALSE) -> Non Chq Bk | K169: 0 | M169: =VLOOKUP(C169-3300000,'October figures 18 AY 18-19'!$B$4:$C$206,2,FALSE) -> New Oscott Primary School
A170: 330 | B170: Birmingham | C170: 3303432 | D170: Clifton Primary School | E170: 716 | F170: 23160 | G170: 13510 | H170: 9650 | J170: =VLOOKUP(C170-3300000,'[2]School List'!A:D,4,FALSE) -> EPA | K170: 0 | M170: =VLOOKUP(C170-3300000,'October figures 18 AY 18-19'!$B$4:$C$206,2,FALSE) -> Clifton Primary School
A171: 330 | B171: Birmingham | C171: 3303435 | D171: Four Oaks Primary School | E171: 362 | F171: 19620 | G171: 11445 | H171: 8175 | J171: =VLOOKUP(C171-3300000,'[2]School List'!A:D,4,FALSE) -> EPA | K171: 0 | M171: =VLOOKUP(C171-3300000,'October figures 18 AY 18-19'!$B$4:$C$206,2,FALSE) -> Four Oaks Primary School
A172: 330 | B172: Birmingham | C172: 3303436 | D172: Harper Bell Seventh-day Adventist School | E172: 153 | F172: 17530 | G172: 10226 | H172: 7304 | J172: =VLOOKUP(C172-3300000,'[2]School List'!A:D,4,FALSE) -> Non Chq Bk | K172: 0 | M172: =VLOOKUP(C172-3300000,'October figures 18 AY 18-19'!$B$4:$C$206,2,FALSE) -> Harper Bell Seventh-day Adventist School
A173: 330 | B173: Birmingham | C173: 3305202 | D173: Walmley Junior School | E173: 359 | F173: 19590 | G173: 11428 | H173: 8162 | J173: =VLOOKUP(C173-3300000,'[2]School List'!A:D,4,FALSE) -> Chq Bk | K173: 0 | M173: =VLOOKUP(C173-3300000,'October figures 18 AY 18-19'!$B$4:$C$206,2,FALSE) -> Walmley Junior School
A174: 330 | B174: Birmingham | C174: 3305203 | D174: Walmley Infant School | E174: 180 | F174: 17800 | G174: 10383 | H174: 7417 | J174: =VLOOKUP(C174-3300000,'[2]School List'!A:D,4,FALSE) -> Chq Bk | K174: 0 | M174: =VLOOKUP(C174-3300000,'October figures 18 AY 18-19'!$B$4:$C$206,2,FALSE) -> Walmley Infant School
A175: 330 | B175: Birmingham | C175: 3305949 | D175: Al-Furqan Primary School | E175: 540 | F175: 21400 | G175: 12483 | H175: 8917 | J175: =VLOOKUP(C175-3300000,'[2]School List'!A:D,4,FALSE) -> Non Chq Bk | K175: 0 | M175: =VLOOKUP(C175-3300000,'October figures 18 AY 18-19'!$B$4:$C$206,2,FALSE) -> Al-Furqan Primary School
A176: 330 | B176: Birmingham | C176: 3307006 | D176: Hamilton School | E176: 112 | F176: 17120 | G176: 9987 | H176: 7133 | J176: =VLOOKUP(C176-3300000,'[2]School List'!A:D,4,FALSE) -> Non Chq Bk | K176: 0 | M176: =VLOOKUP(C176-3300000,'October figures 18 AY 18-19'!$B$4:$C$206,2,FALSE) -> Hamilton School
A177: 330 | B177: Birmingham | C177: 3307009 | D177: Victoria School | E177: 84 | F177: 16840 | G177: 9823 | H177: 7017 | J177: =VLOOKUP(C177-3300000,'[2]School List'!A:D,4,FALSE) -> Chq Bk | K177: 0 | M177: =VLOOKUP(C177-3300000,'October figures 18 AY 18-19'!$B$4:$C$206,2,FALSE) -> Victoria School
A178: 330 | B178: Birmingham | C178: 3307012 | D178: Longwill A Primary School for Deaf Children | E178: 50 | F178: 16500 | G178: 9625 | H178: 6875 | J178: =VLOOKUP(C178-3300000,'[2]School List'!A:D,4,FALSE) -> EPA | K178: 0 | M178: =VLOOKUP(C178-3300000,'October figures 18 AY 18-19'!$B$4:$C$206,2,FALSE) -> Longwill A Primary School for Deaf Children
A179: 330 | B179: Birmingham | C179: 3307014 | D179: Uffculme School | E179: 84 | F179: 16840 | G179: 9823 | H179: 7017 | J179: =VLOOKUP(C179-3300000,'[2]School List'!A:D,4,FALSE) -> Chq Bk | K179: 0 | M179: =VLOOKUP(C179-3300000,'October figures 18 AY 18-19'!$B$4:$C$206,2,FALSE) -> Uffculme School
A180: 330 | B180: Birmingham | C180: 3307034 | D180: Priestley Smith School | E180: 26 | F180: 16260 | G180: 9485 | H180: 6775 | J180: =VLOOKUP(C180-3300000,'[2]School List'!A:D,4,FALSE) -> Non Chq Bk | K180: 0 | M180: =VLOOKUP(C180-3300000,'October figures 18 AY 18-19'!$B$4:$C$206,2,FALSE) -> Priestley Smith School
A181: 330 | B181: Birmingham | C181: 3307035 | D181: The Dame Ellen Pinsent School | E181: 144 | F181: 17440 | G181: 10173 | H181: 7267 | J181: =VLOOKUP(C181-3300000,'[2]School List'!A:D,4,FALSE) -> Non Chq Bk | K181: 0 | M181: =VLOOKUP(C181-3300000,'October figures 18 AY 18-19'!$B$4:$C$206,2,FALSE) -> The Dame Ellen Pinsent School
A182: 330 | B182: Birmingham | C182: 3307037 | D182: Skilts School | E182: 65 | F182: 16650 | G182: 9713 | H182: 6937 | J182: =VLOOKUP(C182-3300000,'[2]School List'!A:D,4,FALSE) -> Non Chq Bk | K182: 0 | M182: =VLOOKUP(C182-3300000,'October figures 18 AY 18-19'!$B$4:$C$206,2,FALSE) -> Skilts School
A183: 330 | B183: Birmingham | C183: 3307040 | D183: Mayfield School | E183: 107 | F183: 17070 | G183: 9958 | H183: 7112 | J183: =VLOOKUP(C183-3300000,'[2]School List'!A:D,4,FALSE) -> Non Chq Bk | K183: 0 | M183: =VLOOKUP(C183-3300000,'October figures 18 AY 18-19'!$B$4:$C$206,2,FALSE) -> Mayfield School
A184: 330 | B184: Birmingham | C184: 3307045 | D184: The Pines Special School | E184: 113 | F184: 17130 | G184: 9993 | H184: 7137 | J184: =VLOOKUP(C184-3300000,'[2]School List'!A:D,4,FALSE) -> EPA | K184: 0 | M184: =VLOOKUP(C184-3300000,'October figures 18 AY 18-19'!$B$4:$C$206,2,FALSE) -> The Pines Special School
A185: 330 | B185: Birmingham | C185: 3307047 | D185: Springfield House Community Special School | E185: 94 | F185: 16940 | G185: 9882 | H185: 7058 | J185: =VLOOKUP(C185-3300000,'[2]School List'!A:D,4,FALSE) -> Non Chq Bk | K185: 0 | M185: =VLOOKUP(C185-3300000,'October figures 18 AY 18-19'!$B$4:$C$206,2,FALSE) -> Springfield House Community Special School
A186: 330 | B186: Birmingham | C186: 3307051 | D186: Cherry Oak School | E186: 103 | F186: 17030 | G186: 9934 | H186: 7096 | J186: =VLOOKUP(C186-3300000,'[2]School List'!A:D,4,FALSE) -> Chq Bk | K186: 0 | M186: =VLOOKUP(C186-3300000,'October figures 18 AY 18-19'!$B$4:$C$206,2,FALSE) -> Cherry Oak School
A187: 330 | B187: Birmingham | C187: 3307052 | D187: Beaufort School | E187: 65 | F187: 16650 | G187: 9713 | H187: 6937 | J187: =VLOOKUP(C187-3300000,'[2]School List'!A:D,4,FALSE) -> Non Chq Bk | K187: 0 | M187: =VLOOKUP(C187-3300000,'October figures 18 AY 18-19'!$B$4:$C$206,2,FALSE) -> Beaufort School
A188: 330 | B188: Birmingham | C188: 3307060 | D188: Langley School | E188: 109 | F188: 17090 | G188: 9969 | H188: 7121 | J188: =VLOOKUP(C188-3300000,'[2]School List'!A:D,4,FALSE) -> EPA | K188: 0 | M188: =VLOOKUP(C188-3300000,'October figures 18 AY 18-19'!$B$4:$C$206,2,FALSE) -> Langley School
A189: 330 | B189: Birmingham | C189: 3307062 | D189: Lindsworth School | E189: 12 | F189: 12000 | G189: 7000 | H189: 5000 | J189: =VLOOKUP(C189-3300000,'[2]School List'!A:D,4,FALSE) -> Non Chq Bk | K189: =(E189*1000)-F189 -> 0 | M189: =VLOOKUP(C189-3300000,'October figures 18 AY 18-19'!$B$4:$C$206,2,FALSE) -> Lindsworth School
F191: =SUM(F2:F190) -> 3564000 | G191: =SUM(G2:G190) -> 2069363.286 | H191: 1476945
C192: Academy | D192: Saint Barnabas Church of England Primary School | G192: ='[2]LA (maintained only)'!D35-G191 -> 9649.714286 | H192: ='[2]LA (maintained only)'!E35-H191 -> 8042
C194: Full year | D194: Saint Barnabas Church of England Primary School | G194: 11258 | H194: 8042
D195: Check | G195: =G194-G192-G121 -> -3.319655661e-11 | H195: =H194-H192-H121 -> 0
